Workbook

Sheet Evaluación FG (3) (hidden)
C2: INMOBILIARIA VIVIENDAS 2000 LTDA.
C3: CONSTRUCTORA VIVIENDAS 2000 LTDA-
C5: EVALUACIÓN DE COSTOS
C6: Hernando de Aguirre
C8: SUPERFICIE LOTES, M2 | D8: 4600 | H8: VS ESTUDIO | J8: 1
C9: SUPERFICIE EDIFICACION, M2 | D9: =+E39 -> 24870 | H9: FECHA ENTREGA | J9: 2017-09-13
C10: SUPERFICIE VENTA, M2 | D10: =O20/2 -> 5980
C11: TIPO DE VIVIENDA | D11: Departamentos
C12: Nº VIVIENDAS | D12: =+N24 -> 87 | E12: N° VIV. | F12: MODELO VIV. | G12: TERRENOS [M2] | H12: VALOR DE LA UF | J12: 26600
H13: PLAZO DE EJECUCIÓN
C14: Estacionamientos
D16: UNIDAD | E16: CANTIDAD | F16: P.UNITARIO | G16: VALOR UF | H16: IVA | I16: % COSTOS | J16: % VENTAS
B18: 1.- | C18: TERRENO
C19: Terreno | D19: m2 | E19: =D8 -> 4600 | F19: 70.5 | G19: =+E19*F19 -> 324300 | M19: Zona | N19: D
C20: 2.- Comisión compra | D20: % | E20: 0.0238 | G20: =G19*E20 -> 7718.34 | M20: Coeficiente de Constructibilidad | N20: 2 | O20: =+N20*1.3*D8 -> 11960 | P20: mt2
C21: 3.- Gastos Varios Terreno (Demolición) | D21: m2 | E21: =D8 -> 4600 | F21: 0.4 | G21: =+E21*F21 -> 1840 | M21: Ocupación de suelo | N21: 0.35 | O21: =N21*E19 -> 1610 | P21: mt2
C22: 3.- Varios | D22: gl | M22: Altura max | N22: 12 | O22: 35 | P22: mts
C23: legales | M23: Densidad max bruta | N23: 760 | P23: Hab/HCt
M24: max dptos | N24: 87
H25: =+F25*E25 -> 0 | M25: Estacionamientos | N25: =+N24*2*2 -> 348
M26: Superficie exterior | N26: =-O21+D8 -> 2990
C27: Total Terreno | E27: =SUM(E19:E19) -> 4600 | F27: =+G27/E27 -> 72.5779 | G27: =SUM(G19:G26) -> 333858.34 | H27: =+H25 -> 0 | I27: =+G27/$G$110 -> 0.3857018595 | J27: =+G27/$G$122 -> 0.5761691619 | M27: Estacionamientos Super | N27: 24
M28: Estacionamientos Subte | N28: =N25-N27 -> 324
B29: 2.- | C29: CONSTRUCCIÓN | M29: Area Subte | N29: =N28*2.5*7.5*1.2 -> 7290
C30: Edificación | N30: =30*N28 -> 9720
C31: Sup. Departamentos | D31: m2 | E31: =O20 -> 11960 | F31: 20 | G31: =F31*E31 -> 239200 | M31: dptos promedio | N31: =+D10/N24 -> 68.73563218
C32: terrazas | D32: m2 | E32: =+D12*4 -> 348 | F32: 17 | G32: =F32*E32 -> 5916 | M32: Valor promedio venta | N32: =N31*F114 -> 5842.528736
C33: comun edif | D33: m2 | E33: =+E31*0.2 -> 2392 | F33: 17 | G33: =F33*E33 -> 40664
C34: Exteriores | D34: m2 | E34: =N27*2.5*7.5 -> 450 | F34: 2.5 | G34: =F34*E34 -> 1125 | N34: =110*87 -> 9570
C35: Subt. Departamentos | D35: m2 | E35: =N30 -> 9720 | F35: 12 | G35: =+F35*E35 -> 116640
C39: Subtotal Edificación Neto | D39: m2 | E39: =SUM(E31:E38) -> 24870 | F39: =+G39/E39 -> 16.22617612 | G39: =+SUM(G31:G37) -> 403545
C41: IVA | D41: % | E41: 0.19 | F41: =SUM(G31:G37) -> 403545 | H41: =E41*F41 -> 76673.55
C42: Rebaja Tributaria | D42: % | E42: 0 | F42: =+H41 -> 76673.55 | H42: =+-225*N24 -> -19575
H43: 0
C45: Subtotal Edificación C/IVA | D45: m2 | E45: =+D9 -> 24870 | F45: =+G45/E45 -> 18.52205669 | G45: =+H45+G39 -> 460643.55 | H45: =+SUM(H41:H43) -> 57098.55
C47: Obras de Urbanización | D47: GL | E47: 1 | F47: 2000 | G47: =F47*E47 -> 2000
C49: Subtotal Urbanización Neto | D49: m2 | E49: =+D8 -> 4600 | F49: =+G49/E49 -> 0.4347826087 | G49: =SUM(G47:G48) -> 2000 | Q49: 800000
Q50: 140
C51: IVA 19 % | D51: % | E51: 0.19 | F51: =G49 -> 2000 | H51: =F51*E51 -> 380 | Q51: =Q49/Q50/26500 -> 0.2156334232
C53: Subtotal Urbanización C/IVA | D53: m2 | E53: =+D8 -> 4600 | F53: =+G53/E53 -> 0.5173913043 | G53: =+H53+G49 -> 2380 | H53: =+SUM(H49:H51) -> 380
N54: Cantidad | O54: PU UF | P54: Total
C55: Total Construcción C/IVA | D55: m2 | E55: =+D9 -> 24870 | F55: =+G55/E55 -> 18.61775432 | G55: =+G57+H57 -> 463023.55 | M55: Arriendo Mensual | N55: =D10 -> 5980 | O55: 0.26 | P55: =N55*O55 -> 1554.8
M56: Estacionamiento | N56: 87 | O56: 1.5 | P56: =N56*O56 -> 130.5
C57: Total Construcción Neto | D57: m2 | E57: =D9 -> 24870 | F57: =+G57/E57 -> 16.30659429 | G57: =G49+G39 -> 405545 | H57: =+H53+H45 -> 57478.55 | I57: =+G57/$G$110 -> 0.4685204528 | J57: =+G57/$G$122 -> 0.699885235 | O57: TOTAL | P57: =SUM(P55:P56) -> 1685.3
N58: 0.07 | O58: Vacancia | P58: =P57*N58 -> 117.971
B59: 3.- | C59: DERECHOS MUNICIPALES Y APORTES | O59: Total Arriendo Mes | P59: =P57-P58 -> 1567.329
C60: Derechos fusión de Lotes | D60: gl | G60: 50
C61: Permiso Edificación | D61: m2 | E61: =E57 -> 24870 | F61: 0.15 | G61: =E61*F61 -> 3730.5
C62: Derechos aprobación Loteo | D62: gl | G62: =E62*F62 -> 0
C63: Aportes Servicios y Empalmes | D63: Gl | G63: =1100+500 -> 1600 | M63: Inversión | N63: CANTIDAD | O63: PU UF | P63: TOTAL
C64: Empalmes | D64: gl | E64: 1 | F64: 2252 | G64: =E64*F64 -> 2252 | M64: Apart Hotel M2 | N64: =N55 -> 5980 | O64: 51 | P64: =N64*O64 -> 304980
C65: Modificación de Proyecto | D65: gl | G65: =E65*F65 -> 0 | M65: Estacionamientos Subterraneo (un) | N65: =N56 -> 87 | O65: 400 | P65: =N65*O65 -> 34800
C66: Total Permisos y Aportes | G66: =SUM(G60:G65) -> 7632.5 | H66: =SUM(H60:H64) -> 0 | I66: =+G66/$G$110 -> 0.008817720243 | J66: =+G66/$G$122 -> 0.01317208708
O67: Total Inversión | P67: =SUM(P64:P66) -> 339780
B68: 4.- | C68: HONORARIOS Y PROYECTOS
C69: Arquitectura | D69: m2 | E69: =E57 -> 24870 | F69: 0.35 | G69: =+F69*E69 -> 8704.5 | O69: Rentabilidad Anual | P69: =P59*12/P67 -> 0.05535331097
C70: Ingeniería Estructural | D70: m2 | E70: =+D9 -> 24870 | F70: =0.16 -> 0.16 | G70: =+F70*E70 -> 3979.2
C71: Proyectos de Especialidades | D71: m2 | E71: =+E57 -> 24870 | F71: 0.2 | G71: =+F71*E71 -> 4974
C72: Paisajismo | D72: gl | E72: 1 | F72: 40 | G72: =+F72*E72 -> 40
C73: Asesoría Legal | D73: gl | E73: 1 | F73: 0 | G73: 0
C74: ITO (media jornada) | D74: mes | E74: 20 | F74: 60 | G74: 1200
C75: Interiorismo | D75: gl | E75: 1 | F75: 300 | G75: 300
G76: 0
G77: 0
C78: Total Honorarios y Proyectos | G78: =SUM(G69:G77) -> 19197.7 | H78: =SUM(H69:H77) -> 0 | I78: =+G78/$G$110 -> 0.02217883366 | J78: =+G78/$G$122 -> 0.03313118588
B80: 5.- | C80: GASTOS COMERCIALIZACIÓN
C81: Gastos publicidad | D81: % | E81: 0.016 | F81: =+G122 -> 579445 | G81: =+E81*F81 -> 9271.12
C82: Gestión de Ventas | D82: gl | E82: 0.013 | F82: =+G122 -> 579445 | G82: =+E82*F82 -> 7532.785 | H82: =+G82*0.19 -> 1431.22915
C83: Sala de ventas y piloto | D83: gl | E83: 0.8 | F83: 1450 | G83: =+E83*F83 -> 1160 | H83: =+G83*0.19 -> 220.4
C84: Gastos generales | D84: gl | E84: 1 | F84: 380 | G84: =+E84*F84 -> 380
C85: Total Comercialización | E85: =D12 -> 87 | F85: =G85/E85 -> 210.8494828 | G85: =SUM(G81:G84) -> 18343.905 | H85: =SUM(H81:H84) -> 1651.62915 | I85: =+G85/$G$110 -> 0.02119245627 | J85: =+G85/$G$122 -> 0.03165771557
B87: 6.- | C87: POST VENTA
C88: Adicionales e Imprevistos | D88: % | E88: 0.02 | F88: =G57 -> 405545 | G88: =E88*F88 -> 8110.9 | H88: 0
C89: Post Venta (Materiales + M.O.) | D89: % | E89: 0.015 | F89: =G57 -> 405545 | G89: =E89*F89 -> 6083.175 | H89: =+G89*0.0665 -> 404.5311375
C90: Total Post Venta | E90: =E89 -> 0.015 | F90: =G90/E90 -> 946271.6667 | G90: =G89+G88 -> 14194.075 | H90: =H89+H88 -> 404.5311375 | I90: =+G90/$G$110 -> 0.01639821585 | J90: =+G90/$G$122 -> 0.02449598323
B92: 7.- | C92: GASTOS OPERACIÓN
C93: Habilitación Espacios Comúnes | D93: gl | E93: 1 | F93: 1000 | G93: =E93*F93 -> 1000
C94: Mantención de Stock | D94: viv | E94: =+D12 -> 87 | F94: 20 | G94: =E94*F94 -> 1740
C95: Total Gastos Operación | G95: =SUM(G93:G94) -> 2740 | H95: =SUM(H93:H94) -> 0 | I95: =+G95/$G$110 -> 0.003165483585 | J95: =+G95/$G$122 -> 0.004728662772
B97: 8.- | C97: GASTOS FINANCIEROS
C98: Gastos Financieros | D98: gl | G98: 38000
G100: =+E100*F100 -> 0
C101: Total Gastos Financieros | G101: =SUM(G98:G100) -> 38000 | H101: =SUM(H99:H100) -> 0 | I101: =+G101/$G$110 -> 0.04390086724 | J101: =+G101/$G$122 -> 0.06557999465
B103: 9.- | C103: CASA CENTRAL
C104: Oficina Central Santiago | D104: % | E104: 0.035 | F104: =+G122 -> 579445 | G104: =+E104*F104 -> 20280.575
C105: Zonal RM | D105: % | E105: 0.01 | F105: =+F104 -> 579445 | G105: =E105*F105 -> 5794.45
C107: Total Gastos Casa Central | G107: =SUM(G104:G106) -> 26075.025 | H107: =SUM(H104:H106) -> 0 | I107: =+G107/$G$110 -> 0.03012411081 | J107: =+G107/$G$122 -> 0.045
C110: TOTAL EGRESOS | G110: =+G27+G57+G66+G78+G85+G101+G107+G90+G95 -> 865586.545 | H110: =+H27+H57+H66+H78+H85+H101+H107+H90+H95 -> 59534.71029 | I110: =+G110/$G$110 -> 1 | J110: =+G110/$G$122 -> 1.493820026
B113: 11.- | C113: VENTAS | E113: CANTIDAD | F113: PRECIO | G113: TOTAL VENTA | H113: COSTO | I113: m2 | J113: UF/m2
C114: Departamentos | D114: m2 | E114: =+D10 -> 5980 | F114: 85 | G114: =E114*F114 -> 508300
C115: Estacionamientos Superficie | D115: un | E115: =+N27 -> 24 | F115: 200 | G115: =E115*F115 -> 4800
C116: Estacionamientos Subterraneo | D116: un | E116: =+N28/2 -> 162 | F116: 380 | G116: =E116*F116 -> 61560
C117: Bodegas | D117: un | E117: =+D12 -> 87 | F117: 55 | G117: =E117*F117 -> 4785
C122: INGRESOS BRUTOS | G122: =SUM(G114:G121) -> 579445
C124: SUBTOTAL EGRESOS NETO | G124: =+G110+H42+H43 -> 846011.545
C126: TERRENO EXENTO (Avalúo fiscal) | D126: M2 | E126: 0.7 | F126: =G19 -> 324300 | G126: =F126*E126 -> 227010
C128: INGRESOS NETO | G128: =(G122+G126*0.19)/1.19 -> 523173.8655
C130: TOTAL EXCEDENTES | G130: =+G128-G124 -> -322837.6795 | J130: =+G130/G124 -> -0.3815996145
C132: TIR PURO ANUAL

Sheet Evaluación FG (2) (hidden)
C2: INMOBILIARIA VIVIENDAS 2000 LTDA.
C3: CONSTRUCTORA VIVIENDAS 2000 LTDA-
C5: EVALUACIÓN DE COSTOS
C6: Hernando de Aguirre
C8: SUPERFICIE LOTES, M2 | D8: 4600 | H8: VS ESTUDIO | J8: 1
C9: SUPERFICIE EDIFICACION, M2 | D9: =+E39 -> 16782 | H9: FECHA ENTREGA | J9: 2017-09-13
C10: SUPERFICIE VENTA, M2 | D10: =O20 -> 9570
C11: TIPO DE VIVIENDA | D11: Departamentos
C12: Nº VIVIENDAS | D12: =+N24 -> 87 | E12: N° VIV. | F12: MODELO VIV. | G12: TERRENOS [M2] | H12: VALOR DE LA UF | J12: 26600
H13: PLAZO DE EJECUCIÓN
C14: Estacionamientos
D16: UNIDAD | E16: CANTIDAD | F16: P.UNITARIO | G16: VALOR UF | H16: IVA | I16: % COSTOS | J16: % VENTAS
B18: 1.- | C18: TERRENO
C19: Terreno | D19: m2 | E19: =D8 -> 4600 | F19: 70.5 | G19: =+E19*F19 -> 324300 | M19: Zona | N19: D
C20: 2.- Comisión compra | D20: % | E20: 0.0238 | G20: =G19*E20 -> 7718.34 | M20: Coeficiente de Constructibilidad | N20: 2 | O20: 9570 | P20: mt2
C21: 3.- Gastos Varios Terreno (Demolición) | D21: m2 | E21: =D8 -> 4600 | F21: 0.4 | G21: =+E21*F21 -> 1840 | M21: Ocupación de suelo | N21: 0.35 | O21: =N21*E19 -> 1610 | P21: mt2
C22: 3.- Varios | D22: gl | M22: Altura max | N22: 12 | O22: 35 | P22: mts
C23: legales | M23: Densidad max bruta | N23: 760 | P23: Hab/HCt
M24: max dptos | N24: 87
H25: =+F25*E25 -> 0 | M25: Estacionamientos | N25: =+N24*2 -> 174
M26: Superficie exterior | N26: =-O21+D8 -> 2990
C27: Total Terreno | E27: =SUM(E19:E19) -> 4600 | F27: =+G27/E27 -> 72.5779 | G27: =SUM(G19:G26) -> 333858.34 | H27: =+H25 -> 0 | I27: =+G27/$G$110 -> 0.4388586199 | J27: =+G27/$G$122 -> 0.3878037856 | M27: Estacionamientos Super | N27: 24
M28: Estacionamientos Subte | N28: =N25-N27 -> 150
B29: 2.- | C29: CONSTRUCCIÓN | M29: Area Subte | N29: =N28*2.5*7.5*1.2 -> 3375
C30: Edificación | N30: =30*N28 -> 4500
C31: Sup. Departamentos | D31: m2 | E31: 9570 | F31: 20 | G31: =F31*E31 -> 191400 | M31: dptos promedio | N31: =+O20/N24 -> 110
C32: terrazas | D32: m2 | E32: =+D12*4 -> 348 | F32: 17 | G32: =F32*E32 -> 5916 | M32: Valor promedio venta | N32: =N31*F114 -> 9130
C33: comun edif | D33: m2 | E33: =+E31*0.2 -> 1914 | F33: 17 | G33: =F33*E33 -> 32538
C34: Exteriores | D34: m2 | E34: =N27*2.5*7.5 -> 450 | F34: 2.5 | G34: =F34*E34 -> 1125 | N34: =110*87 -> 9570
C35: Subt. Departamentos | D35: m2 | E35: =N30 -> 4500 | F35: 12 | G35: =+F35*E35 -> 54000
C39: Subtotal Edificación Neto | D39: m2 | E39: =SUM(E31:E38) -> 16782 | F39: =+G39/E39 -> 16.98122989 | G39: =+SUM(G31:G37) -> 284979
C41: IVA | D41: % | E41: 0.19 | F41: =SUM(G31:G37) -> 284979 | H41: =E41*F41 -> 54146.01 | M41: =65%*F42 -> 35194.9065
C42: Rebaja Tributaria | D42: % | E42: 0 | F42: =+H41 -> 54146.01 | H42: =-225*D12 -> -19575
H43: 0
C45: Subtotal Edificación C/IVA | D45: m2 | E45: =+D9 -> 16782 | F45: =+G45/E45 -> 19.04123525 | G45: =+H45+G39 -> 319550.01 | H45: =+SUM(H41:H43) -> 34571.01
C47: Obras de Urbanización | D47: GL | E47: 1 | F47: 2000 | G47: =F47*E47 -> 2000
C49: Subtotal Urbanización Neto | D49: m2 | E49: =+D8 -> 4600 | F49: =+G49/E49 -> 0.4347826087 | G49: =SUM(G47:G48) -> 2000
C51: IVA 19 % | D51: % | E51: 0.19 | F51: =G49 -> 2000 | H51: =F51*E51 -> 380
C53: Subtotal Urbanización C/IVA | D53: m2 | E53: =+D8 -> 4600 | F53: =+G53/E53 -> 0.5173913043 | G53: =+H53+G49 -> 2380 | H53: =+SUM(H49:H51) -> 380
C55: Total Construcción C/IVA | D55: m2 | E55: =+D9 -> 16782 | F55: =+G55/E55 -> 19.18305387 | G55: =+G57+H57 -> 321930.01
C57: Total Construcción Neto | D57: m2 | E57: =D9 -> 16782 | F57: =+G57/E57 -> 17.1004052 | G57: =G49+G39 -> 286979 | H57: =+H53+H45 -> 34951.01 | I57: =+G57/$G$110 -> 0.3772354702 | J57: =+G57/$G$122 -> 0.3333495955
B59: 3.- | C59: DERECHOS MUNICIPALES Y APORTES
C60: Derechos fusión de Lotes | D60: gl | G60: 50
C61: Permiso Edificación | D61: m2 | E61: =E57 -> 16782 | F61: 0.15 | G61: =E61*F61 -> 2517.3
C62: Derechos aprobación Loteo | D62: gl | G62: =E62*F62 -> 0
C63: Aportes Servicios y Empalmes | D63: Gl | G63: =1100+500 -> 1600
C64: Empalmes | D64: gl | E64: 1 | F64: 2252 | G64: =E64*F64 -> 2252
C65: Modificación de Proyecto | D65: gl | G65: =E65*F65 -> 0
C66: Total Permisos y Aportes | G66: =SUM(G60:G65) -> 6419.3 | H66: =SUM(H60:H64) -> 0 | I66: =+G66/$G$110 -> 0.008438205074 | J66: =+G66/$G$122 -> 0.007456542319
B68: 4.- | C68: HONORARIOS Y PROYECTOS
C69: Arquitectura | D69: m2 | E69: =E57 -> 16782 | F69: 0.35 | G69: =+F69*E69 -> 5873.7
C70: Ingeniería Estructural | D70: m2 | E70: =+D9 -> 16782 | F70: =0.16 -> 0.16 | G70: =+F70*E70 -> 2685.12
C71: Proyectos de Especialidades | D71: m2 | E71: =+E57 -> 16782 | F71: 0.2 | G71: =+F71*E71 -> 3356.4
C72: Paisajismo | D72: gl | E72: 1 | F72: 40 | G72: =+F72*E72 -> 40
C73: Asesoría Legal | D73: gl | E73: 1 | F73: 0 | G73: 0
C74: ITO (media jornada) | D74: mes | E74: 20 | F74: 60 | G74: 1200
C75: Interiorismo | D75: gl | E75: 1 | F75: 300 | G75: 300
G76: 0
G77: 0
C78: Total Honorarios y Proyectos | G78: =SUM(G69:G77) -> 13455.22 | H78: =SUM(H69:H77) -> 0 | I78: =+G78/$G$110 -> 0.01768696052 | J78: =+G78/$G$122 -> 0.01562933923
B80: 5.- | C80: GASTOS COMERCIALIZACIÓN
C81: Gastos publicidad | D81: % | E81: 0.016 | F81: =+G122 -> 860895 | G81: =+E81*F81 -> 13774.32
C82: Gestión de Ventas | D82: gl | E82: 0.013 | F82: =+G122 -> 860895 | G82: =+E82*F82 -> 11191.635 | H82: =+G82*0.19 -> 2126.41065
C83: Sala de ventas y piloto | D83: gl | E83: 0.8 | F83: 1450 | G83: =+E83*F83 -> 1160 | H83: =+G83*0.19 -> 220.4
C84: Gastos generales | D84: gl | E84: 1 | F84: 380 | G84: =+E84*F84 -> 380
C85: Total Comercialización | E85: =D12 -> 87 | F85: =G85/E85 -> 304.6661494 | G85: =SUM(G81:G84) -> 26505.955 | H85: =SUM(H81:H84) -> 2346.81065 | I85: =+G85/$G$110 -> 0.03484222329 | J85: =+G85/$G$122 -> 0.03078883604
B87: 6.- | C87: POST VENTA
C88: Adicionales e Imprevistos | D88: % | E88: 0.02 | F88: =G57 -> 286979 | G88: =E88*F88 -> 5739.58 | H88: 0
C89: Post Venta (Materiales + M.O.) | D89: % | E89: 0.015 | F89: =G57 -> 286979 | G89: =E89*F89 -> 4304.685 | H89: =+G89*0.0665 -> 286.2615525
C90: Total Post Venta | E90: =E89 -> 0.015 | F90: =G90/E90 -> 669617.6667 | G90: =G89+G88 -> 10044.265 | H90: =H89+H88 -> 286.2615525 | I90: =+G90/$G$110 -> 0.01320324146 | J90: =+G90/$G$122 -> 0.01166723584
B92: 7.- | C92: GASTOS OPERACIÓN
C93: Habilitación Espacios Comúnes | D93: gl | E93: 1 | F93: 1000 | G93: =E93*F93 -> 1000
C94: Mantención de Stock | D94: viv | E94: =+D12 -> 87 | F94: 20 | G94: =E94*F94 -> 1740
C95: Total Gastos Operación | G95: =SUM(G93:G94) -> 2740 | H95: =SUM(H93:H94) -> 0 | I95: =+G95/$G$110 -> 0.003601745035 | J95: =+G95/$G$122 -> 0.003182734247
B97: 8.- | C97: GASTOS FINANCIEROS
C98: Gastos Financieros | D98: gl | G98: 42000
G100: =+E100*F100 -> 0
C101: Total Gastos Financieros | G101: =SUM(G98:G100) -> 42000 | H101: =SUM(H99:H100) -> 0 | I101: =+G101/$G$110 -> 0.05520923046 | J101: =+G101/$G$122 -> 0.04878643737
B103: 9.- | C103: CASA CENTRAL
C104: Oficina Central Santiago | D104: % | E104: 0.035 | F104: =+G122 -> 860895 | G104: =+E104*F104 -> 30131.325
C105: Zonal RM | D105: % | E105: 0.01 | F105: =+F104 -> 860895 | G105: =E105*F105 -> 8608.95
C107: Total Gastos Casa Central | G107: =SUM(G104:G106) -> 38740.275 | H107: =SUM(H104:H106) -> 0 | I107: =+G107/$G$110 -> 0.05092430406 | J107: =+G107/$G$122 -> 0.045
C110: TOTAL EGRESOS | G110: =+G27+G57+G66+G78+G85+G101+G107+G90+G95 -> 760742.355 | H110: =+H27+H57+H66+H78+H85+H101+H107+H90+H95 -> 37584.0822 | I110: =+G110/$G$110 -> 1 | J110: =+G110/$G$122 -> 0.8836645061
B113: 11.- | C113: VENTAS | E113: CANTIDAD | F113: PRECIO | G113: TOTAL VENTA | H113: COSTO | I113: m2 | J113: UF/m2
C114: Departamentos | D114: m2 | E114: =+D10 -> 9570 | F114: 83 | G114: =E114*F114 -> 794310
C115: Estacionamientos Superficie | D115: un | E115: =+N27 -> 24 | F115: 200 | G115: =E115*F115 -> 4800
C116: Estacionamientos Subterraneo | D116: un | E116: =+N28 -> 150 | F116: 380 | G116: =E116*F116 -> 57000
C117: Bodegas | D117: un | E117: =+D12 -> 87 | F117: 55 | G117: =E117*F117 -> 4785
C122: INGRESOS BRUTOS | G122: =SUM(G114:G121) -> 860895
C124: SUBTOTAL EGRESOS NETO | G124: =+G110+H42+H43 -> 741167.355
C126: TERRENO EXENTO (Avalúo fiscal) | D126: M2 | E126: 0.7 | F126: =G19 -> 324300 | G126: =F126*E126 -> 227010
C128: INGRESOS NETO | G128: =(G122+G126*0.19)/1.19 -> 759686.4706
C130: TOTAL EXCEDENTES | G130: =+G128-G124 -> 18519.11559 | J130: =+G130/G124 -> 0.02498641564
C132: TIR PURO ANUAL

Sheet Datos
B1: DATOS TERRENO :
B4: Proyecto
B5: Tipología
B6: Fecha
B7: Versión
B9: Superficies y Cantidades | E9: Costos | H9: Plazos
B10: Superficie Terreno [m2] | C10: 0 | E10: Terreno [UF/m2] | F10: 0 | H10: Mes Inicio Ventas
B11: Superficie Deptos [m2] | C11: 0 | E11: Demolición [UF/m2] | F11: 0 | H11: Mes Inicio Construcción
B12: Cantidad Deptos [Uni] | C12: 0 | E12: Gastos Varios Terreno [UF/m2] | F12: 0 | H12: Meses de Construcción
B13: Superficie Terrazas [m2] | C13: 0 | E13: Departamentos [UF/m2] | F13: 0
B14: Superficie común edif. [m2] | C14: 0 | E14: Terrazas [UF/m2] | F14: 0 | H14: Avance Construcción y Urbanización
B15: Superficie Subterraneo [m2] | C15: 0 | E15: Superficie Común Edificio [UF/m2] | F15: 0 | H15: Mes | I15: % Avance | J15: meses constru.
B16: Estacionamientos Subterraneos [Uni] | C16: 0 | E16: Superficies Exteriores [UF/m2] | F16: 0 | H16: mes 1 | I16: =INDEX(Tabla35[[#All],[1]:[30]],MATCH(Tabla1[[#This Row],[Mes]],Tabla35[[#All],[Meses]],0),Datos!$I$12)/100 -> 0.08 | J16: =I11 -> 0
B17: Superficie Exterior [m2] | C17: 0 | E17: Subterraneo [UF/m2] | F17: 0 | H17: mes 2 | I17: =INDEX(Tabla35[[#All],[1]:[30]],MATCH(Tabla1[[#This Row],[Mes]],Tabla35[[#All],[Meses]],0),Datos!$I$12)/100 -> 0.15 | J17: =J16+1 -> 1
B18: Estacionamientos Exteriores [Uni] | C18: 0 | E18: Locales Comerciales [UF/m2] | F18: 0 | H18: mes 3 | I18: =INDEX(Tabla35[[#All],[1]:[30]],MATCH(Tabla1[[#This Row],[Mes]],Tabla35[[#All],[Meses]],0),Datos!$I$12)/100 -> 0.17 | J18: =J17+1 -> 2
B19: Estacionamientos Visita [Uni] | C19: 0 | E19: Salas [UF/m2] | F19: 0 | H19: mes 4 | I19: =INDEX(Tabla35[[#All],[1]:[30]],MATCH(Tabla1[[#This Row],[Mes]],Tabla35[[#All],[Meses]],0),Datos!$I$12)/100 -> 0.2 | J19: =J18+1 -> 3
B20: Bodegas [Uni] | C20: 0 | E20: DIA [UF] | F20: 0 | H20: mes 5 | I20: =INDEX(Tabla35[[#All],[1]:[30]],MATCH(Tabla1[[#This Row],[Mes]],Tabla35[[#All],[Meses]],0),Datos!$I$12)/100 -> 0.17 | J20: =J19+1 -> 4
B21: Superficie Locales Comerciales [m2] | C21: 0 | E21: EISTU [UF] | F21: 0 | H21: mes 6 | I21: =INDEX(Tabla35[[#All],[1]:[30]],MATCH(Tabla1[[#This Row],[Mes]],Tabla35[[#All],[Meses]],0),Datos!$I$12)/100 -> 0.15 | J21: =J20+1 -> 5
B22: Locales Comerciales [Uni] | C22: 0 | E22: Avaluo Fiscal Terreno [UF] | F22: 0 | H22: mes 7 | I22: =INDEX(Tabla35[[#All],[1]:[30]],MATCH(Tabla1[[#This Row],[Mes]],Tabla35[[#All],[Meses]],0),Datos!$I$12)/100 -> 0.08 | J22: =J21+1 -> 6
B23: Superficie Salas [m2] | C23: 0 | E23: Urbanización [UF] | F23: 0 | H23: mes 8 | I23: =INDEX(Tabla35[[#All],[1]:[30]],MATCH(Tabla1[[#This Row],[Mes]],Tabla35[[#All],[Meses]],0),Datos!$I$12)/100 -> 0 | J23: 7
B24: Salas [Uni] | C24: 0 | H24: mes 9 | I24: =INDEX(Tabla35[[#All],[1]:[30]],MATCH(Tabla1[[#This Row],[Mes]],Tabla35[[#All],[Meses]],0),Datos!$I$12)/100 -> 0 | J24: 8
B25: Superficie de edificación [m2] | C25: =C11+C13+C14+C21+C23 -> 0 | E25: Precios Venta | H25: mes 10 | I25: =INDEX(Tabla35[[#All],[1]:[30]],MATCH(Tabla1[[#This Row],[Mes]],Tabla35[[#All],[Meses]],0),Datos!$I$12)/100 -> 0 | J25: 9
B26: Superficie de ventas Departamentos [m2] | C26: =C11+C13/2 -> 0 | E26: Departamentos [UF/m2] | F26: 32.9 | H26: mes 11 | I26: =INDEX(Tabla35[[#All],[1]:[30]],MATCH(Tabla1[[#This Row],[Mes]],Tabla35[[#All],[Meses]],0),Datos!$I$12)/100 -> 0 | J26: 10
B27: Subtotal Edificación Neto [m2] | C27: =+C11+C13+C14+C15+C21+C23 -> 0 | E27: Estacionamientos Superficie [UF] | F27: 200 | H27: mes 12 | I27: =INDEX(Tabla35[[#All],[1]:[30]],MATCH(Tabla1[[#This Row],[Mes]],Tabla35[[#All],[Meses]],0),Datos!$I$12)/100 -> 0 | J27: 11
E28: Estacionamientos Subterraneo [UF] | F28: 0 | H28: mes 13 | I28: =INDEX(Tabla35[[#All],[1]:[30]],MATCH(Tabla1[[#This Row],[Mes]],Tabla35[[#All],[Meses]],0),Datos!$I$12)/100 -> 0 | J28: 12
B29: Velocidad De Venta [Uni/mes] | C29: - | E29: Bodegas [UF] | F29: 0 | H29: mes 14 | I29: =INDEX(Tabla35[[#All],[1]:[30]],MATCH(Tabla1[[#This Row],[Mes]],Tabla35[[#All],[Meses]],0),Datos!$I$12)/100 -> 0 | J29: 13
E30: Locales Comerciales [UF/m2] | F30: 0 | H30: mes 15 | I30: =INDEX(Tabla35[[#All],[1]:[30]],MATCH(Tabla1[[#This Row],[Mes]],Tabla35[[#All],[Meses]],0),Datos!$I$12)/100 -> 0 | J30: 14
E31: Salas [UF/m2] | F31: 0 | H31: mes 16 | I31: =INDEX(Tabla35[[#All],[1]:[30]],MATCH(Tabla1[[#This Row],[Mes]],Tabla35[[#All],[Meses]],0),Datos!$I$12)/100 -> 0 | J31: 15
E32: Promedio Edificacion [UF/m2] | F32: =(Evaluación!G32+Evaluación!G33+Evaluación!G34)/(C11+C13/2) ->  | H32: mes 17 | I32: =INDEX(Tabla35[[#All],[1]:[30]],MATCH(Tabla1[[#This Row],[Mes]],Tabla35[[#All],[Meses]],0),Datos!$I$12)/100 -> 0 | J32: 16
H33: mes 18 | I33: =INDEX(Tabla35[[#All],[1]:[30]],MATCH(Tabla1[[#This Row],[Mes]],Tabla35[[#All],[Meses]],0),Datos!$I$12)/100 -> 0 | J33: 17
B34: Crédito Especial a la Construcción | H34: mes 19 | I34: =INDEX(Tabla35[[#All],[1]:[30]],MATCH(Tabla1[[#This Row],[Mes]],Tabla35[[#All],[Meses]],0),Datos!$I$12)/100 -> 0 | J34: 18
B35: Tipo | C35: Cantidad | D35: Mt2 | E35: UF | F35: Rebaja IVA | H35: mes 20 | I35: =INDEX(Tabla35[[#All],[1]:[30]],MATCH(Tabla1[[#This Row],[Mes]],Tabla35[[#All],[Meses]],0),Datos!$I$12)/100 -> 0 | J35: 19
D36: =Tabla13[[#This Row],[Cantidad]]*Tabla13[[#This Row],[Tipo]] -> 0 | E36: =Tabla13[[#This Row],[Tipo]]*$F$32 ->  | F36: =IF(IF(Tabla13[[#This Row],[UF]]>2000,0,Tabla13[[#This Row],[UF]]*0.1235)>225,225,IF(Tabla13[[#This Row],[UF]]>2000,0,Tabla13[[#This Row],[UF]]*0.1235))*Tabla13[[#This Row],[Cantidad]] ->  | H36: mes 21 | I36: =INDEX(Tabla35[[#All],[1]:[30]],MATCH(Tabla1[[#This Row],[Mes]],Tabla35[[#All],[Meses]],0),Datos!$I$12)/100 -> 0 | J36: 20
D37: =Tabla13[[#This Row],[Cantidad]]*Tabla13[[#This Row],[Tipo]] -> 0 | E37: =Tabla13[[#This Row],[Tipo]]*$F$32 ->  | F37: =IF(IF(Tabla13[[#This Row],[UF]]>2000,0,Tabla13[[#This Row],[UF]]*0.1235)>225,225,IF(Tabla13[[#This Row],[UF]]>2000,0,Tabla13[[#This Row],[UF]]*0.1235))*Tabla13[[#This Row],[Cantidad]] ->  | H37: mes 22 | I37: =INDEX(Tabla35[[#All],[1]:[30]],MATCH(Tabla1[[#This Row],[Mes]],Tabla35[[#All],[Meses]],0),Datos!$I$12)/100 -> 0 | J37: 21
D38: =Tabla13[[#This Row],[Cantidad]]*Tabla13[[#This Row],[Tipo]] -> 0 | E38: =Tabla13[[#This Row],[Tipo]]*$F$32 ->  | F38: =IF(IF(Tabla13[[#This Row],[UF]]>2000,0,Tabla13[[#This Row],[UF]]*0.1235)>225,225,IF(Tabla13[[#This Row],[UF]]>2000,0,Tabla13[[#This Row],[UF]]*0.1235))*Tabla13[[#This Row],[Cantidad]] ->  | H38: mes 23 | I38: =INDEX(Tabla35[[#All],[1]:[30]],MATCH(Tabla1[[#This Row],[Mes]],Tabla35[[#All],[Meses]],0),Datos!$I$12)/100 -> 0 | J38: 22
D39: =Tabla13[[#This Row],[Cantidad]]*Tabla13[[#This Row],[Tipo]] -> 0 | E39: =Tabla13[[#This Row],[Tipo]]*$F$32 ->  | F39: =IF(IF(Tabla13[[#This Row],[UF]]>2000,0,Tabla13[[#This Row],[UF]]*0.1235)>225,225,IF(Tabla13[[#This Row],[UF]]>2000,0,Tabla13[[#This Row],[UF]]*0.1235))*Tabla13[[#This Row],[Cantidad]] ->  | H39: mes 24 | I39: =INDEX(Tabla35[[#All],[1]:[30]],MATCH(Tabla1[[#This Row],[Mes]],Tabla35[[#All],[Meses]],0),Datos!$I$12)/100 -> 0 | J39: 23
D40: =Tabla13[[#This Row],[Cantidad]]*Tabla13[[#This Row],[Tipo]] -> 0 | E40: =Tabla13[[#This Row],[Tipo]]*$F$32 ->  | F40: =IF(IF(Tabla13[[#This Row],[UF]]>2000,0,Tabla13[[#This Row],[UF]]*0.1235)>225,225,IF(Tabla13[[#This Row],[UF]]>2000,0,Tabla13[[#This Row],[UF]]*0.1235))*Tabla13[[#This Row],[Cantidad]] ->  | H40: mes 25 | I40: =INDEX(Tabla35[[#All],[1]:[30]],MATCH(Tabla1[[#This Row],[Mes]],Tabla35[[#All],[Meses]],0),Datos!$I$12)/100 -> 0 | J40: 24
D41: =Tabla13[[#This Row],[Cantidad]]*Tabla13[[#This Row],[Tipo]] -> 0 | E41: =Tabla13[[#This Row],[Tipo]]*$F$32 ->  | F41: =IF(IF(Tabla13[[#This Row],[UF]]>2000,0,Tabla13[[#This Row],[UF]]*0.1235)>225,225,IF(Tabla13[[#This Row],[UF]]>2000,0,Tabla13[[#This Row],[UF]]*0.1235))*Tabla13[[#This Row],[Cantidad]] ->  | H41: mes 26 | I41: =INDEX(Tabla35[[#All],[1]:[30]],MATCH(Tabla1[[#This Row],[Mes]],Tabla35[[#All],[Meses]],0),Datos!$I$12)/100 -> 0 | J41: 25
D42: =Tabla13[[#This Row],[Cantidad]]*Tabla13[[#This Row],[Tipo]] -> 0 | E42: =Tabla13[[#This Row],[Tipo]]*$F$32 ->  | F42: =IF(IF(Tabla13[[#This Row],[UF]]>2000,0,Tabla13[[#This Row],[UF]]*0.1235)>225,225,IF(Tabla13[[#This Row],[UF]]>2000,0,Tabla13[[#This Row],[UF]]*0.1235))*Tabla13[[#This Row],[Cantidad]] ->  | H42: mes 27 | I42: =INDEX(Tabla35[[#All],[1]:[30]],MATCH(Tabla1[[#This Row],[Mes]],Tabla35[[#All],[Meses]],0),Datos!$I$12)/100 -> 0 | J42: 26
D43: =Tabla13[[#This Row],[Cantidad]]*Tabla13[[#This Row],[Tipo]] -> 0 | E43: =Tabla13[[#This Row],[Tipo]]*$F$32 ->  | F43: =IF(IF(Tabla13[[#This Row],[UF]]>2000,0,Tabla13[[#This Row],[UF]]*0.1235)>225,225,IF(Tabla13[[#This Row],[UF]]>2000,0,Tabla13[[#This Row],[UF]]*0.1235))*Tabla13[[#This Row],[Cantidad]] ->  | H43: mes 28 | I43: =INDEX(Tabla35[[#All],[1]:[30]],MATCH(Tabla1[[#This Row],[Mes]],Tabla35[[#All],[Meses]],0),Datos!$I$12)/100 -> 0 | J43: 27
D44: =Tabla13[[#This Row],[Cantidad]]*Tabla13[[#This Row],[Tipo]] -> 0 | E44: =Tabla13[[#This Row],[Tipo]]*$F$32 ->  | F44: =IF(IF(Tabla13[[#This Row],[UF]]>2000,0,Tabla13[[#This Row],[UF]]*0.1235)>225,225,IF(Tabla13[[#This Row],[UF]]>2000,0,Tabla13[[#This Row],[UF]]*0.1235))*Tabla13[[#This Row],[Cantidad]] ->  | H44: mes 29 | I44: =INDEX(Tabla35[[#All],[1]:[30]],MATCH(Tabla1[[#This Row],[Mes]],Tabla35[[#All],[Meses]],0),Datos!$I$12)/100 -> 0 | J44: 28
D45: =Tabla13[[#This Row],[Cantidad]]*Tabla13[[#This Row],[Tipo]] -> 0 | E45: =Tabla13[[#This Row],[Tipo]]*$F$32 ->  | F45: =IF(IF(Tabla13[[#This Row],[UF]]>2000,0,Tabla13[[#This Row],[UF]]*0.1235)>225,225,IF(Tabla13[[#This Row],[UF]]>2000,0,Tabla13[[#This Row],[UF]]*0.1235))*Tabla13[[#This Row],[Cantidad]] ->  | H45: mes 30 | I45: =INDEX(Tabla35[[#All],[1]:[30]],MATCH(Tabla1[[#This Row],[Mes]],Tabla35[[#All],[Meses]],0),Datos!$I$12)/100 -> 0 | J45: 29
D46: =Tabla13[[#This Row],[Cantidad]]*Tabla13[[#This Row],[Tipo]] -> 0 | E46: =Tabla13[[#This Row],[Tipo]]*$F$32 ->  | F46: =IF(IF(Tabla13[[#This Row],[UF]]>2000,0,Tabla13[[#This Row],[UF]]*0.1235)>225,225,IF(Tabla13[[#This Row],[UF]]>2000,0,Tabla13[[#This Row],[UF]]*0.1235))*Tabla13[[#This Row],[Cantidad]] ->  | H46: Total | I46: =SUM(I16:I45) -> 1 | J46: =I41 -> 0
D47: =Tabla13[[#This Row],[Cantidad]]*Tabla13[[#This Row],[Tipo]] -> 0 | E47: =Tabla13[[#This Row],[Tipo]]*$F$32 ->  | F47: =IF(IF(Tabla13[[#This Row],[UF]]>2000,0,Tabla13[[#This Row],[UF]]*0.1235)>225,225,IF(Tabla13[[#This Row],[UF]]>2000,0,Tabla13[[#This Row],[UF]]*0.1235))*Tabla13[[#This Row],[Cantidad]] -> 
D48: =Tabla13[[#This Row],[Cantidad]]*Tabla13[[#This Row],[Tipo]] -> 0 | E48: =Tabla13[[#This Row],[Tipo]]*$F$32 ->  | F48: =IF(IF(Tabla13[[#This Row],[UF]]>2000,0,Tabla13[[#This Row],[UF]]*0.1235)>225,225,IF(Tabla13[[#This Row],[UF]]>2000,0,Tabla13[[#This Row],[UF]]*0.1235))*Tabla13[[#This Row],[Cantidad]] -> 
B50: Estacionamientos | C50: =C16 -> 0 | D50: =Tabla13[[#This Row],[Cantidad]]*12.5 -> 0 | E50: =IFERROR(Evaluación!$G$36/(D50+D51)*(D50/C16),0) -> 0 | F50: =IF(IF(Tabla13[[#This Row],[UF]]>2000,0,Tabla13[[#This Row],[UF]]*0.1235)>225,225,IF(Tabla13[[#This Row],[UF]]>2000,0,Tabla13[[#This Row],[UF]]*0.1235))*Tabla13[[#This Row],[Cantidad]] -> 0
B51: Bodegas | C51: =C20 -> 0 | D51: =Tabla13[[#This Row],[Cantidad]]*3 -> 0
B52: Total | C52: =SUM(C36:C49) -> 0 | D52: =SUM(D36:D49) -> 0 | E52: =SUBTOTAL(109,Tabla13[UF]) ->  | F52: =SUBTOTAL(109,Tabla13[Rebaja IVA]) -> 
C53: =IF(SUM(C36:C48)=C12,"OK",FALSE) -> OK | D53: =IF(SUM(D36:D48)=C26,"OK","FALSO") -> OK

Sheet Evaluación
C3: EVALUACIÓN DE COSTOS
C5: =Datos!C4 -> 0
C11: SUPERFICIE LOTES, M2 | D11: =Datos!C10 -> 0
C12: SUPERFICIE EDIFICACION, M2 | D12: =Datos!C27 -> 0 | H12: VS ESTUDIO | J12: =+Datos!C7 -> 0
C13: SUPERFICIE VENTA, M2 | D13: =Datos!C26 -> 0 | H13: FECHA ENTREGA
C14: TIPO DE VIVIENDA | D14: =+Datos!C5 -> 0
C15: Nº VIVIENDAS | D15: =Datos!C12 -> 0 | E15: N° VIV. | F15: MODELO VIV. | G15: TERRENOS [M2] | H15: VELOCIDAD DE VENTA | J15: =Datos!C29 -> -
E16: =+Datos!C12 -> 0 | G16: =+Datos!C10 -> 0 | H16: MESES DE CONSTRUCCIÓN | J16: =+Datos!I12 -> 0
D19: UNIDAD | E19: CANTIDAD | F19: P.UNITARIO | G19: VALOR UF | H19: IVA | I19: % COSTOS | J19: % VENTAS | K19: Firmas Aprobación
B21: 1.- | C21: TERRENO
C22: Terreno | D22: m2 | E22: =Datos!C10 -> 0 | F22: =Datos!F10 -> 0 | G22: =+E22*F22 -> 0
C23: Comisión compra | D23: % | E23: 0 | F23: =G22 -> 0 | G23: =+E23*F23 -> 0
C24: Gastos Demolición | D24: m2 | E24: =Datos!C10 -> 0 | F24: =Datos!F11 -> 0 | G24: =+E24*F24 -> 0
C25: Varios | D25: gl | E25: 0 | F25: 0 | G25: =+E25*F25 -> 0
H26: =+F26*E26 -> 0
C28: Total Terreno | E28: =SUM(E22:E22) -> 0 | F28: =+G28/E28 ->  | G28: =SUM(G22:G25) -> 0 | H28: =+H26 -> 0 | I28: =+G28/$G$115 ->  | J28: =+G28/$G$127 ->  | L28: Gerente de Proyectos
B30: 2.- | C30: CONSTRUCCIÓN
C31: Edificación | J31: sobre 0, uf/m2
C32: Sup. Departamentos | D32: m2 | E32: =Datos!C11 -> 0 | F32: =Datos!F13 -> 0 | G32: =F32*E32 -> 0 | I32: =SUM(G32:G34) -> 0 | J32: =+I32/I33 -> 
C33: terrazas | D33: m2 | E33: =Datos!C13 -> 0 | F33: =Datos!F14 -> 0 | G33: =F33*E33 -> 0 | I33: =SUM(E32:E34) -> 0
C34: comun edif | D34: m2 | E34: =Datos!C14 -> 0 | F34: =Datos!F15 -> 0 | G34: =F34*E34 -> 0
C35: Exteriores | D35: m2 | E35: =Datos!C17 -> 0 | F35: =Datos!F16 -> 0 | G35: =F35*E35 -> 0
C36: Subt. Departamentos | D36: m2 | E36: =Datos!C15 -> 0 | F36: =Datos!F17 -> 0 | G36: =+F36*E36 -> 0
C37: Locales Comerciales | D37: m2 | E37: =Datos!C21 -> 0 | F37: =Datos!F18 -> 0 | G37: =+F37*E37 -> 0
C38: Salas | D38: m2 | E38: =Datos!C23 -> 0 | F38: =Datos!F19 -> 0 | G38: =+F38*E38 -> 0
L39: Gerente Desarrollo Inmobiliario
C40: Gastos Generales | D40: mes | E40: =Datos!I12 -> 0 | F40: 0 | G40: =+F40*E40 -> 0
C41: Utilidades | D41: % | F41: =SUM(G32:G40) -> 0 | G41: =+F41*E41 -> 0
C44: Subtotal Edificación Neto | D44: m2 | E44: =D12 -> 0 | F44: =+G44/E44 ->  | G44: =+SUM(G32:G41) -> 0
C46: IVA | D46: % | E46: 0.19 | F46: =SUM(G32:G41) -> 0 | H46: =E46*F46 -> 0
C47: Rebaja Tributaria | D47: % | E47: 0.65 | F47: =+H46 -> 0 | H47: =-E47*F47 -> 0
H48: =-(H47+Tabla13[[#Totals],[Rebaja IVA]]) -> 
C50: Subtotal Edificación C/IVA | D50: m2 | E50: =+D12 -> 0 | F50: =+G50/E50 ->  | G50: =+H50+G44 ->  | H50: =+SUM(H46:H48) -> 
L51: Gerente Comercial
C52: Obras de Urbanización | D52: GL | E52: =100*15 -> 1500 | F52: =Datos!F23 -> 0 | G52: =F52*E52 -> 0
C54: Subtotal Urbanización Neto | D54: m2 | E54: =+D11 -> 0 | F54: =+G54/E54 ->  | G54: =SUM(G52:G53) -> 0
C56: IVA 19 % | D56: % | E56: 0.19 | F56: =G54 -> 0 | H56: =F56*E56 -> 0
C58: Subtotal Urbanización C/IVA | D58: m2 | E58: =+D11 -> 0 | F58: =+G58/E58 ->  | G58: =+H58+G54 -> 0 | H58: =+SUM(H54:H56) -> 0
C60: Total Construcción C/IVA | D60: m2 | E60: =+D12 -> 0 | F60: =+G60/E60 ->  | G60: =+G62+H62 -> 
C62: Total Construcción Neto | D62: m2 | E62: =D12 -> 0 | F62: =+G62/E62 ->  | G62: =G54+G44 -> 0 | H62: =+H58+H50 ->  | I62: =+G62/$G$115 ->  | J62: =+G62/$G$127 ->  | L62: Gerente General
B64: 3.- | C64: DERECHOS MUNICIPALES Y APORTES
C65: Derechos fusión de Lotes | D65: gl
C66: Permiso Edificación | D66: m2 | E66: =D12 -> 0 | F66: 0.08 | G66: =E66*F66 -> 0
C67: Derechos aprobación Loteo | D67: gl | G67: =E67*F67 -> 0
C68: Aportes Servicios y Empalmes | D68: un | E68: =$D$15 -> 0 | F68: 3.5 | G68: =E68*F68 -> 0
C69: Empalmes | D69: un | E69: =$D$15 -> 0 | F69: 10 | G69: =E69*F69 -> 0
C70: Modificación de Proyecto | D70: gl | G70: =E70*F70 -> 0
C71: Total Permisos y Aportes | G71: =SUM(G65:G70) -> 0 | H71: =SUM(H65:H69) -> 0 | I71: =+G71/$G$115 ->  | J71: =+G71/$G$127 -> 
B73: 4.- | C73: HONORARIOS Y PROYECTOS | L73: Gerente Finanzas
C74: Arquitectura | D74: m2 | E74: =D12 -> 0 | F74: 0.41 | G74: =+F74*E74 -> 0
C75: Ingeniería Estructural | D75: m2 | E75: =D12 -> 0 | F75: 0.13 | G75: =+F75*E75 -> 0
C76: Proyectos de Especialidades | D76: m2 | E76: =D12 -> 0 | F76: 0.14 | G76: 0
C77: Asesorías | D77: gl | E77: 1 | F77: 300 | G77: 300
C78: ITO | D78: mes | E78: =Datos!I12 -> 0 | F78: 130 | G78: 0
C79: Interiorismo | D79: gl | E79: 1 | F79: 250 | G79: 250
C80: DIA | D80: gl | F80: =Datos!F20 -> 0 | G80: 0
C81: EISTU | D81: gl | E81: 0 | F81: 600 | G81: 0
C83: Total Honorarios y Proyectos | G83: =SUM(G74:G81) -> 550 | H83: =SUM(H74:H81) -> 0 | I83: =+G83/$G$115 ->  | J83: =+G83/$G$127 -> 
L84: Contraloría
B85: 5.- | C85: GASTOS COMERCIALIZACIÓN
C86: Gastos publicidad | D86: % | E86: 0.01 | F86: =+G127 -> 0 | G86: =+E86*F86 -> 0 | H86: =+G86*0.19*50% -> 0
C87: Gestión de Ventas | D87: % | E87: 0.01 | F87: =+G127 -> 0 | G87: =+E87*F87 -> 0 | H87: =+G87*0.19*50% -> 0
C88: Sala de ventas y piloto | D88: % | E88: 2 | F88: 1200 | G88: =+E88*F88 -> 2400 | H88: =+G88*0.19*50% -> 228
C89: Gastos generales | D89: % | E89: 0.003 | F89: =+G127 -> 0 | G89: =+E89*F89 -> 0 | H89: =+G89*0.19*50% -> 0
C90: Total Comercialización | E90: =D15 -> 0 | F90: =G90/E90 ->  | G90: =SUM(G86:G89) -> 2400 | H90: =SUM(H86:H89) -> 228 | I90: =+G90/$G$115 ->  | J90: =+G90/$G$127 -> 
B92: 6.- | C92: POST VENTA
C93: Adicionales e Imprevistos | D93: % | E93: 0.02 | F93: =G62 -> 0 | G93: =E93*F93 -> 0 | H93: 0
C94: Post Venta (Materiales + M.O.) | D94: % | E94: 0.015 | F94: =G62 -> 0 | G94: =E94*F94 -> 0 | H94: =+G94*0.0665 -> 0 | L94: Director
C95: Total Post Venta | E95: =D15 -> 0 | F95: =G95/E95 ->  | G95: =G94+G93 -> 0 | H95: =H94+H93 -> 0 | I95: =+G95/$G$115 ->  | J95: =+G95/$G$127 -> 
B97: 7.- | C97: GASTOS OPERACIÓN
C98: Habilitación Espacios Comúnes | D98: gl | E98: 1 | F98: 500 | G98: =E98*F98 -> 500
C99: Mantención de Stock | D99: viv | E99: =+D15 -> 0 | F99: 5 | G99: =E99*F99 -> 0
C100: Total Gastos Operación | G100: =SUM(G98:G99) -> 500 | H100: =SUM(H98:H99) -> 0 | I100: =+G100/$G$115 ->  | J100: =+G100/$G$127 -> 
B102: 8.- | C102: GASTOS FINANCIEROS
C103: Gastos Financieros | D103: gl | E103: =+Flujo!C78 -> 0.04 | G103: =Flujo!B80 -> 
G105: =+E105*F105 -> 0
C106: Total Gastos Financieros | G106: =SUM(G103:G105) ->  | H106: =SUM(H104:H105) -> 0 | I106: =+G106/$G$115 ->  | J106: =+G106/$G$127 -> 
B108: 9.- | C108: CASA CENTRAL
C109: Oficina Central Santiago | D109: % | E109: 0.035 | F109: =+G127 -> 0 | G109: =+E109*F109 -> 0
C110: Oficina Zonal | D110: % | E110: 0.02 | F110: =+F109 -> 0 | G110: =E110*F110 -> 0
C112: Total Gastos Casa Central | G112: =SUM(G109:G111) -> 0 | H112: =SUM(H109:H111) -> 0 | I112: =+G112/$G$115 ->  | J112: =+G112/$G$127 -> 
C115: TOTAL EGRESOS | G115: =+G28+G62+G71+G83+G90+G106+G112+G95+G100 ->  | H115: =+H28+H62+H71+H83+H90+H106+H112+H95+H100 ->  | I115: =+G115/$G$115 ->  | J115: =+G115/$G$127 -> 
B118: 11.- | C118: VENTAS | E118: CANTIDAD | F118: PRECIO | G118: TOTAL VENTA | H118: COSTO | I118: m2 | J118: UF/m2
C119: Departamentos | D119: m2 | E119: =D13 -> 0 | F119: =Datos!F26 -> 32.9 | G119: =E119*F119 -> 0
C120: Estacionamientos Superficie | D120: un | E120: =Datos!C18 -> 0 | F120: =Datos!F27 -> 200 | G120: 0
C121: Estacionamientos Subterraneo | D121: un | E121: =Datos!C16 -> 0 | F121: =Datos!F28 -> 0 | G121: 0
C122: Bodegas | D122: un | E122: =Datos!C20 -> 0 | F122: =Datos!F29 -> 0 | G122: 0
C123: Locales Comerciales | D123: m2 | E123: =Datos!C21 -> 0 | F123: =Datos!F30 -> 0 | G123: 0
C124: Salas | D124: m2 | E124: =Datos!C23 -> 0 | F124: =Datos!F31 -> 0 | G124: 0
C127: INGRESOS BRUTOS | G127: =SUM(G119:G126) -> 0
C129: SUBTOTAL EGRESOS NETO | G129: =+G115+H47+H48 -> 
C131: TERRENO EXENTO (Avalúo fiscal) | D131: gl | E131: =Datos!C10 -> 0 | F131: =Datos!F22 -> 0 | G131: =F131*E131 -> 0 | H131: =G131*0.19 -> 0
C133: INGRESOS NETO | G133: =(G127+G131*0.19)/1.19 -> 0
C135: TOTAL EXCEDENTES | G135: =+G133-G129 ->  | J135: =+G135/G129 ->  | K135: * Debe estar firmado y con nombre en el espacio establecido.
G136: 51928 | J136: 13.1
C137: TIR PURO ANUAL | J137: =IFERROR(Flujo!B111,Flujo!D111) -> 0.152781066

Sheet Flujo
D1: =YEAR(D3) -> 2022 | E1: 2022 | F1: 2022 | G1: 2022 | H1: 2022 | I1: 2022 | J1: 2022 | K1: 2022 | L1: 2022 | M1: 2022 | N1: 2022 | O1: =YEAR(O3) -> 2022 | P1: =YEAR(P3) -> 2023 | Q1: 2023 | R1: 2023 | S1: 2023 | T1: 2023 | U1: 2023 | V1: 2023 | W1: 2023 | X1: 2023 | Y1: 2023 | Z1: 2023 | AA1: 2023 | AB1: 2024 | AC1: 2024 | AD1: 2024 | AE1: 2024 | AF1: 2024 | AG1: 2024 | AH1: 2024 | AI1: 2024 | AJ1: 2024 | AK1: 2024 | AL1: 2024 | AM1: 2024 | AN1: 2025 | AO1: 2025 | AP1: 2025 | AQ1: 2025 | AR1: 2025 | AS1: 2025 | AT1: 2025 | AU1: 2025 | AV1: 2025 | AW1: 2025 | AX1: 2025 | AY1: 2025 | AZ1: 2026 | BA1: 2026 | BB1: 2026 | BC1: 2026 | BD1: 2026 | BE1: 2026 | BF1: 2026 | BG1: 2026 | BH1: 2026 | BI1: 2026 | BJ1: 2026 | BK1: 2026 | BL1: 2027 | BM1: 2027 | BN1: 2027 | BO1: 2027 | BP1: 2027 | BQ1: 2027 | BR1: 2027 | BS1: 2027 | BT1: 2027 | BU1: 2027 | BV1: 2027 | BW1: 2027 | BX1: 2028 | BY1: 2028 | BZ1: 2028
A2: FLUJO DE PROYECTO | D2: 0 | E2: 1 | F2: 2 | G2: 3 | H2: 4 | I2: 5 | J2: 6 | K2: 7 | L2: 8 | M2: 9 | N2: 10 | O2: 11 | P2: 12 | Q2: 13 | R2: 14 | S2: 15 | T2: 16 | U2: 17 | V2: 18 | W2: 19 | X2: 20 | Y2: 21 | Z2: 22 | AA2: 23 | AB2: 24 | AC2: 25 | AD2: 26 | AE2: 27 | AF2: 28 | AG2: 29 | AH2: 30 | AI2: 31 | AJ2: 32 | AK2: 33 | AL2: 34 | AM2: 35 | AN2: 36 | AO2: 37 | AP2: 38 | AQ2: 39 | AR2: 40 | AS2: 41 | AT2: 42 | AU2: 43 | AV2: 44 | AW2: 45 | AX2: 46 | AY2: 47 | AZ2: 48 | BA2: 49 | BB2: 50 | BC2: 51 | BD2: 52 | BE2: 53 | BF2: 54 | BG2: 55 | BH2: 56 | BI2: 57 | BJ2: 58 | BK2: 59 | BL2: 60 | BM2: 61 | BN2: 62 | BO2: 63 | BP2: 64 | BQ2: 65 | BR2: 66 | BS2: 67 | BT2: 68 | BU2: 69 | BV2: 70 | BW2: 71 | BX2: 72 | BY2: 73 | BZ2: 74
D3: 2022-01-01 | E3: =EOMONTH(D3,0)+1 -> 2022-02-01 | F3: =EOMONTH(E3,0)+1 -> 2022-03-01 | G3: 2022-04-01 | H3: 2022-05-01 | I3: 2022-06-01 | J3: 2022-07-01 | K3: 2022-08-01 | L3: 2022-09-01 | M3: 2022-10-01 | N3: 2022-11-01 | O3: 2022-12-01 | P3: 2023-01-01 | Q3: 2023-02-01 | R3: 2023-03-01 | S3: 2023-04-01 | T3: 2023-05-01 | U3: 2023-06-01 | V3: 2023-07-01 | W3: 2023-08-01 | X3: 2023-09-01 | Y3: 2023-10-01 | Z3: 2023-11-01 | AA3: 2023-12-01 | AB3: 2024-01-01 | AC3: 2024-02-01 | AD3: 2024-03-01 | AE3: 2024-04-01 | AF3: 2024-05-01 | AG3: 2024-06-01 | AH3: 2024-07-01 | AI3: 2024-08-01 | AJ3: 2024-09-01 | AK3: 2024-10-01 | AL3: 2024-11-01 | AM3: 2024-12-01 | AN3: 2025-01-01 | AO3: 2025-02-01 | AP3: 2025-03-01 | AQ3: 2025-04-01 | AR3: 2025-05-01 | AS3: 2025-06-01 | AT3: 2025-07-01 | AU3: 2025-08-01 | AV3: 2025-09-01 | AW3: 2025-10-01 | AX3: 2025-11-01 | AY3: 2025-12-01 | AZ3: 2026-01-01 | BA3: 2026-02-01 | BB3: 2026-03-01 | BC3: 2026-04-01 | BD3: 2026-05-01 | BE3: 2026-06-01 | BF3: 2026-07-01 | BG3: 2026-08-01 | BH3: 2026-09-01 | BI3: 2026-10-01 | BJ3: 2026-11-01 | BK3: 2026-12-01 | BL3: 2027-01-01 | BM3: 2027-02-01 | BN3: 2027-03-01 | BO3: 2027-04-01 | BP3: 2027-05-01 | BQ3: 2027-06-01 | BR3: =EOMONTH(BQ3,0)+1 -> 2027-07-01 | BS3: 2027-08-01 | BT3: 2027-09-01 | BU3: 2027-10-01 | BV3: 2027-11-01 | BW3: 2027-12-01 | BX3: 2028-01-01 | BY3: 2028-02-01 | BZ3: 2028-03-01
A4: =Evaluación!C5 -> 0 | D4: mes 0 | E4: mes 1 | F4: mes 2 | G4: mes 3 | H4: mes 4 | I4: mes 5 | J4: mes 6 | K4: mes 7 | L4: mes 8 | M4: mes 9 | N4: mes 10 | O4: mes 11 | P4: mes 12 | Q4: mes 13 | R4: mes 14 | S4: mes 15 | T4: mes 16 | U4: mes 17 | V4: mes 18 | W4: mes 19 | X4: mes 20 | Y4: mes 21 | Z4: mes 22 | AA4: mes 23 | AB4: mes 24 | AC4: mes 25 | AD4: mes 26 | AE4: mes 27 | AF4: mes 28 | AG4: mes 29 | AH4: mes 30 | AI4: mes 31 | AJ4: mes 32 | AK4: mes 33 | AL4: mes 34 | AM4: mes 35 | AN4: mes 36 | AO4: mes 37 | AP4: mes 38 | AQ4: mes 39 | AR4: mes 40 | AS4: mes 41 | AT4: mes 42 | AU4: mes 43 | AV4: mes 44 | AW4: mes 45 | AX4: mes 46 | AY4: mes 47 | AZ4: mes 48 | BA4: mes 49 | BB4: mes 50 | BC4: mes 51 | BD4: mes 52 | BE4: mes 53 | BF4: mes 54 | BG4: mes 55 | BH4: mes 56 | BI4: mes 57 | BJ4: mes 58 | BK4: mes 59 | BL4: mes 60 | BM4: mes 61 | BN4: mes 62 | BO4: mes 63 | BP4: mes 64 | BQ4: mes 65 | BR4: mes 66 | BS4: mes 67 | BT4: mes 68 | BU4: mes 69 | BV4: mes 70 | BW4: mes 71 | BX4: mes 72 | BY4: mes 73 | BZ4: mes 74
A6: 1.- TERRENO
A7: =Evaluación!C22 -> Terreno | B7: =Evaluación!G22 -> 0 | C7: =IF(SUM(D7:BV7)=B7,"OK","") -> OK
A8: =Evaluación!C23 -> Comisión compra | B8: =Evaluación!G23 -> 0 | C8: =IF(SUM(D8:BV8)=B8,"OK","") -> OK | D8: =B8 -> 0
A9: =Evaluación!C24 -> Gastos Demolición | B9: =Evaluación!G24 -> 0 | C9: =IF(SUM(D9:BV9)=B9,"OK","") -> OK | D9: =B9 -> 0
A10: =Evaluación!C25 -> Varios | B10: =Evaluación!G25 -> 0 | C10: =IF(SUM(D10:BV10)=B10,"OK","") -> OK | D10: =B10 -> 0
A11: Avance Macrourbanización | B11: 1 | C11: =IF(SUM(E11:AN11)=B11,"OK","") -> 
C12: =IF(SUM(E12:AN12)=B12,"OK","") -> OK | E12: =+IF(E11="","",E11*$B$12) ->  | AK12: =+IF(AK11="","",AK11*$B$12) ->  | AL12: =+IF(AL11="","",AL11*$B$12) ->  | AM12: =+IF(AM11="","",AM11*$B$12) ->  | AN12: =+IF(AN11="","",AN11*$B$12) -> 
C13: =IF(SUM(E13:AN13)=B13,"OK","") -> OK | E13: =+IF(E12="","",E12*0.19) ->  | AK13: =+IF(AK12="","",AK12*0.19) ->  | AL13: =+IF(AL12="","",AL12*0.19) ->  | AM13: =+IF(AM12="","",AM12*0.19) ->  | AN13: =+IF(AN12="","",AN12*0.19) -> 
C14: =IF(SUM(E14:AN14)=B14,"OK","") -> OK | E14: =+IF(E11="","",E11*$B$14) ->  | K14: =+IF(K11="","",K11*$B$14) -> 
A16: Total Terreno | B16: =+SUM(B7:B10) -> 0 | C16: =IF(SUM(D16:BV16)=B16,"OK","") -> OK | D16: =SUM(D7:D14) -> 0 | E16: =SUM(E7:E14) -> 0 | F16: =SUM(F7:F14) -> 0 | G16: 0 | H16: 0 | I16: 0 | J16: 0 | K16: 0 | L16: 0 | M16: 0 | N16: 0 | O16: 0 | P16: 0 | Q16: 0 | R16: 0 | S16: 0 | T16: 0 | U16: 0 | V16: 0 | W16: 0 | X16: 0 | Y16: 0 | Z16: 0 | AA16: 0 | AB16: 0 | AC16: 0 | AD16: 0 | AE16: 0 | AF16: 0 | AG16: 0 | AH16: 0 | AI16: 0 | AJ16: 0 | AK16: 0 | AL16: 0 | AM16: 0 | AN16: 0 | AO16: 0 | AP16: 0 | AQ16: 0 | AR16: 0 | AS16: =SUM(AS7:AS14) -> 0 | AT16: 0 | AU16: 0 | AV16: 0 | AW16: 0 | AX16: 0 | AY16: 0 | AZ16: 0 | BA16: 0 | BB16: 0 | BC16: =SUM(BC7:BC14) -> 0 | BD16: =SUM(BD7:BD14) -> 0 | BE16: =SUM(BE7:BE14) -> 0 | BF16: =SUM(BF7:BF14) -> 0 | BG16: =SUM(BG7:BG14) -> 0 | BH16: 0 | BI16: 0 | BJ16: 0 | BK16: 0 | BL16: 0 | BM16: =SUM(BM7:BM14) -> 0 | BN16: 0 | BO16: 0 | BP16: 0 | BQ16: 0 | BR16: 0 | BS16: 0 | BT16: 0 | BU16: 0 | BV16: 0 | BW16: =SUM(BW7:BW14) -> 0 | BX16: =SUM(BX7:BX14) -> 0 | BY16: =SUM(BY7:BY14) -> 0 | BZ16: =SUM(BZ7:BZ14) -> 0
A18: 2.- CONSTRUCCIÓN
A19: Avance Edificación | B19: 1 | C19: =IF(SUM(E19:BV19)=B19,"OK","") ->  | E19: =IF(E2>=Datos!$I$11,IFERROR(INDEX(Tabla1[],MATCH(E2,Tabla1[meses constru.],0),2),0),0) -> 0.15 | F19: =IF(F2>=Datos!$I$11,IFERROR(INDEX(Tabla1[],MATCH(F2,Tabla1[meses constru.],0),2),0),0) -> 0.17 | G19: =IF(G2>=Datos!$I$11,IFERROR(INDEX(Tabla1[],MATCH(G2,Tabla1[meses constru.],0),2),0),0) -> 0.2 | H19: =IF(H2>=Datos!$I$11,IFERROR(INDEX(Tabla1[],MATCH(H2,Tabla1[meses constru.],0),2),0),0) -> 0.17 | I19: =IF(I2>=Datos!$I$11,IFERROR(INDEX(Tabla1[],MATCH(I2,Tabla1[meses constru.],0),2),0),0) -> 0.15 | J19: =IF(J2>=Datos!$I$11,IFERROR(INDEX(Tabla1[],MATCH(J2,Tabla1[meses constru.],0),2),0),0) -> 0.08 | K19: =IF(K2>=Datos!$I$11,IFERROR(INDEX(Tabla1[],MATCH(K2,Tabla1[meses constru.],0),2),0),0) -> 0 | L19: =IF(L2>=Datos!$I$11,IFERROR(INDEX(Tabla1[],MATCH(L2,Tabla1[meses constru.],0),2),0),0) -> 0 | M19: =IF(M2>=Datos!$I$11,IFERROR(INDEX(Tabla1[],MATCH(M2,Tabla1[meses constru.],0),2),0),0) -> 0 | N19: =IF(N2>=Datos!$I$11,IFERROR(INDEX(Tabla1[],MATCH(N2,Tabla1[meses constru.],0),2),0),0) -> 0 | O19: =IF(O2>=Datos!$I$11,IFERROR(INDEX(Tabla1[],MATCH(O2,Tabla1[meses constru.],0),2),0),0) -> 0 | P19: =IF(P2>=Datos!$I$11,IFERROR(INDEX(Tabla1[],MATCH(P2,Tabla1[meses constru.],0),2),0),0) -> 0 | Q19: =IF(Q2>=Datos!$I$11,IFERROR(INDEX(Tabla1[],MATCH(Q2,Tabla1[meses constru.],0),2),0),0) -> 0 | R19: =IF(R2>=Datos!$I$11,IFERROR(INDEX(Tabla1[],MATCH(R2,Tabla1[meses constru.],0),2),0),0) -> 0 | S19: =IF(S2>=Datos!$I$11,IFERROR(INDEX(Tabla1[],MATCH(S2,Tabla1[meses constru.],0),2),0),0) -> 0 | T19: =IF(T2>=Datos!$I$11,IFERROR(INDEX(Tabla1[],MATCH(T2,Tabla1[meses constru.],0),2),0),0) -> 0 | U19: =IF(U2>=Datos!$I$11,IFERROR(INDEX(Tabla1[],MATCH(U2,Tabla1[meses constru.],0),2),0),0) -> 0 | V19: =IF(V2>=Datos!$I$11,IFERROR(INDEX(Tabla1[],MATCH(V2,Tabla1[meses constru.],0),2),0),0) -> 0 | W19: =IF(W2>=Datos!$I$11,IFERROR(INDEX(Tabla1[],MATCH(W2,Tabla1[meses constru.],0),2),0),0) -> 0 | X19: =IF(X2>=Datos!$I$11,IFERROR(INDEX(Tabla1[],MATCH(X2,Tabla1[meses constru.],0),2),0),0) -> 0 | Y19: =IF(Y2>=Datos!$I$11,IFERROR(INDEX(Tabla1[],MATCH(Y2,Tabla1[meses constru.],0),2),0),0) -> 0 | Z19: =IF(Z2>=Datos!$I$11,IFERROR(INDEX(Tabla1[],MATCH(Z2,Tabla1[meses constru.],0),2),0),0) -> 0 | AA19: =IF(AA2>=Datos!$I$11,IFERROR(INDEX(Tabla1[],MATCH(AA2,Tabla1[meses constru.],0),2),0),0) -> 0 | AB19: =IF(AB2>=Datos!$I$11,IFERROR(INDEX(Tabla1[],MATCH(AB2,Tabla1[meses constru.],0),2),0),0) -> 0 | AC19: =IF(AC2>=Datos!$I$11,IFERROR(INDEX(Tabla1[],MATCH(AC2,Tabla1[meses constru.],0),2),0),0) -> 0 | AD19: =IF(AD2>=Datos!$I$11,IFERROR(INDEX(Tabla1[],MATCH(AD2,Tabla1[meses constru.],0),2),0),0) -> 0 | AE19: =IF(AE2>=Datos!$I$11,IFERROR(INDEX(Tabla1[],MATCH(AE2,Tabla1[meses constru.],0),2),0),0) -> 0 | AF19: =IF(AF2>=Datos!$I$11,IFERROR(INDEX(Tabla1[],MATCH(AF2,Tabla1[meses constru.],0),2),0),0) -> 0 | AG19: =IF(AG2>=Datos!$I$11,IFERROR(INDEX(Tabla1[],MATCH(AG2,Tabla1[meses constru.],0),2),0),0) -> 0 | AH19: =IF(AH2>=Datos!$I$11,IFERROR(INDEX(Tabla1[],MATCH(AH2,Tabla1[meses constru.],0),2),0),0) -> 0 | AI19: =IF(AI2>=Datos!$I$11,IFERROR(INDEX(Tabla1[],MATCH(AI2,Tabla1[meses constru.],0),2),0),0) -> 0 | AJ19: =IF(AJ2>=Datos!$I$11,IFERROR(INDEX(Tabla1[],MATCH(AJ2,Tabla1[meses constru.],0),2),0),0) -> 0 | AK19: =IF(AK2>=Datos!$I$11,IFERROR(INDEX(Tabla1[],MATCH(AK2,Tabla1[meses constru.],0),2),0),0) -> 0 | AL19: =IF(AL2>=Datos!$I$11,IFERROR(INDEX(Tabla1[],MATCH(AL2,Tabla1[meses constru.],0),2),0),0) -> 0 | AM19: =IF(AM2>=Datos!$I$11,IFERROR(INDEX(Tabla1[],MATCH(AM2,Tabla1[meses constru.],0),2),0),0) -> 0 | AN19: =IF(AN2>=Datos!$I$11,IFERROR(INDEX(Tabla1[],MATCH(AN2,Tabla1[meses constru.],0),2),0),0) -> 0 | AO19: =IF(AO2>=Datos!$I$11,IFERROR(INDEX(Tabla1[],MATCH(AO2,Tabla1[meses constru.],0),2),0),0) -> 0 | AP19: =IF(AP2>=Datos!$I$11,IFERROR(INDEX(Tabla1[],MATCH(AP2,Tabla1[meses constru.],0),2),0),0) -> 0 | AQ19: =IF(AQ2>=Datos!$I$11,IFERROR(INDEX(Tabla1[],MATCH(AQ2,Tabla1[meses constru.],0),2),0),0) -> 0 | AR19: =IF(AR2>=Datos!$I$11,IFERROR(INDEX(Tabla1[],MATCH(AR2,Tabla1[meses constru.],0),2),0),0) -> 0 | AS19: =IF(AS2>=Datos!$I$11,IFERROR(INDEX(Tabla1[],MATCH(AS2,Tabla1[meses constru.],0),2),0),0) -> 0 | AT19: =IF(AT2>=Datos!$I$11,IFERROR(INDEX(Tabla1[],MATCH(AT2,Tabla1[meses constru.],0),2),0),0) -> 0 | AU19: =IF(AU2>=Datos!$I$11,IFERROR(INDEX(Tabla1[],MATCH(AU2,Tabla1[meses constru.],0),2),0),0) -> 0 | AV19: =IF(AV2>=Datos!$I$11,IFERROR(INDEX(Tabla1[],MATCH(AV2,Tabla1[meses constru.],0),2),0),0) -> 0 | AW19: =IF(AW2>=Datos!$I$11,IFERROR(INDEX(Tabla1[],MATCH(AW2,Tabla1[meses constru.],0),2),0),0) -> 0 | AX19: =IF(AX2>=Datos!$I$11,IFERROR(INDEX(Tabla1[],MATCH(AX2,Tabla1[Mes],0),2),0),0) -> 0 | AY19: =IF(AY2>=Datos!$I$11,IFERROR(INDEX(Tabla1[],MATCH(AY2,Tabla1[% Avance],0),2),0),0) -> 0 | AZ19: =IF(AZ2>=Datos!$I$11,IFERROR(INDEX(Tabla1[],MATCH(AZ2,Tabla1[meses constru.],0),2),0),0) -> 0 | BA19: =IF(BA2>=Datos!$I$11,IFERROR(INDEX(Tabla1[],MATCH(BA2,Tabla1[Mes],0),2),0),0) -> 0 | BB19: =IF(BB2>=Datos!$I$11,IFERROR(INDEX(Tabla1[],MATCH(BB2,Tabla1[% Avance],0),2),0),0) -> 0 | BC19: =IF(BC2>=Datos!$I$11,IFERROR(INDEX(Tabla1[],MATCH(BC2,Tabla1[% Avance],0),2),0),0) -> 0 | BD19: =IF(BD2>=Datos!$I$11,IFERROR(INDEX(Tabla1[],MATCH(BD2,Tabla1[meses constru.],0),2),0),0) -> 0 | BE19: =IF(BE2>=Datos!$I$11,IFERROR(INDEX(Tabla1[],MATCH(BE2,Tabla1[% Avance],0),2),0),0) -> 0 | BF19: =IF(BF2>=Datos!$I$11,IFERROR(INDEX(Tabla1[],MATCH(BF2,Tabla1[meses constru.],0),2),0),0) -> 0 | BG19: =IF(BG2>=Datos!$I$11,IFERROR(INDEX(Tabla1[],MATCH(BG2,Tabla1[meses constru.],0),2),0),0) -> 0 | BH19: =IF(BH2>=Datos!$I$11,IFERROR(INDEX(Tabla1[],MATCH(BH2,Tabla1[Mes],0),2),0),0) -> 0 | BI19: =IF(BI2>=Datos!$I$11,IFERROR(INDEX(Tabla1[],MATCH(BI2,Tabla1[meses constru.],0),2),0),0) -> 0 | BJ19: =IF(BJ2>=Datos!$I$11,IFERROR(INDEX(Tabla1[],MATCH(BJ2,Tabla1[Mes],0),2),0),0) -> 0 | BK19: =IF(BK2>=Datos!$I$11,IFERROR(INDEX(Tabla1[],MATCH(BK2,Tabla1[Mes],0),2),0),0) -> 0 | BL19: =IF(BL2>=Datos!$I$11,IFERROR(INDEX(Tabla1[],MATCH(BL2,Tabla1[% Avance],0),2),0),0) -> 0 | BM19: =IF(BM2>=Datos!$I$11,IFERROR(INDEX(Tabla1[],MATCH(BM2,Tabla1[% Avance],0),2),0),0) -> 0 | BN19: =IF(BN2>=Datos!$I$11,IFERROR(INDEX(Tabla1[],MATCH(BN2,Tabla1[meses constru.],0),2),0),0) -> 0 | BO19: =IF(BO2>=Datos!$I$11,IFERROR(INDEX(Tabla1[],MATCH(BO2,Tabla1[meses constru.],0),2),0),0) -> 0 | BP19: =IF(BP2>=Datos!$I$11,IFERROR(INDEX(Tabla1[],MATCH(BP2,Tabla1[Mes],0),2),0),0) -> 0 | BQ19: =IF(BQ2>=Datos!$I$11,IFERROR(INDEX(Tabla1[],MATCH(BQ2,Tabla1[Mes],0),2),0),0) -> 0 | BR19: =IF(BR2>=Datos!$I$11,IFERROR(INDEX(Tabla1[],MATCH(BR2,Tabla1[% Avance],0),2),0),0) -> 0 | BS19: =IF(BS2>=Datos!$I$11,IFERROR(INDEX(Tabla1[],MATCH(BS2,Tabla1[% Avance],0),2),0),0) -> 0 | BT19: =IF(BT2>=Datos!$I$11,IFERROR(INDEX(Tabla1[],MATCH(BT2,Tabla1[meses constru.],0),2),0),0) -> 0 | BU19: =IF(BU2>=Datos!$I$11,IFERROR(INDEX(Tabla1[],MATCH(BU2,Tabla1[meses constru.],0),2),0),0) -> 0 | BV19: =IF(BV2>=Datos!$I$11,IFERROR(INDEX(Tabla1[],MATCH(BV2,Tabla1[Mes],0),2),0),0) -> 0 | BW19: =IF(BW2>=Datos!$I$11,IFERROR(INDEX(Tabla1[],MATCH(BW2,Tabla1[% Avance],0),2),0),0) -> 0 | BX19: =IF(BX2>=Datos!$I$11,IFERROR(INDEX(Tabla1[],MATCH(BX2,Tabla1[meses constru.],0),2),0),0) -> 0 | BY19: =IF(BY2>=Datos!$I$11,IFERROR(INDEX(Tabla1[],MATCH(BY2,Tabla1[Mes],0),2),0),0) -> 0 | BZ19: =IF(BZ2>=Datos!$I$11,IFERROR(INDEX(Tabla1[],MATCH(BZ2,Tabla1[% Avance],0),2),0),0) -> 0
A20: =Evaluación!C62 -> Total Construcción Neto | B20: =Evaluación!G44 -> 0 | C20: =IF(SUM(E20:BV20)=B20,"OK","") -> OK | E20: =+IF(E19="","",E19*$B$20) -> 0 | F20: =+IF(F19="","",F19*$B$20) -> 0 | G20: 0 | H20: 0 | I20: 0 | J20: =+IF(J19="","",J19*$B$20) -> 0 | K20: =+IF(K19="","",K19*$B$20) -> 0 | L20: 0 | M20: 0 | N20: 0 | O20: 0 | P20: 0 | Q20: 0 | R20: 0 | S20: 0 | T20: 0 | U20: 0 | V20: =+IF(V19="","",V19*$B$20) -> 0 | W20: 0 | X20: 0 | Y20: 0 | Z20: 0 | AA20: 0 | AB20: 0 | AC20: 0 | AD20: 0 | AE20: 0 | AF20: 0 | AG20: 0 | AH20: 0 | AI20: 0 | AJ20: 0 | AK20: 0 | AL20: 0 | AM20: 0 | AN20: 0 | AO20: 0 | AP20: 0 | AQ20: 0 | AR20: 0 | AS20: =+IF(AS19="","",AS19*$B$20) -> 0 | AT20: 0 | AU20: 0 | AV20: 0 | AW20: 0 | AX20: 0 | AY20: 0 | AZ20: 0 | BA20: 0 | BB20: 0 | BC20: =+IF(BC19="","",BC19*$B$20) -> 0 | BD20: =+IF(BD19="","",BD19*$B$20) -> 0 | BE20: =+IF(BE19="","",BE19*$B$20) -> 0 | BF20: =+IF(BF19="","",BF19*$B$20) -> 0 | BG20: =+IF(BG19="","",BG19*$B$20) -> 0 | BH20: 0 | BI20: 0 | BJ20: 0 | BK20: 0 | BL20: 0 | BM20: =+IF(BM19="","",BM19*$B$20) -> 0 | BN20: 0 | BO20: 0 | BP20: 0 | BQ20: 0 | BR20: 0 | BS20: 0 | BT20: 0 | BU20: 0 | BV20: 0 | BW20: =+IF(BW19="","",BW19*$B$20) -> 0 | BX20: =+IF(BX19="","",BX19*$B$20) -> 0 | BY20: =+IF(BY19="","",BY19*$B$20) -> 0 | BZ20: =+IF(BZ19="","",BZ19*$B$20) -> 0
A21: Iva Edificación | B21: =Evaluación!H46 -> 0 | C21: =IF(SUM(E21:BV21)=B21,"OK","") -> OK | E21: =+IF(E20="","",E20*0.19) -> 0 | F21: =+IF(F20="","",F20*0.19) -> 0 | G21: 0 | H21: 0 | I21: 0 | J21: =+IF(J20="","",J20*0.19) -> 0 | K21: 0 | L21: 0 | M21: 0 | N21: 0 | O21: 0 | P21: 0 | Q21: 0 | R21: 0 | S21: 0 | T21: 0 | U21: 0 | V21: 0 | W21: 0 | X21: 0 | Y21: 0 | Z21: 0 | AA21: 0 | AB21: 0 | AC21: 0 | AD21: 0 | AE21: 0 | AF21: 0 | AG21: 0 | AH21: 0 | AI21: 0 | AJ21: 0 | AK21: 0 | AL21: 0 | AM21: 0 | AN21: 0 | AO21: 0 | AP21: 0 | AQ21: 0 | AR21: 0 | AS21: =+IF(AS20="","",AS20*0.19) -> 0 | AT21: 0 | AU21: 0 | AV21: 0 | AW21: 0 | AX21: 0 | AY21: 0 | AZ21: 0 | BA21: 0 | BB21: 0 | BC21: =+IF(BC20="","",BC20*0.19) -> 0 | BD21: =+IF(BD20="","",BD20*0.19) -> 0 | BE21: =+IF(BE20="","",BE20*0.19) -> 0 | BF21: =+IF(BF20="","",BF20*0.19) -> 0 | BG21: =+IF(BG20="","",BG20*0.19) -> 0 | BH21: 0 | BI21: 0 | BJ21: 0 | BK21: 0 | BL21: 0 | BM21: =+IF(BM20="","",BM20*0.19) -> 0 | BN21: 0 | BO21: 0 | BP21: 0 | BQ21: 0 | BR21: 0 | BS21: 0 | BT21: 0 | BU21: 0 | BV21: 0 | BW21: =+IF(BW20="","",BW20*0.19) -> 0 | BX21: =+IF(BX20="","",BX20*0.19) -> 0 | BY21: =+IF(BY20="","",BY20*0.19) -> 0 | BZ21: =+IF(BZ20="","",BZ20*0.19) -> 0
A22: Rebaja Tributaria | B22: =+Evaluación!H47+Evaluación!H48 ->  | C22: =IF(SUM(E22:BV22)=B22,"OK","") ->  | E22: =+IF(E20="","",E21*($B$22/$B$21)) ->  | L22: =+IF(L20="","",L21*($B$22/$B$21)) ->  | AS22: =+IF(AS20="","",AS21*($B$22/$B$21)) ->  | BC22: =+IF(BC20="","",BC21*($B$22/$B$21)) ->  | BD22: =+IF(BD20="","",BD21*($B$22/$B$21)) ->  | BE22: =+IF(BE20="","",BE21*($B$22/$B$21)) ->  | BF22: =+IF(BF20="","",BF21*($B$22/$B$21)) ->  | BG22: =+IF(BG20="","",BG21*($B$22/$B$21)) ->  | BM22: =+IF(BM20="","",BM21*($B$22/$B$21)) ->  | BW22: =+IF(BW20="","",BW21*($B$22/$B$21)) ->  | BX22: =+IF(BX20="","",BX21*($B$22/$B$21)) ->  | BY22: =+IF(BY20="","",BY21*($B$22/$B$21)) ->  | BZ22: =+IF(BZ20="","",BZ21*($B$22/$B$21)) -> 
A24: Avance Urbanización | B24: 1 | C24: =IF(SUM(E19:BV19)=B24,"OK","") -> 
B25: =Evaluación!G52 -> 0 | C25: =IF(SUM(E25:BV25)=B25,"OK","") -> OK | E25: =+IF(E19="","",E19*$B$25) -> 0 | F25: =+IF(F19="","",F19*$B$25) -> 0 | G25: =+IF(G19="","",G19*$B$25) -> 0 | H25: 0 | I25: 0 | J25: 0 | K25: 0 | L25: 0 | M25: 0 | N25: 0 | O25: 0 | P25: 0 | Q25: 0 | R25: =+IF(R19="","",R19*$B$25) -> 0 | S25: 0 | T25: 0 | U25: 0 | V25: 0 | W25: 0 | X25: 0 | Y25: 0 | Z25: 0 | AA25: 0 | AB25: 0 | AC25: 0 | AD25: 0 | AE25: 0 | AF25: 0 | AG25: 0 | AH25: 0 | AI25: 0 | AJ25: 0 | AK25: 0 | AL25: 0 | AM25: 0 | AN25: 0 | AO25: 0 | AP25: 0 | AQ25: 0 | AR25: 0 | AS25: =+IF(AS19="","",AS19*$B$25) -> 0 | AT25: 0 | AU25: 0 | AV25: 0 | AW25: 0 | AX25: 0 | AY25: 0 | AZ25: 0 | BA25: 0 | BB25: 0 | BC25: =+IF(BC19="","",BC19*$B$25) -> 0 | BD25: =+IF(BD19="","",BD19*$B$25) -> 0 | BE25: =+IF(BE19="","",BE19*$B$25) -> 0 | BF25: =+IF(BF19="","",BF19*$B$25) -> 0 | BG25: =+IF(BG19="","",BG19*$B$25) -> 0 | BH25: 0 | BI25: 0 | BJ25: 0 | BK25: 0 | BL25: 0 | BM25: =+IF(BM19="","",BM19*$B$25) -> 0 | BN25: 0 | BO25: 0 | BP25: 0 | BQ25: 0 | BR25: 0 | BS25: 0 | BT25: 0 | BU25: 0 | BV25: 0 | BW25: =+IF(BW19="","",BW19*$B$25) -> 0 | BX25: =+IF(BX19="","",BX19*$B$25) -> 0 | BY25: =+IF(BY19="","",BY19*$B$25) -> 0 | BZ25: =+IF(BZ19="","",BZ19*$B$25) -> 0
A26: IVA Urbanización | B26: =Evaluación!H56 -> 0 | C26: =IF(SUM(E26:BV26)=B26,"OK","") -> OK | E26: =+IF(E25="","",E25*0.19) -> 0 | F26: =+IF(F25="","",F25*0.19) -> 0 | G26: 0 | H26: 0 | I26: 0 | J26: 0 | K26: 0 | L26: 0 | M26: 0 | N26: 0 | O26: 0 | P26: 0 | Q26: 0 | R26: =+IF(R25="","",R25*0.19) -> 0 | S26: 0 | T26: 0 | U26: 0 | V26: 0 | W26: 0 | X26: 0 | Y26: 0 | Z26: 0 | AA26: 0 | AB26: 0 | AC26: 0 | AD26: 0 | AE26: 0 | AF26: 0 | AG26: 0 | AH26: 0 | AI26: 0 | AJ26: 0 | AK26: 0 | AL26: 0 | AM26: 0 | AN26: 0 | AO26: 0 | AP26: 0 | AQ26: 0 | AR26: 0 | AS26: =+IF(AS25="","",AS25*0.19) -> 0 | AT26: 0 | AU26: 0 | AV26: 0 | AW26: 0 | AX26: 0 | AY26: 0 | AZ26: 0 | BA26: 0 | BB26: 0 | BC26: =+IF(BC25="","",BC25*0.19) -> 0 | BD26: =+IF(BD25="","",BD25*0.19) -> 0 | BE26: =+IF(BE25="","",BE25*0.19) -> 0 | BF26: =+IF(BF25="","",BF25*0.19) -> 0 | BG26: =+IF(BG25="","",BG25*0.19) -> 0 | BH26: 0 | BI26: 0 | BJ26: 0 | BK26: 0 | BL26: 0 | BM26: =+IF(BM25="","",BM25*0.19) -> 0 | BN26: 0 | BO26: 0 | BP26: 0 | BQ26: 0 | BR26: 0 | BS26: 0 | BT26: 0 | BU26: 0 | BV26: 0 | BW26: =+IF(BW25="","",BW25*0.19) -> 0 | BX26: =+IF(BX25="","",BX25*0.19) -> 0 | BY26: =+IF(BY25="","",BY25*0.19) -> 0 | BZ26: =+IF(BZ25="","",BZ25*0.19) -> 0
A28: Total Construcción Viviendas C/IVA Modificado | B28: =+B26+B25+B22+B21+B20 ->  | C28: =IF(SUM(D28:BV28)=B28,"OK","") ->  | D28: =SUM(D20:D22)+SUM(D25:D26) -> 0 | L28: =SUM(L20:L22)+SUM(L25:L26) ->  | R28: =SUM(R20:R22)+SUM(R25:R26) ->  | S28: =SUM(S20:S22)+SUM(S25:S26) ->  | AS28: =SUM(AS20:AS22)+SUM(AS25:AS26) ->  | BC28: =SUM(BC20:BC22)+SUM(BC25:BC26) ->  | BD28: =SUM(BD20:BD22)+SUM(BD25:BD26) ->  | BE28: =SUM(BE20:BE22)+SUM(BE25:BE26) ->  | BF28: =SUM(BF20:BF22)+SUM(BF25:BF26) ->  | BG28: =SUM(BG20:BG22)+SUM(BG25:BG26) ->  | BM28: =SUM(BM20:BM22)+SUM(BM25:BM26) ->  | BW28: =SUM(BW20:BW22)+SUM(BW25:BW26) ->  | BX28: =SUM(BX20:BX22)+SUM(BX25:BX26) ->  | BY28: =SUM(BY20:BY22)+SUM(BY25:BY26) ->  | BZ28: =SUM(BZ20:BZ22)+SUM(BZ25:BZ26) -> 
A30: 3.- DERECHOS MUNICIPALES Y APORTES
A31: =Evaluación!C65 -> Derechos fusión de Lotes | B31: =Evaluación!G65 -> 0 | C31: =IF(SUM(E31:BV31)=B31,"OK","") -> OK | E31: =IF(E$2=Datos!$I$10,Flujo!$B$31,0) -> 0 | F31: =IF(F$2=Datos!$I$10,Flujo!$B$31,0) -> 0 | G31: =IF(G$2=Datos!$I$10,Flujo!$B$31,0) -> 0 | H31: =IF(H$2=Datos!$I$10,Flujo!$B$31,0) -> 0 | I31: =IF(I$2=Datos!$I$10,Flujo!$B$31,0) -> 0 | J31: =IF(J$2=Datos!$I$10,Flujo!$B$31,0) -> 0 | K31: =IF(K$2=Datos!$I$10,Flujo!$B$31,0) -> 0 | L31: =IF(L$2=Datos!$I$10,Flujo!$B$31,0) -> 0 | M31: =IF(M$2=Datos!$I$10,Flujo!$B$31,0) -> 0 | N31: =IF(N$2=Datos!$I$10,Flujo!$B$31,0) -> 0 | O31: =IF(O$2=Datos!$I$10,Flujo!$B$31,0) -> 0 | P31: =IF(P$2=Datos!$I$10,Flujo!$B$31,0) -> 0 | Q31: =IF(Q$2=Datos!$I$10,Flujo!$B$31,0) -> 0 | R31: =IF(R$2=Datos!$I$10,Flujo!$B$31,0) -> 0 | S31: =IF(S$2=Datos!$I$10,Flujo!$B$31,0) -> 0 | T31: =IF(T$2=Datos!$I$10,Flujo!$B$31,0) -> 0 | U31: =IF(U$2=Datos!$I$10,Flujo!$B$31,0) -> 0 | V31: =IF(V$2=Datos!$I$10,Flujo!$B$31,0) -> 0 | W31: =IF(W$2=Datos!$I$10,Flujo!$B$31,0) -> 0 | X31: =IF(X$2=Datos!$I$10,Flujo!$B$31,0) -> 0 | Y31: =IF(Y$2=Datos!$I$10,Flujo!$B$31,0) -> 0 | Z31: =IF(Z$2=Datos!$I$10,Flujo!$B$31,0) -> 0 | AA31: =IF(AA$2=Datos!$I$10,Flujo!$B$31,0) -> 0 | AB31: =IF(AB$2=Datos!$I$10,Flujo!$B$31,0) -> 0 | AC31: =IF(AC$2=Datos!$I$10,Flujo!$B$31,0) -> 0 | AD31: =IF(AD$2=Datos!$I$10,Flujo!$B$31,0) -> 0 | AE31: =IF(AE$2=Datos!$I$10,Flujo!$B$31,0) -> 0 | AF31: =IF(AF$2=Datos!$I$10,Flujo!$B$31,0) -> 0 | AG31: =IF(AG$2=Datos!$I$10,Flujo!$B$31,0) -> 0 | AH31: =IF(AH$2=Datos!$I$10,Flujo!$B$31,0) -> 0 | AI31: =IF(AI$2=Datos!$I$10,Flujo!$B$31,0) -> 0 | AJ31: =IF(AJ$2=Datos!$I$10,Flujo!$B$31,0) -> 0 | AK31: =IF(AK$2=Datos!$I$10,Flujo!$B$31,0) -> 0 | AL31: =IF(AL$2=Datos!$I$10,Flujo!$B$31,0) -> 0 | AM31: =IF(AM$2=Datos!$I$10,Flujo!$B$31,0) -> 0 | AN31: =IF(AN$2=Datos!$I$10,Flujo!$B$31,0) -> 0 | AO31: =IF(AO$2=Datos!$I$10,Flujo!$B$31,0) -> 0 | AP31: =IF(AP$2=Datos!$I$10,Flujo!$B$31,0) -> 0 | AQ31: =IF(AQ$2=Datos!$I$10,Flujo!$B$31,0) -> 0 | AR31: =IF(AR$2=Datos!$I$10,Flujo!$B$31,0) -> 0 | AS31: =IF(AS$2=Datos!$I$10,Flujo!$B$31,0) -> 0 | AT31: =IF(AT$2=Datos!$I$10,Flujo!$B$31,0) -> 0 | AU31: =IF(AU$2=Datos!$I$10,Flujo!$B$31,0) -> 0 | AV31: =IF(AV$2=Datos!$I$10,Flujo!$B$31,0) -> 0 | AW31: =IF(AW$2=Datos!$I$10,Flujo!$B$31,0) -> 0 | AX31: =IF(AX$2=Datos!$I$10,Flujo!$B$31,0) -> 0 | AY31: =IF(AY$2=Datos!$I$10,Flujo!$B$31,0) -> 0 | AZ31: =IF(AZ$2=Datos!$I$10,Flujo!$B$31,0) -> 0 | BA31: =IF(BA$2=Datos!$I$10,Flujo!$B$31,0) -> 0 | BB31: =IF(BB$2=Datos!$I$10,Flujo!$B$31,0) -> 0 | BC31: =IF(BC$2=Datos!$I$10,Flujo!$B$31,0) -> 0 | BD31: =IF(BD$2=Datos!$I$10,Flujo!$B$31,0) -> 0 | BE31: =IF(BE$2=Datos!$I$10,Flujo!$B$31,0) -> 0 | BF31: =IF(BF$2=Datos!$I$10,Flujo!$B$31,0) -> 0 | BG31: =IF(BG$2=Datos!$I$10,Flujo!$B$31,0) -> 0 | BH31: =IF(BH$2=Datos!$I$10,Flujo!$B$31,0) -> 0 | BI31: =IF(BI$2=Datos!$I$10,Flujo!$B$31,0) -> 0 | BJ31: =IF(BJ$2=Datos!$I$10,Flujo!$B$31,0) -> 0 | BK31: =IF(BK$2=Datos!$I$10,Flujo!$B$31,0) -> 0 | BL31: =IF(BL$2=Datos!$I$10,Flujo!$B$31,0) -> 0 | BM31: =IF(BM$2=Datos!$I$10,Flujo!$B$31,0) -> 0 | BN31: =IF(BN$2=Datos!$I$10,Flujo!$B$31,0) -> 0 | BO31: =IF(BO$2=Datos!$I$10,Flujo!$B$31,0) -> 0 | BP31: =IF(BP$2=Datos!$I$10,Flujo!$B$31,0) -> 0 | BQ31: =IF(BQ$2=Datos!$I$10,Flujo!$B$31,0) -> 0 | BR31: =IF(BR$2=Datos!$I$10,Flujo!$B$31,0) -> 0 | BS31: =IF(BS$2=Datos!$I$10,Flujo!$B$31,0) -> 0 | BT31: =IF(BT$2=Datos!$I$10,Flujo!$B$31,0) -> 0 | BU31: =IF(BU$2=Datos!$I$10,Flujo!$B$31,0) -> 0 | BV31: =IF(BV$2=Datos!$I$10,Flujo!$B$31,0) -> 0 | BW31: =IF(BW$2=Datos!$I$10,Flujo!$B$31,0) -> 0 | BX31: =IF(BX$2=Datos!$I$10,Flujo!$B$31,0) -> 0 | BY31: =IF(BY$2=Datos!$I$10,Flujo!$B$31,0) -> 0 | BZ31: =IF(BZ$2=Datos!$I$10,Flujo!$B$31,0) -> 0
A32: =Evaluación!C66 -> Permiso Edificación | B32: =Evaluación!G66 -> 0 | C32: =IF(SUM(E32:BV32)=B32,"OK","") -> OK | E32: =IF(E$2=Datos!$I$10,Flujo!$B$32,0) -> 0 | F32: =IF(F$2=Datos!$I$10,Flujo!$B$32,0) -> 0 | G32: =IF(G$2=Datos!$I$10,Flujo!$B$32,0) -> 0 | H32: =IF(H$2=Datos!$I$10,Flujo!$B$32,0) -> 0 | I32: =IF(I$2=Datos!$I$10,Flujo!$B$32,0) -> 0 | J32: =IF(J$2=Datos!$I$10,Flujo!$B$32,0) -> 0 | K32: =IF(K$2=Datos!$I$10,Flujo!$B$32,0) -> 0 | L32: =IF(L$2=Datos!$I$10,Flujo!$B$32,0) -> 0 | M32: =IF(M$2=Datos!$I$10,Flujo!$B$32,0) -> 0 | N32: =IF(N$2=Datos!$I$10,Flujo!$B$32,0) -> 0 | O32: =IF(O$2=Datos!$I$10,Flujo!$B$32,0) -> 0 | P32: =IF(P$2=Datos!$I$10,Flujo!$B$32,0) -> 0 | Q32: =IF(Q$2=Datos!$I$10,Flujo!$B$32,0) -> 0 | R32: =IF(R$2=Datos!$I$10,Flujo!$B$32,0) -> 0 | S32: =IF(S$2=Datos!$I$10,Flujo!$B$32,0) -> 0 | T32: =IF(T$2=Datos!$I$10,Flujo!$B$32,0) -> 0 | U32: =IF(U$2=Datos!$I$10,Flujo!$B$32,0) -> 0 | V32: =IF(V$2=Datos!$I$10,Flujo!$B$32,0) -> 0 | W32: =IF(W$2=Datos!$I$10,Flujo!$B$32,0) -> 0 | X32: =IF(X$2=Datos!$I$10,Flujo!$B$32,0) -> 0 | Y32: =IF(Y$2=Datos!$I$10,Flujo!$B$32,0) -> 0 | Z32: =IF(Z$2=Datos!$I$10,Flujo!$B$32,0) -> 0 | AA32: =IF(AA$2=Datos!$I$10,Flujo!$B$32,0) -> 0 | AB32: =IF(AB$2=Datos!$I$10,Flujo!$B$32,0) -> 0 | AC32: =IF(AC$2=Datos!$I$10,Flujo!$B$32,0) -> 0 | AD32: =IF(AD$2=Datos!$I$10,Flujo!$B$32,0) -> 0 | AE32: =IF(AE$2=Datos!$I$10,Flujo!$B$32,0) -> 0 | AF32: =IF(AF$2=Datos!$I$10,Flujo!$B$32,0) -> 0 | AG32: =IF(AG$2=Datos!$I$10,Flujo!$B$32,0) -> 0 | AH32: =IF(AH$2=Datos!$I$10,Flujo!$B$32,0) -> 0 | AI32: =IF(AI$2=Datos!$I$10,Flujo!$B$32,0) -> 0 | AJ32: =IF(AJ$2=Datos!$I$10,Flujo!$B$32,0) -> 0 | AK32: =IF(AK$2=Datos!$I$10,Flujo!$B$32,0) -> 0 | AL32: =IF(AL$2=Datos!$I$10,Flujo!$B$32,0) -> 0 | AM32: =IF(AM$2=Datos!$I$10,Flujo!$B$32,0) -> 0 | AN32: =IF(AN$2=Datos!$I$10,Flujo!$B$32,0) -> 0 | AO32: =IF(AO$2=Datos!$I$10,Flujo!$B$32,0) -> 0 | AP32: =IF(AP$2=Datos!$I$10,Flujo!$B$32,0) -> 0 | AQ32: =IF(AQ$2=Datos!$I$10,Flujo!$B$32,0) -> 0 | AR32: =IF(AR$2=Datos!$I$10,Flujo!$B$32,0) -> 0 | AS32: =IF(AS$2=Datos!$I$10,Flujo!$B$32,0) -> 0 | AT32: =IF(AT$2=Datos!$I$10,Flujo!$B$32,0) -> 0 | AU32: =IF(AU$2=Datos!$I$10,Flujo!$B$32,0) -> 0 | AV32: =IF(AV$2=Datos!$I$10,Flujo!$B$32,0) -> 0 | AW32: =IF(AW$2=Datos!$I$10,Flujo!$B$32,0) -> 0 | AX32: =IF(AX$2=Datos!$I$10,Flujo!$B$32,0) -> 0 | AY32: =IF(AY$2=Datos!$I$10,Flujo!$B$32,0) -> 0 | AZ32: =IF(AZ$2=Datos!$I$10,Flujo!$B$32,0) -> 0 | BA32: =IF(BA$2=Datos!$I$10,Flujo!$B$32,0) -> 0 | BB32: =IF(BB$2=Datos!$I$10,Flujo!$B$32,0) -> 0 | BC32: =IF(BC$2=Datos!$I$10,Flujo!$B$32,0) -> 0 | BD32: =IF(BD$2=Datos!$I$10,Flujo!$B$32,0) -> 0 | BE32: =IF(BE$2=Datos!$I$10,Flujo!$B$32,0) -> 0 | BF32: =IF(BF$2=Datos!$I$10,Flujo!$B$32,0) -> 0 | BG32: =IF(BG$2=Datos!$I$10,Flujo!$B$32,0) -> 0 | BH32: =IF(BH$2=Datos!$I$10,Flujo!$B$32,0) -> 0 | BI32: =IF(BI$2=Datos!$I$10,Flujo!$B$32,0) -> 0 | BJ32: =IF(BJ$2=Datos!$I$10,Flujo!$B$32,0) -> 0 | BK32: =IF(BK$2=Datos!$I$10,Flujo!$B$32,0) -> 0 | BL32: =IF(BL$2=Datos!$I$10,Flujo!$B$32,0) -> 0 | BM32: =IF(BM$2=Datos!$I$10,Flujo!$B$32,0) -> 0 | BN32: =IF(BN$2=Datos!$I$10,Flujo!$B$32,0) -> 0 | BO32: =IF(BO$2=Datos!$I$10,Flujo!$B$32,0) -> 0 | BP32: =IF(BP$2=Datos!$I$10,Flujo!$B$32,0) -> 0 | BQ32: =IF(BQ$2=Datos!$I$10,Flujo!$B$32,0) -> 0 | BR32: =IF(BR$2=Datos!$I$10,Flujo!$B$32,0) -> 0 | BS32: =IF(BS$2=Datos!$I$10,Flujo!$B$32,0) -> 0 | BT32: =IF(BT$2=Datos!$I$10,Flujo!$B$32,0) -> 0 | BU32: =IF(BU$2=Datos!$I$10,Flujo!$B$32,0) -> 0 | BV32: =IF(BV$2=Datos!$I$10,Flujo!$B$32,0) -> 0 | BW32: =IF(BW$2=Datos!$I$10,Flujo!$B$32,0) -> 0 | BX32: =IF(BX$2=Datos!$I$10,Flujo!$B$32,0) -> 0 | BY32: =IF(BY$2=Datos!$I$10,Flujo!$B$32,0) -> 0 | BZ32: =IF(BZ$2=Datos!$I$10,Flujo!$B$32,0) -> 0
A33: =Evaluación!C67 -> Derechos aprobación Loteo | B33: =Evaluación!G67 -> 0 | C33: OK | E33: =IF(E$2=Datos!$I$10,Flujo!$B$33,0) -> 0 | F33: =IF(F$2=Datos!$I$10,Flujo!$B$33,0) -> 0 | G33: =IF(G$2=Datos!$I$10,Flujo!$B$33,0) -> 0 | H33: =IF(H$2=Datos!$I$10,Flujo!$B$33,0) -> 0 | I33: =IF(I$2=Datos!$I$10,Flujo!$B$33,0) -> 0 | J33: =IF(J$2=Datos!$I$10,Flujo!$B$33,0) -> 0 | K33: =IF(K$2=Datos!$I$10,Flujo!$B$33,0) -> 0 | L33: =IF(L$2=Datos!$I$10,Flujo!$B$33,0) -> 0 | M33: =IF(M$2=Datos!$I$10,Flujo!$B$33,0) -> 0 | N33: =IF(N$2=Datos!$I$10,Flujo!$B$33,0) -> 0 | O33: =IF(O$2=Datos!$I$10,Flujo!$B$33,0) -> 0 | P33: =IF(P$2=Datos!$I$10,Flujo!$B$33,0) -> 0 | Q33: =IF(Q$2=Datos!$I$10,Flujo!$B$33,0) -> 0 | R33: =IF(R$2=Datos!$I$10,Flujo!$B$33,0) -> 0 | S33: =IF(S$2=Datos!$I$10,Flujo!$B$33,0) -> 0 | T33: =IF(T$2=Datos!$I$10,Flujo!$B$33,0) -> 0 | U33: =IF(U$2=Datos!$I$10,Flujo!$B$33,0) -> 0 | V33: =IF(V$2=Datos!$I$10,Flujo!$B$33,0) -> 0 | W33: =IF(W$2=Datos!$I$10,Flujo!$B$33,0) -> 0 | X33: =IF(X$2=Datos!$I$10,Flujo!$B$33,0) -> 0 | Y33: =IF(Y$2=Datos!$I$10,Flujo!$B$33,0) -> 0 | Z33: =IF(Z$2=Datos!$I$10,Flujo!$B$33,0) -> 0 | AA33: =IF(AA$2=Datos!$I$10,Flujo!$B$33,0) -> 0 | AB33: =IF(AB$2=Datos!$I$10,Flujo!$B$33,0) -> 0 | AC33: =IF(AC$2=Datos!$I$10,Flujo!$B$33,0) -> 0 | AD33: =IF(AD$2=Datos!$I$10,Flujo!$B$33,0) -> 0 | AE33: =IF(AE$2=Datos!$I$10,Flujo!$B$33,0) -> 0 | AF33: =IF(AF$2=Datos!$I$10,Flujo!$B$33,0) -> 0 | AG33: =IF(AG$2=Datos!$I$10,Flujo!$B$33,0) -> 0 | AH33: =IF(AH$2=Datos!$I$10,Flujo!$B$33,0) -> 0 | AI33: =IF(AI$2=Datos!$I$10,Flujo!$B$33,0) -> 0 | AJ33: =IF(AJ$2=Datos!$I$10,Flujo!$B$33,0) -> 0 | AK33: =IF(AK$2=Datos!$I$10,Flujo!$B$33,0) -> 0 | AL33: =IF(AL$2=Datos!$I$10,Flujo!$B$33,0) -> 0 | AM33: =IF(AM$2=Datos!$I$10,Flujo!$B$33,0) -> 0 | AN33: =IF(AN$2=Datos!$I$10,Flujo!$B$33,0) -> 0 | AO33: =IF(AO$2=Datos!$I$10,Flujo!$B$33,0) -> 0 | AP33: =IF(AP$2=Datos!$I$10,Flujo!$B$33,0) -> 0 | AQ33: =IF(AQ$2=Datos!$I$10,Flujo!$B$33,0) -> 0 | AR33: =IF(AR$2=Datos!$I$10,Flujo!$B$33,0) -> 0 | AS33: =IF(AS$2=Datos!$I$10,Flujo!$B$33,0) -> 0 | AT33: =IF(AT$2=Datos!$I$10,Flujo!$B$33,0) -> 0 | AU33: =IF(AU$2=Datos!$I$10,Flujo!$B$33,0) -> 0 | AV33: =IF(AV$2=Datos!$I$10,Flujo!$B$33,0) -> 0 | AW33: =IF(AW$2=Datos!$I$10,Flujo!$B$33,0) -> 0 | AX33: =IF(AX$2=Datos!$I$10,Flujo!$B$33,0) -> 0 | AY33: =IF(AY$2=Datos!$I$10,Flujo!$B$33,0) -> 0 | AZ33: =IF(AZ$2=Datos!$I$10,Flujo!$B$33,0) -> 0 | BA33: =IF(BA$2=Datos!$I$10,Flujo!$B$33,0) -> 0 | BB33: =IF(BB$2=Datos!$I$10,Flujo!$B$33,0) -> 0 | BC33: =IF(BC$2=Datos!$I$10,Flujo!$B$33,0) -> 0 | BD33: =IF(BD$2=Datos!$I$10,Flujo!$B$33,0) -> 0 | BE33: =IF(BE$2=Datos!$I$10,Flujo!$B$33,0) -> 0 | BF33: =IF(BF$2=Datos!$I$10,Flujo!$B$33,0) -> 0 | BG33: =IF(BG$2=Datos!$I$10,Flujo!$B$33,0) -> 0 | BH33: =IF(BH$2=Datos!$I$10,Flujo!$B$33,0) -> 0 | BI33: =IF(BI$2=Datos!$I$10,Flujo!$B$33,0) -> 0 | BJ33: =IF(BJ$2=Datos!$I$10,Flujo!$B$33,0) -> 0 | BK33: =IF(BK$2=Datos!$I$10,Flujo!$B$33,0) -> 0 | BL33: =IF(BL$2=Datos!$I$10,Flujo!$B$33,0) -> 0 | BM33: =IF(BM$2=Datos!$I$10,Flujo!$B$33,0) -> 0 | BN33: =IF(BN$2=Datos!$I$10,Flujo!$B$33,0) -> 0 | BO33: =IF(BO$2=Datos!$I$10,Flujo!$B$33,0) -> 0 | BP33: =IF(BP$2=Datos!$I$10,Flujo!$B$33,0) -> 0 | BQ33: =IF(BQ$2=Datos!$I$10,Flujo!$B$33,0) -> 0 | BR33: =IF(BR$2=Datos!$I$10,Flujo!$B$33,0) -> 0 | BS33: =IF(BS$2=Datos!$I$10,Flujo!$B$33,0) -> 0 | BT33: =IF(BT$2=Datos!$I$10,Flujo!$B$33,0) -> 0 | BU33: =IF(BU$2=Datos!$I$10,Flujo!$B$33,0) -> 0 | BV33: =IF(BV$2=Datos!$I$10,Flujo!$B$33,0) -> 0 | BW33: =IF(BW$2=Datos!$I$10,Flujo!$B$33,0) -> 0 | BX33: =IF(BX$2=Datos!$I$10,Flujo!$B$33,0) -> 0 | BY33: =IF(BY$2=Datos!$I$10,Flujo!$B$33,0) -> 0 | BZ33: =IF(BZ$2=Datos!$I$10,Flujo!$B$33,0) -> 0
A34: =Evaluación!C68 -> Aportes Servicios y Empalmes | B34: =Evaluación!G68 -> 0 | C34: OK | E34: =IF(E$2=Datos!$I$11-3,Flujo!$B$34,0) -> 0 | F34: =IF(F$2=Datos!$I$11-3,Flujo!$B$34,0) -> 0 | G34: =IF(G$2=Datos!$I$11-3,Flujo!$B$34,0) -> 0 | H34: =IF(H$2=Datos!$I$11-3,Flujo!$B$34,0) -> 0 | I34: =IF(I$2=Datos!$I$11-3,Flujo!$B$34,0) -> 0 | J34: =IF(J$2=Datos!$I$11-3,Flujo!$B$34,0) -> 0 | K34: =IF(K$2=Datos!$I$11-3,Flujo!$B$34,0) -> 0 | L34: =IF(L$2=Datos!$I$11-3,Flujo!$B$34,0) -> 0 | M34: =IF(M$2=Datos!$I$11-3,Flujo!$B$34,0) -> 0 | N34: =IF(N$2=Datos!$I$11-3,Flujo!$B$34,0) -> 0 | O34: =IF(O$2=Datos!$I$11-3,Flujo!$B$34,0) -> 0 | P34: =IF(P$2=Datos!$I$11-3,Flujo!$B$34,0) -> 0 | Q34: =IF(Q$2=Datos!$I$11-3,Flujo!$B$34,0) -> 0 | R34: =IF(R$2=Datos!$I$11-3,Flujo!$B$34,0) -> 0 | S34: =IF(S$2=Datos!$I$11-3,Flujo!$B$34,0) -> 0 | T34: =IF(T$2=Datos!$I$11-3,Flujo!$B$34,0) -> 0 | U34: =IF(U$2=Datos!$I$11-3,Flujo!$B$34,0) -> 0 | V34: =IF(V$2=Datos!$I$11-3,Flujo!$B$34,0) -> 0 | W34: =IF(W$2=Datos!$I$11-3,Flujo!$B$34,0) -> 0 | X34: =IF(X$2=Datos!$I$11-3,Flujo!$B$34,0) -> 0 | Y34: =IF(Y$2=Datos!$I$11-3,Flujo!$B$34,0) -> 0 | Z34: =IF(Z$2=Datos!$I$11-3,Flujo!$B$34,0) -> 0 | AA34: =IF(AA$2=Datos!$I$11-3,Flujo!$B$34,0) -> 0 | AB34: =IF(AB$2=Datos!$I$11-3,Flujo!$B$34,0) -> 0 | AC34: =IF(AC$2=Datos!$I$11-3,Flujo!$B$34,0) -> 0 | AD34: =IF(AD$2=Datos!$I$11-3,Flujo!$B$34,0) -> 0 | AE34: =IF(AE$2=Datos!$I$11-3,Flujo!$B$34,0) -> 0 | AF34: =IF(AF$2=Datos!$I$11-3,Flujo!$B$34,0) -> 0 | AG34: =IF(AG$2=Datos!$I$11-3,Flujo!$B$34,0) -> 0 | AH34: =IF(AH$2=Datos!$I$11-3,Flujo!$B$34,0) -> 0 | AI34: =IF(AI$2=Datos!$I$11-3,Flujo!$B$34,0) -> 0 | AJ34: =IF(AJ$2=Datos!$I$11-3,Flujo!$B$34,0) -> 0 | AK34: =IF(AK$2=Datos!$I$11-3,Flujo!$B$34,0) -> 0 | AL34: =IF(AL$2=Datos!$I$11-3,Flujo!$B$34,0) -> 0 | AM34: =IF(AM$2=Datos!$I$11-3,Flujo!$B$34,0) -> 0 | AN34: =IF(AN$2=Datos!$I$11-3,Flujo!$B$34,0) -> 0 | AO34: =IF(AO$2=Datos!$I$11-3,Flujo!$B$34,0) -> 0 | AP34: =IF(AP$2=Datos!$I$11-3,Flujo!$B$34,0) -> 0 | AQ34: =IF(AQ$2=Datos!$I$11-3,Flujo!$B$34,0) -> 0 | AR34: =IF(AR$2=Datos!$I$11-3,Flujo!$B$34,0) -> 0 | AS34: =IF(AS$2=Datos!$I$11-3,Flujo!$B$34,0) -> 0 | AT34: =IF(AT$2=Datos!$I$11-3,Flujo!$B$34,0) -> 0 | AU34: =IF(AU$2=Datos!$I$11-3,Flujo!$B$34,0) -> 0 | AV34: =IF(AV$2=Datos!$I$11-3,Flujo!$B$34,0) -> 0 | AW34: =IF(AW$2=Datos!$I$11-3,Flujo!$B$34,0) -> 0 | AX34: =IF(AX$2=Datos!$I$11-3,Flujo!$B$34,0) -> 0 | AY34: =IF(AY$2=Datos!$I$11-3,Flujo!$B$34,0) -> 0 | AZ34: =IF(AZ$2=Datos!$I$11-3,Flujo!$B$34,0) -> 0 | BA34: =IF(BA$2=Datos!$I$11-3,Flujo!$B$34,0) -> 0 | BB34: =IF(BB$2=Datos!$I$11-3,Flujo!$B$34,0) -> 0 | BC34: =IF(BC$2=Datos!$I$11-3,Flujo!$B$34,0) -> 0 | BD34: =IF(BD$2=Datos!$I$11-3,Flujo!$B$34,0) -> 0 | BE34: =IF(BE$2=Datos!$I$11-3,Flujo!$B$34,0) -> 0 | BF34: =IF(BF$2=Datos!$I$11-3,Flujo!$B$34,0) -> 0 | BG34: =IF(BG$2=Datos!$I$11-3,Flujo!$B$34,0) -> 0 | BH34: =IF(BH$2=Datos!$I$11-3,Flujo!$B$34,0) -> 0 | BI34: =IF(BI$2=Datos!$I$11-3,Flujo!$B$34,0) -> 0 | BJ34: =IF(BJ$2=Datos!$I$11-3,Flujo!$B$34,0) -> 0 | BK34: =IF(BK$2=Datos!$I$11-3,Flujo!$B$34,0) -> 0 | BL34: =IF(BL$2=Datos!$I$11-3,Flujo!$B$34,0) -> 0 | BM34: =IF(BM$2=Datos!$I$11-3,Flujo!$B$34,0) -> 0 | BN34: =IF(BN$2=Datos!$I$11-3,Flujo!$B$34,0) -> 0 | BO34: =IF(BO$2=Datos!$I$11-3,Flujo!$B$34,0) -> 0 | BP34: =IF(BP$2=Datos!$I$11-3,Flujo!$B$34,0) -> 0 | BQ34: =IF(BQ$2=Datos!$I$11-3,Flujo!$B$34,0) -> 0 | BR34: =IF(BR$2=Datos!$I$11-3,Flujo!$B$34,0) -> 0 | BS34: =IF(BS$2=Datos!$I$11-3,Flujo!$B$34,0) -> 0 | BT34: =IF(BT$2=Datos!$I$11-3,Flujo!$B$34,0) -> 0 | BU34: =IF(BU$2=Datos!$I$11-3,Flujo!$B$34,0) -> 0 | BV34: =IF(BV$2=Datos!$I$11-3,Flujo!$B$34,0) -> 0 | BW34: =IF(BW$2=Datos!$I$11-3,Flujo!$B$34,0) -> 0 | BX34: =IF(BX$2=Datos!$I$11-3,Flujo!$B$34,0) -> 0 | BY34: =IF(BY$2=Datos!$I$11-3,Flujo!$B$34,0) -> 0 | BZ34: =IF(BZ$2=Datos!$I$11-3,Flujo!$B$34,0) -> 0
A35: =Evaluación!C69 -> Empalmes | B35: =Evaluación!G69 -> 0 | C35: OK | E35: =IF(E$2=Datos!$I$11-3,Flujo!$B$35,0) -> 0 | F35: =IF(F$2=Datos!$I$11-3,Flujo!$B$35,0) -> 0 | G35: =IF(G$2=Datos!$I$11-3,Flujo!$B$35,0) -> 0 | H35: =IF(H$2=Datos!$I$11-3,Flujo!$B$35,0) -> 0 | I35: =IF(I$2=Datos!$I$11-3,Flujo!$B$35,0) -> 0 | J35: =IF(J$2=Datos!$I$11-3,Flujo!$B$35,0) -> 0 | K35: =IF(K$2=Datos!$I$11-3,Flujo!$B$35,0) -> 0 | L35: =IF(L$2=Datos!$I$11-3,Flujo!$B$35,0) -> 0 | M35: =IF(M$2=Datos!$I$11-3,Flujo!$B$35,0) -> 0 | N35: =IF(N$2=Datos!$I$11-3,Flujo!$B$35,0) -> 0 | O35: =IF(O$2=Datos!$I$11-3,Flujo!$B$35,0) -> 0 | P35: =IF(P$2=Datos!$I$11-3,Flujo!$B$35,0) -> 0 | Q35: =IF(Q$2=Datos!$I$11-3,Flujo!$B$35,0) -> 0 | R35: =IF(R$2=Datos!$I$11-3,Flujo!$B$35,0) -> 0 | S35: =IF(S$2=Datos!$I$11-3,Flujo!$B$35,0) -> 0 | T35: =IF(T$2=Datos!$I$11-3,Flujo!$B$35,0) -> 0 | U35: =IF(U$2=Datos!$I$11-3,Flujo!$B$35,0) -> 0 | V35: =IF(V$2=Datos!$I$11-3,Flujo!$B$35,0) -> 0 | W35: =IF(W$2=Datos!$I$11-3,Flujo!$B$35,0) -> 0 | X35: =IF(X$2=Datos!$I$11-3,Flujo!$B$35,0) -> 0 | Y35: =IF(Y$2=Datos!$I$11-3,Flujo!$B$35,0) -> 0 | Z35: =IF(Z$2=Datos!$I$11-3,Flujo!$B$35,0) -> 0 | AA35: =IF(AA$2=Datos!$I$11-3,Flujo!$B$35,0) -> 0 | AB35: =IF(AB$2=Datos!$I$11-3,Flujo!$B$35,0) -> 0 | AC35: =IF(AC$2=Datos!$I$11-3,Flujo!$B$35,0) -> 0 | AD35: =IF(AD$2=Datos!$I$11-3,Flujo!$B$35,0) -> 0 | AE35: =IF(AE$2=Datos!$I$11-3,Flujo!$B$35,0) -> 0 | AF35: =IF(AF$2=Datos!$I$11-3,Flujo!$B$35,0) -> 0 | AG35: =IF(AG$2=Datos!$I$11-3,Flujo!$B$35,0) -> 0 | AH35: =IF(AH$2=Datos!$I$11-3,Flujo!$B$35,0) -> 0 | AI35: =IF(AI$2=Datos!$I$11-3,Flujo!$B$35,0) -> 0 | AJ35: =IF(AJ$2=Datos!$I$11-3,Flujo!$B$35,0) -> 0 | AK35: =IF(AK$2=Datos!$I$11-3,Flujo!$B$35,0) -> 0 | AL35: =IF(AL$2=Datos!$I$11-3,Flujo!$B$35,0) -> 0 | AM35: =IF(AM$2=Datos!$I$11-3,Flujo!$B$35,0) -> 0 | AN35: =IF(AN$2=Datos!$I$11-3,Flujo!$B$35,0) -> 0 | AO35: =IF(AO$2=Datos!$I$11-3,Flujo!$B$35,0) -> 0 | AP35: =IF(AP$2=Datos!$I$11-3,Flujo!$B$35,0) -> 0 | AQ35: =IF(AQ$2=Datos!$I$11-3,Flujo!$B$35,0) -> 0 | AR35: =IF(AR$2=Datos!$I$11-3,Flujo!$B$35,0) -> 0 | AS35: =IF(AS$2=Datos!$I$11-3,Flujo!$B$35,0) -> 0 | AT35: =IF(AT$2=Datos!$I$11-3,Flujo!$B$35,0) -> 0 | AU35: =IF(AU$2=Datos!$I$11-3,Flujo!$B$35,0) -> 0 | AV35: =IF(AV$2=Datos!$I$11-3,Flujo!$B$35,0) -> 0 | AW35: =IF(AW$2=Datos!$I$11-3,Flujo!$B$35,0) -> 0 | AX35: =IF(AX$2=Datos!$I$11-3,Flujo!$B$35,0) -> 0 | AY35: =IF(AY$2=Datos!$I$11-3,Flujo!$B$35,0) -> 0 | AZ35: =IF(AZ$2=Datos!$I$11-3,Flujo!$B$35,0) -> 0 | BA35: =IF(BA$2=Datos!$I$11-3,Flujo!$B$35,0) -> 0 | BB35: =IF(BB$2=Datos!$I$11-3,Flujo!$B$35,0) -> 0 | BC35: =IF(BC$2=Datos!$I$11-3,Flujo!$B$35,0) -> 0 | BD35: =IF(BD$2=Datos!$I$11-3,Flujo!$B$35,0) -> 0 | BE35: =IF(BE$2=Datos!$I$11-3,Flujo!$B$35,0) -> 0 | BF35: =IF(BF$2=Datos!$I$11-3,Flujo!$B$35,0) -> 0 | BG35: =IF(BG$2=Datos!$I$11-3,Flujo!$B$35,0) -> 0 | BH35: =IF(BH$2=Datos!$I$11-3,Flujo!$B$35,0) -> 0 | BI35: =IF(BI$2=Datos!$I$11-3,Flujo!$B$35,0) -> 0 | BJ35: =IF(BJ$2=Datos!$I$11-3,Flujo!$B$35,0) -> 0 | BK35: =IF(BK$2=Datos!$I$11-3,Flujo!$B$35,0) -> 0 | BL35: =IF(BL$2=Datos!$I$11-3,Flujo!$B$35,0) -> 0 | BM35: =IF(BM$2=Datos!$I$11-3,Flujo!$B$35,0) -> 0 | BN35: =IF(BN$2=Datos!$I$11-3,Flujo!$B$35,0) -> 0 | BO35: =IF(BO$2=Datos!$I$11-3,Flujo!$B$35,0) -> 0 | BP35: =IF(BP$2=Datos!$I$11-3,Flujo!$B$35,0) -> 0 | BQ35: =IF(BQ$2=Datos!$I$11-3,Flujo!$B$35,0) -> 0 | BR35: =IF(BR$2=Datos!$I$11-3,Flujo!$B$35,0) -> 0 | BS35: =IF(BS$2=Datos!$I$11-3,Flujo!$B$35,0) -> 0 | BT35: =IF(BT$2=Datos!$I$11-3,Flujo!$B$35,0) -> 0 | BU35: =IF(BU$2=Datos!$I$11-3,Flujo!$B$35,0) -> 0 | BV35: =IF(BV$2=Datos!$I$11-3,Flujo!$B$35,0) -> 0 | BW35: =IF(BW$2=Datos!$I$11-3,Flujo!$B$35,0) -> 0 | BX35: =IF(BX$2=Datos!$I$11-3,Flujo!$B$35,0) -> 0 | BY35: =IF(BY$2=Datos!$I$11-3,Flujo!$B$35,0) -> 0 | BZ35: =IF(BZ$2=Datos!$I$11-3,Flujo!$B$35,0) -> 0
A36: =Evaluación!C70 -> Modificación de Proyecto | B36: =Evaluación!G70 -> 0 | C36: OK | E36: =IF(E$2=Datos!$I$11-3,Flujo!$B$36,0) -> 0 | F36: =IF(F$2=Datos!$I$11-3,Flujo!$B$36,0) -> 0 | G36: =IF(G$2=Datos!$I$11-3,Flujo!$B$36,0) -> 0 | H36: =IF(H$2=Datos!$I$11-3,Flujo!$B$36,0) -> 0 | I36: =IF(I$2=Datos!$I$11-3,Flujo!$B$36,0) -> 0 | J36: =IF(J$2=Datos!$I$11-3,Flujo!$B$36,0) -> 0 | K36: =IF(K$2=Datos!$I$11-3,Flujo!$B$36,0) -> 0 | L36: =IF(L$2=Datos!$I$11-3,Flujo!$B$36,0) -> 0 | M36: =IF(M$2=Datos!$I$11-3,Flujo!$B$36,0) -> 0 | N36: =IF(N$2=Datos!$I$11-3,Flujo!$B$36,0) -> 0 | O36: =IF(O$2=Datos!$I$11-3,Flujo!$B$36,0) -> 0 | P36: =IF(P$2=Datos!$I$11-3,Flujo!$B$36,0) -> 0 | Q36: =IF(Q$2=Datos!$I$11-3,Flujo!$B$36,0) -> 0 | R36: =IF(R$2=Datos!$I$11-3,Flujo!$B$36,0) -> 0 | S36: =IF(S$2=Datos!$I$11-3,Flujo!$B$36,0) -> 0 | T36: =IF(T$2=Datos!$I$11-3,Flujo!$B$36,0) -> 0 | U36: =IF(U$2=Datos!$I$11-3,Flujo!$B$36,0) -> 0 | V36: =IF(V$2=Datos!$I$11-3,Flujo!$B$36,0) -> 0 | W36: =IF(W$2=Datos!$I$11-3,Flujo!$B$36,0) -> 0 | X36: =IF(X$2=Datos!$I$11-3,Flujo!$B$36,0) -> 0 | Y36: =IF(Y$2=Datos!$I$11-3,Flujo!$B$36,0) -> 0 | Z36: =IF(Z$2=Datos!$I$11-3,Flujo!$B$36,0) -> 0 | AA36: =IF(AA$2=Datos!$I$11-3,Flujo!$B$36,0) -> 0 | AB36: =IF(AB$2=Datos!$I$11-3,Flujo!$B$36,0) -> 0 | AC36: =IF(AC$2=Datos!$I$11-3,Flujo!$B$36,0) -> 0 | AD36: =IF(AD$2=Datos!$I$11-3,Flujo!$B$36,0) -> 0 | AE36: =IF(AE$2=Datos!$I$11-3,Flujo!$B$36,0) -> 0 | AF36: =IF(AF$2=Datos!$I$11-3,Flujo!$B$36,0) -> 0 | AG36: =IF(AG$2=Datos!$I$11-3,Flujo!$B$36,0) -> 0 | AH36: =IF(AH$2=Datos!$I$11-3,Flujo!$B$36,0) -> 0 | AI36: =IF(AI$2=Datos!$I$11-3,Flujo!$B$36,0) -> 0 | AJ36: =IF(AJ$2=Datos!$I$11-3,Flujo!$B$36,0) -> 0 | AK36: =IF(AK$2=Datos!$I$11-3,Flujo!$B$36,0) -> 0 | AL36: =IF(AL$2=Datos!$I$11-3,Flujo!$B$36,0) -> 0 | AM36: =IF(AM$2=Datos!$I$11-3,Flujo!$B$36,0) -> 0 | AN36: =IF(AN$2=Datos!$I$11-3,Flujo!$B$36,0) -> 0 | AO36: =IF(AO$2=Datos!$I$11-3,Flujo!$B$36,0) -> 0 | AP36: =IF(AP$2=Datos!$I$11-3,Flujo!$B$36,0) -> 0 | AQ36: =IF(AQ$2=Datos!$I$11-3,Flujo!$B$36,0) -> 0 | AR36: =IF(AR$2=Datos!$I$11-3,Flujo!$B$36,0) -> 0 | AS36: =IF(AS$2=Datos!$I$11-3,Flujo!$B$36,0) -> 0 | AT36: =IF(AT$2=Datos!$I$11-3,Flujo!$B$36,0) -> 0 | AU36: =IF(AU$2=Datos!$I$11-3,Flujo!$B$36,0) -> 0 | AV36: =IF(AV$2=Datos!$I$11-3,Flujo!$B$36,0) -> 0 | AW36: =IF(AW$2=Datos!$I$11-3,Flujo!$B$36,0) -> 0 | AX36: =IF(AX$2=Datos!$I$11-3,Flujo!$B$36,0) -> 0 | AY36: =IF(AY$2=Datos!$I$11-3,Flujo!$B$36,0) -> 0 | AZ36: =IF(AZ$2=Datos!$I$11-3,Flujo!$B$36,0) -> 0 | BA36: =IF(BA$2=Datos!$I$11-3,Flujo!$B$36,0) -> 0 | BB36: =IF(BB$2=Datos!$I$11-3,Flujo!$B$36,0) -> 0 | BC36: =IF(BC$2=Datos!$I$11-3,Flujo!$B$36,0) -> 0 | BD36: =IF(BD$2=Datos!$I$11-3,Flujo!$B$36,0) -> 0 | BE36: =IF(BE$2=Datos!$I$11-3,Flujo!$B$36,0) -> 0 | BF36: =IF(BF$2=Datos!$I$11-3,Flujo!$B$36,0) -> 0 | BG36: =IF(BG$2=Datos!$I$11-3,Flujo!$B$36,0) -> 0 | BH36: =IF(BH$2=Datos!$I$11-3,Flujo!$B$36,0) -> 0 | BI36: =IF(BI$2=Datos!$I$11-3,Flujo!$B$36,0) -> 0 | BJ36: =IF(BJ$2=Datos!$I$11-3,Flujo!$B$36,0) -> 0 | BK36: =IF(BK$2=Datos!$I$11-3,Flujo!$B$36,0) -> 0 | BL36: =IF(BL$2=Datos!$I$11-3,Flujo!$B$36,0) -> 0 | BM36: =IF(BM$2=Datos!$I$11-3,Flujo!$B$36,0) -> 0 | BN36: =IF(BN$2=Datos!$I$11-3,Flujo!$B$36,0) -> 0 | BO36: =IF(BO$2=Datos!$I$11-3,Flujo!$B$36,0) -> 0 | BP36: =IF(BP$2=Datos!$I$11-3,Flujo!$B$36,0) -> 0 | BQ36: =IF(BQ$2=Datos!$I$11-3,Flujo!$B$36,0) -> 0 | BR36: =IF(BR$2=Datos!$I$11-3,Flujo!$B$36,0) -> 0 | BS36: =IF(BS$2=Datos!$I$11-3,Flujo!$B$36,0) -> 0 | BT36: =IF(BT$2=Datos!$I$11-3,Flujo!$B$36,0) -> 0 | BU36: =IF(BU$2=Datos!$I$11-3,Flujo!$B$36,0) -> 0 | BV36: =IF(BV$2=Datos!$I$11-3,Flujo!$B$36,0) -> 0 | BW36: =IF(BW$2=Datos!$I$11-3,Flujo!$B$36,0) -> 0 | BX36: =IF(BX$2=Datos!$I$11-3,Flujo!$B$36,0) -> 0 | BY36: =IF(BY$2=Datos!$I$11-3,Flujo!$B$36,0) -> 0 | BZ36: =IF(BZ$2=Datos!$I$11-3,Flujo!$B$36,0) -> 0
A37: IVA Permisos y Aportes | C37: OK
A39: Total Permisos y Aportes | B39: =SUM(B31:B38) -> 0 | C39: =IF(SUM(D39:BV39)=B39,"OK","") -> OK | D39: =SUM(D31:D38) -> 0 | E39: 0 | F39: 0 | G39: 0 | H39: 0 | I39: 0 | J39: 0 | K39: 0 | L39: 0 | M39: 0 | N39: 0 | O39: 0 | P39: 0 | Q39: 0 | R39: 0 | S39: 0 | T39: 0 | U39: 0 | V39: 0 | W39: 0 | X39: 0 | Y39: 0 | Z39: 0 | AA39: 0 | AB39: 0 | AC39: 0 | AD39: 0 | AE39: 0 | AF39: 0 | AG39: 0 | AH39: 0 | AI39: =SUM(AI31:AI38) -> 0 | AJ39: 0 | AK39: 0 | AL39: 0 | AM39: 0 | AN39: 0 | AO39: 0 | AP39: 0 | AQ39: 0 | AR39: 0 | AS39: =SUM(AS31:AS38) -> 0 | AT39: 0 | AU39: 0 | AV39: 0 | AW39: 0 | AX39: 0 | AY39: 0 | AZ39: 0 | BA39: 0 | BB39: 0 | BC39: =SUM(BC31:BC38) -> 0 | BD39: =SUM(BD31:BD38) -> 0 | BE39: =SUM(BE31:BE38) -> 0 | BF39: =SUM(BF31:BF38) -> 0 | BG39: =SUM(BG31:BG38) -> 0 | BH39: 0 | BI39: 0 | BJ39: 0 | BK39: 0 | BL39: 0 | BM39: =SUM(BM31:BM38) -> 0 | BN39: 0 | BO39: 0 | BP39: 0 | BQ39: 0 | BR39: 0 | BS39: 0 | BT39: 0 | BU39: 0 | BV39: 0 | BW39: =SUM(BW31:BW38) -> 0 | BX39: =SUM(BX31:BX38) -> 0 | BY39: =SUM(BY31:BY38) -> 0 | BZ39: =SUM(BZ31:BZ38) -> 0
A41: 4.- HONORARIOS Y PROYECTOS | R41: mes 7 | S41: Mes 7 | T41: mes 7 | U41: 50% mes 7 | V41: 40% distribuye en la construccion (cuotas iguales) | W41: 10% RM | X41: ITO meses construccion
A42: =Evaluación!C74 -> Arquitectura | B42: =Evaluación!G74 -> 0 | C42: =IF(SUM(E42:BV42)=B42,"OK","") -> OK | E42: =IF(E2=Datos!$I$10-1,$B$42*0.5,IF(AND(E2>=Datos!$I$11,E2<=Datos!$I$11+Datos!$I$12-1),$B$42*0.4/Datos!$I$12,IF(E2=Datos!$I$11+Datos!$I$12,$B$42*0.1,0))) -> 0 | F42: =IF(F2=Datos!$I$10-1,$B$42*0.5,IF(AND(F2>=Datos!$I$11,F2<=Datos!$I$11+Datos!$I$12-1),$B$42*0.4/Datos!$I$12,IF(F2=Datos!$I$11+Datos!$I$12,$B$42*0.1,0))) -> 0 | G42: =IF(G2=Datos!$I$10-1,$B$42*0.5,IF(AND(G2>=Datos!$I$11,G2<=Datos!$I$11+Datos!$I$12-1),$B$42*0.4/Datos!$I$12,IF(G2=Datos!$I$11+Datos!$I$12,$B$42*0.1,0))) -> 0 | H42: =IF(H2=Datos!$I$10-1,$B$42*0.5,IF(AND(H2>=Datos!$I$11,H2<=Datos!$I$11+Datos!$I$12-1),$B$42*0.4/Datos!$I$12,IF(H2=Datos!$I$11+Datos!$I$12,$B$42*0.1,0))) -> 0 | I42: =IF(I2=Datos!$I$10-1,$B$42*0.5,IF(AND(I2>=Datos!$I$11,I2<=Datos!$I$11+Datos!$I$12-1),$B$42*0.4/Datos!$I$12,IF(I2=Datos!$I$11+Datos!$I$12,$B$42*0.1,0))) -> 0 | J42: =IF(J2=Datos!$I$10-1,$B$42*0.5,IF(AND(J2>=Datos!$I$11,J2<=Datos!$I$11+Datos!$I$12-1),$B$42*0.4/Datos!$I$12,IF(J2=Datos!$I$11+Datos!$I$12,$B$42*0.1,0))) -> 0 | K42: =IF(K2=Datos!$I$10-1,$B$42*0.5,IF(AND(K2>=Datos!$I$11,K2<=Datos!$I$11+Datos!$I$12-1),$B$42*0.4/Datos!$I$12,IF(K2=Datos!$I$11+Datos!$I$12,$B$42*0.1,0))) -> 0 | L42: =IF(L2=Datos!$I$10-1,$B$42*0.5,IF(AND(L2>=Datos!$I$11,L2<=Datos!$I$11+Datos!$I$12-1),$B$42*0.4/Datos!$I$12,IF(L2=Datos!$I$11+Datos!$I$12,$B$42*0.1,0))) -> 0 | M42: =IF(M2=Datos!$I$10-1,$B$42*0.5,IF(AND(M2>=Datos!$I$11,M2<=Datos!$I$11+Datos!$I$12-1),$B$42*0.4/Datos!$I$12,IF(M2=Datos!$I$11+Datos!$I$12,$B$42*0.1,0))) -> 0 | N42: =IF(N2=Datos!$I$10-1,$B$42*0.5,IF(AND(N2>=Datos!$I$11,N2<=Datos!$I$11+Datos!$I$12-1),$B$42*0.4/Datos!$I$12,IF(N2=Datos!$I$11+Datos!$I$12,$B$42*0.1,0))) -> 0 | O42: =IF(O2=Datos!$I$10-1,$B$42*0.5,IF(AND(O2>=Datos!$I$11,O2<=Datos!$I$11+Datos!$I$12-1),$B$42*0.4/Datos!$I$12,IF(O2=Datos!$I$11+Datos!$I$12,$B$42*0.1,0))) -> 0 | P42: =IF(P2=Datos!$I$10-1,$B$42*0.5,IF(AND(P2>=Datos!$I$11,P2<=Datos!$I$11+Datos!$I$12-1),$B$42*0.4/Datos!$I$12,IF(P2=Datos!$I$11+Datos!$I$12,$B$42*0.1,0))) -> 0 | Q42: =IF(Q2=Datos!$I$10-1,$B$42*0.5,IF(AND(Q2>=Datos!$I$11,Q2<=Datos!$I$11+Datos!$I$12-1),$B$42*0.4/Datos!$I$12,IF(Q2=Datos!$I$11+Datos!$I$12,$B$42*0.1,0))) -> 0 | R42: =IF(R2=Datos!$I$10-1,$B$42*0.5,IF(AND(R2>=Datos!$I$11,R2<=Datos!$I$11+Datos!$I$12-1),$B$42*0.4/Datos!$I$12,IF(R2=Datos!$I$11+Datos!$I$12,$B$42*0.1,0))) -> 0 | S42: =IF(S2=Datos!$I$10-1,$B$42*0.5,IF(AND(S2>=Datos!$I$11,S2<=Datos!$I$11+Datos!$I$12-1),$B$42*0.4/Datos!$I$12,IF(S2=Datos!$I$11+Datos!$I$12,$B$42*0.1,0))) -> 0 | T42: =IF(T2=Datos!$I$10-1,$B$42*0.5,IF(AND(T2>=Datos!$I$11,T2<=Datos!$I$11+Datos!$I$12-1),$B$42*0.4/Datos!$I$12,IF(T2=Datos!$I$11+Datos!$I$12,$B$42*0.1,0))) -> 0 | U42: =IF(U2=Datos!$I$10-1,$B$42*0.5,IF(AND(U2>=Datos!$I$11,U2<=Datos!$I$11+Datos!$I$12-1),$B$42*0.4/Datos!$I$12,IF(U2=Datos!$I$11+Datos!$I$12,$B$42*0.1,0))) -> 0 | V42: =IF(V2=Datos!$I$10-1,$B$42*0.5,IF(AND(V2>=Datos!$I$11,V2<=Datos!$I$11+Datos!$I$12-1),$B$42*0.4/Datos!$I$12,IF(V2=Datos!$I$11+Datos!$I$12,$B$42*0.1,0))) -> 0 | W42: =IF(W2=Datos!$I$10-1,$B$42*0.5,IF(AND(W2>=Datos!$I$11,W2<=Datos!$I$11+Datos!$I$12-1),$B$42*0.4/Datos!$I$12,IF(W2=Datos!$I$11+Datos!$I$12,$B$42*0.1,0))) -> 0 | X42: =IF(X2=Datos!$I$10-1,$B$42*0.5,IF(AND(X2>=Datos!$I$11,X2<=Datos!$I$11+Datos!$I$12-1),$B$42*0.4/Datos!$I$12,IF(X2=Datos!$I$11+Datos!$I$12,$B$42*0.1,0))) -> 0 | Y42: =IF(Y2=Datos!$I$10-1,$B$42*0.5,IF(AND(Y2>=Datos!$I$11,Y2<=Datos!$I$11+Datos!$I$12-1),$B$42*0.4/Datos!$I$12,IF(Y2=Datos!$I$11+Datos!$I$12,$B$42*0.1,0))) -> 0 | Z42: =IF(Z2=Datos!$I$10-1,$B$42*0.5,IF(AND(Z2>=Datos!$I$11,Z2<=Datos!$I$11+Datos!$I$12-1),$B$42*0.4/Datos!$I$12,IF(Z2=Datos!$I$11+Datos!$I$12,$B$42*0.1,0))) -> 0 | AA42: =IF(AA2=Datos!$I$10-1,$B$42*0.5,IF(AND(AA2>=Datos!$I$11,AA2<=Datos!$I$11+Datos!$I$12-1),$B$42*0.4/Datos!$I$12,IF(AA2=Datos!$I$11+Datos!$I$12,$B$42*0.1,0))) -> 0 | AB42: =IF(AB2=Datos!$I$10-1,$B$42*0.5,IF(AND(AB2>=Datos!$I$11,AB2<=Datos!$I$11+Datos!$I$12-1),$B$42*0.4/Datos!$I$12,IF(AB2=Datos!$I$11+Datos!$I$12,$B$42*0.1,0))) -> 0 | AC42: =IF(AC2=Datos!$I$10-1,$B$42*0.5,IF(AND(AC2>=Datos!$I$11,AC2<=Datos!$I$11+Datos!$I$12-1),$B$42*0.4/Datos!$I$12,IF(AC2=Datos!$I$11+Datos!$I$12,$B$42*0.1,0))) -> 0 | AD42: =IF(AD2=Datos!$I$10-1,$B$42*0.5,IF(AND(AD2>=Datos!$I$11,AD2<=Datos!$I$11+Datos!$I$12-1),$B$42*0.4/Datos!$I$12,IF(AD2=Datos!$I$11+Datos!$I$12,$B$42*0.1,0))) -> 0 | AE42: =IF(AE2=Datos!$I$10-1,$B$42*0.5,IF(AND(AE2>=Datos!$I$11,AE2<=Datos!$I$11+Datos!$I$12-1),$B$42*0.4/Datos!$I$12,IF(AE2=Datos!$I$11+Datos!$I$12,$B$42*0.1,0))) -> 0 | AF42: =IF(AF2=Datos!$I$10-1,$B$42*0.5,IF(AND(AF2>=Datos!$I$11,AF2<=Datos!$I$11+Datos!$I$12-1),$B$42*0.4/Datos!$I$12,IF(AF2=Datos!$I$11+Datos!$I$12,$B$42*0.1,0))) -> 0 | AG42: =IF(AG2=Datos!$I$10-1,$B$42*0.5,IF(AND(AG2>=Datos!$I$11,AG2<=Datos!$I$11+Datos!$I$12-1),$B$42*0.4/Datos!$I$12,IF(AG2=Datos!$I$11+Datos!$I$12,$B$42*0.1,0))) -> 0 | AH42: =IF(AH2=Datos!$I$10-1,$B$42*0.5,IF(AND(AH2>=Datos!$I$11,AH2<=Datos!$I$11+Datos!$I$12-1),$B$42*0.4/Datos!$I$12,IF(AH2=Datos!$I$11+Datos!$I$12,$B$42*0.1,0))) -> 0 | AI42: =IF(AI2=Datos!$I$10-1,$B$42*0.5,IF(AND(AI2>=Datos!$I$11,AI2<=Datos!$I$11+Datos!$I$12-1),$B$42*0.4/Datos!$I$12,IF(AI2=Datos!$I$11+Datos!$I$12,$B$42*0.1,0))) -> 0 | AJ42: =IF(AJ2=Datos!$I$10-1,$B$42*0.5,IF(AND(AJ2>=Datos!$I$11,AJ2<=Datos!$I$11+Datos!$I$12-1),$B$42*0.4/Datos!$I$12,IF(AJ2=Datos!$I$11+Datos!$I$12,$B$42*0.1,0))) -> 0 | AK42: =IF(AK2=Datos!$I$10-1,$B$42*0.5,IF(AND(AK2>=Datos!$I$11,AK2<=Datos!$I$11+Datos!$I$12-1),$B$42*0.4/Datos!$I$12,IF(AK2=Datos!$I$11+Datos!$I$12,$B$42*0.1,0))) -> 0 | AL42: =IF(AL2=Datos!$I$10-1,$B$42*0.5,IF(AND(AL2>=Datos!$I$11,AL2<=Datos!$I$11+Datos!$I$12-1),$B$42*0.4/Datos!$I$12,IF(AL2=Datos!$I$11+Datos!$I$12,$B$42*0.1,0))) -> 0 | AM42: =IF(AM2=Datos!$I$10-1,$B$42*0.5,IF(AND(AM2>=Datos!$I$11,AM2<=Datos!$I$11+Datos!$I$12-1),$B$42*0.4/Datos!$I$12,IF(AM2=Datos!$I$11+Datos!$I$12,$B$42*0.1,0))) -> 0 | AN42: =IF(AN2=Datos!$I$10-1,$B$42*0.5,IF(AND(AN2>=Datos!$I$11,AN2<=Datos!$I$11+Datos!$I$12-1),$B$42*0.4/Datos!$I$12,IF(AN2=Datos!$I$11+Datos!$I$12,$B$42*0.1,0))) -> 0 | AO42: =IF(AO2=Datos!$I$10-1,$B$42*0.5,IF(AND(AO2>=Datos!$I$11,AO2<=Datos!$I$11+Datos!$I$12-1),$B$42*0.4/Datos!$I$12,IF(AO2=Datos!$I$11+Datos!$I$12,$B$42*0.1,0))) -> 0 | AP42: =IF(AP2=Datos!$I$10-1,$B$42*0.5,IF(AND(AP2>=Datos!$I$11,AP2<=Datos!$I$11+Datos!$I$12-1),$B$42*0.4/Datos!$I$12,IF(AP2=Datos!$I$11+Datos!$I$12,$B$42*0.1,0))) -> 0 | AQ42: =IF(AQ2=Datos!$I$10-1,$B$42*0.5,IF(AND(AQ2>=Datos!$I$11,AQ2<=Datos!$I$11+Datos!$I$12-1),$B$42*0.4/Datos!$I$12,IF(AQ2=Datos!$I$11+Datos!$I$12,$B$42*0.1,0))) -> 0 | AR42: =IF(AR2=Datos!$I$10-1,$B$42*0.5,IF(AND(AR2>=Datos!$I$11,AR2<=Datos!$I$11+Datos!$I$12-1),$B$42*0.4/Datos!$I$12,IF(AR2=Datos!$I$11+Datos!$I$12,$B$42*0.1,0))) -> 0 | AS42: =IF(AS2=Datos!$I$10-1,$B$42*0.5,IF(AND(AS2>=Datos!$I$11,AS2<=Datos!$I$11+Datos!$I$12-1),$B$42*0.4/Datos!$I$12,IF(AS2=Datos!$I$11+Datos!$I$12,$B$42*0.1,0))) -> 0 | AT42: =IF(AT2=Datos!$I$10-1,$B$42*0.5,IF(AND(AT2>=Datos!$I$11,AT2<=Datos!$I$11+Datos!$I$12-1),$B$42*0.4/Datos!$I$12,IF(AT2=Datos!$I$11+Datos!$I$12,$B$42*0.1,0))) -> 0 | AU42: =IF(AU2=Datos!$I$10-1,$B$42*0.5,IF(AND(AU2>=Datos!$I$11,AU2<=Datos!$I$11+Datos!$I$12-1),$B$42*0.4/Datos!$I$12,IF(AU2=Datos!$I$11+Datos!$I$12,$B$42*0.1,0))) -> 0 | AV42: =IF(AV2=Datos!$I$10-1,$B$42*0.5,IF(AND(AV2>=Datos!$I$11,AV2<=Datos!$I$11+Datos!$I$12-1),$B$42*0.4/Datos!$I$12,IF(AV2=Datos!$I$11+Datos!$I$12,$B$42*0.1,0))) -> 0 | AW42: =IF(AW2=Datos!$I$10-1,$B$42*0.5,IF(AND(AW2>=Datos!$I$11,AW2<=Datos!$I$11+Datos!$I$12-1),$B$42*0.4/Datos!$I$12,IF(AW2=Datos!$I$11+Datos!$I$12,$B$42*0.1,0))) -> 0 | AX42: =IF(AX2=Datos!$I$10-1,$B$42*0.5,IF(AND(AX2>=Datos!$I$11,AX2<=Datos!$I$11+Datos!$I$12-1),$B$42*0.4/Datos!$I$12,IF(AX2=Datos!$I$11+Datos!$I$12,$B$42*0.1,0))) -> 0 | AY42: =IF(AY2=Datos!$I$10-1,$B$42*0.5,IF(AND(AY2>=Datos!$I$11,AY2<=Datos!$I$11+Datos!$I$12-1),$B$42*0.4/Datos!$I$12,IF(AY2=Datos!$I$11+Datos!$I$12,$B$42*0.1,0))) -> 0 | AZ42: =IF(AZ2=Datos!$I$10-1,$B$42*0.5,IF(AND(AZ2>=Datos!$I$11,AZ2<=Datos!$I$11+Datos!$I$12-1),$B$42*0.4/Datos!$I$12,IF(AZ2=Datos!$I$11+Datos!$I$12,$B$42*0.1,0))) -> 0 | BA42: =IF(BA2=Datos!$I$10-1,$B$42*0.5,IF(AND(BA2>=Datos!$I$11,BA2<=Datos!$I$11+Datos!$I$12-1),$B$42*0.4/Datos!$I$12,IF(BA2=Datos!$I$11+Datos!$I$12,$B$42*0.1,0))) -> 0 | BB42: =IF(BB2=Datos!$I$10-1,$B$42*0.5,IF(AND(BB2>=Datos!$I$11,BB2<=Datos!$I$11+Datos!$I$12-1),$B$42*0.4/Datos!$I$12,IF(BB2=Datos!$I$11+Datos!$I$12,$B$42*0.1,0))) -> 0 | BC42: =IF(BC2=Datos!$I$10-1,$B$42*0.5,IF(AND(BC2>=Datos!$I$11,BC2<=Datos!$I$11+Datos!$I$12-1),$B$42*0.4/Datos!$I$12,IF(BC2=Datos!$I$11+Datos!$I$12,$B$42*0.1,0))) -> 0 | BD42: =IF(BD2=Datos!$I$10-1,$B$42*0.5,IF(AND(BD2>=Datos!$I$11,BD2<=Datos!$I$11+Datos!$I$12-1),$B$42*0.4/Datos!$I$12,IF(BD2=Datos!$I$11+Datos!$I$12,$B$42*0.1,0))) -> 0 | BE42: =IF(BE2=Datos!$I$10-1,$B$42*0.5,IF(AND(BE2>=Datos!$I$11,BE2<=Datos!$I$11+Datos!$I$12-1),$B$42*0.4/Datos!$I$12,IF(BE2=Datos!$I$11+Datos!$I$12,$B$42*0.1,0))) -> 0 | BF42: =IF(BF2=Datos!$I$10-1,$B$42*0.5,IF(AND(BF2>=Datos!$I$11,BF2<=Datos!$I$11+Datos!$I$12-1),$B$42*0.4/Datos!$I$12,IF(BF2=Datos!$I$11+Datos!$I$12,$B$42*0.1,0))) -> 0 | BG42: =IF(BG2=Datos!$I$10-1,$B$42*0.5,IF(AND(BG2>=Datos!$I$11,BG2<=Datos!$I$11+Datos!$I$12-1),$B$42*0.4/Datos!$I$12,IF(BG2=Datos!$I$11+Datos!$I$12,$B$42*0.1,0))) -> 0 | BH42: =IF(BH2=Datos!$I$10-1,$B$42*0.5,IF(AND(BH2>=Datos!$I$11,BH2<=Datos!$I$11+Datos!$I$12-1),$B$42*0.4/Datos!$I$12,IF(BH2=Datos!$I$11+Datos!$I$12,$B$42*0.1,0))) -> 0 | BI42: =IF(BI2=Datos!$I$10-1,$B$42*0.5,IF(AND(BI2>=Datos!$I$11,BI2<=Datos!$I$11+Datos!$I$12-1),$B$42*0.4/Datos!$I$12,IF(BI2=Datos!$I$11+Datos!$I$12,$B$42*0.1,0))) -> 0 | BJ42: =IF(BJ2=Datos!$I$10-1,$B$42*0.5,IF(AND(BJ2>=Datos!$I$11,BJ2<=Datos!$I$11+Datos!$I$12-1),$B$42*0.4/Datos!$I$12,IF(BJ2=Datos!$I$11+Datos!$I$12,$B$42*0.1,0))) -> 0 | BK42: =IF(BK2=Datos!$I$10-1,$B$42*0.5,IF(AND(BK2>=Datos!$I$11,BK2<=Datos!$I$11+Datos!$I$12-1),$B$42*0.4/Datos!$I$12,IF(BK2=Datos!$I$11+Datos!$I$12,$B$42*0.1,0))) -> 0 | BL42: =IF(BL2=Datos!$I$10-1,$B$42*0.5,IF(AND(BL2>=Datos!$I$11,BL2<=Datos!$I$11+Datos!$I$12-1),$B$42*0.4/Datos!$I$12,IF(BL2=Datos!$I$11+Datos!$I$12,$B$42*0.1,0))) -> 0 | BM42: =IF(BM2=Datos!$I$10-1,$B$42*0.5,IF(AND(BM2>=Datos!$I$11,BM2<=Datos!$I$11+Datos!$I$12-1),$B$42*0.4/Datos!$I$12,IF(BM2=Datos!$I$11+Datos!$I$12,$B$42*0.1,0))) -> 0 | BN42: =IF(BN2=Datos!$I$10-1,$B$42*0.5,IF(AND(BN2>=Datos!$I$11,BN2<=Datos!$I$11+Datos!$I$12-1),$B$42*0.4/Datos!$I$12,IF(BN2=Datos!$I$11+Datos!$I$12,$B$42*0.1,0))) -> 0 | BO42: =IF(BO2=Datos!$I$10-1,$B$42*0.5,IF(AND(BO2>=Datos!$I$11,BO2<=Datos!$I$11+Datos!$I$12-1),$B$42*0.4/Datos!$I$12,IF(BO2=Datos!$I$11+Datos!$I$12,$B$42*0.1,0))) -> 0 | BP42: =IF(BP2=Datos!$I$10-1,$B$42*0.5,IF(AND(BP2>=Datos!$I$11,BP2<=Datos!$I$11+Datos!$I$12-1),$B$42*0.4/Datos!$I$12,IF(BP2=Datos!$I$11+Datos!$I$12,$B$42*0.1,0))) -> 0 | BQ42: =IF(BQ2=Datos!$I$10-1,$B$42*0.5,IF(AND(BQ2>=Datos!$I$11,BQ2<=Datos!$I$11+Datos!$I$12-1),$B$42*0.4/Datos!$I$12,IF(BQ2=Datos!$I$11+Datos!$I$12,$B$42*0.1,0))) -> 0 | BR42: =IF(BR2=Datos!$I$10-1,$B$42*0.5,IF(AND(BR2>=Datos!$I$11,BR2<=Datos!$I$11+Datos!$I$12-1),$B$42*0.4/Datos!$I$12,IF(BR2=Datos!$I$11+Datos!$I$12,$B$42*0.1,0))) -> 0 | BS42: =IF(BS2=Datos!$I$10-1,$B$42*0.5,IF(AND(BS2>=Datos!$I$11,BS2<=Datos!$I$11+Datos!$I$12-1),$B$42*0.4/Datos!$I$12,IF(BS2=Datos!$I$11+Datos!$I$12,$B$42*0.1,0))) -> 0 | BT42: =IF(BT2=Datos!$I$10-1,$B$42*0.5,IF(AND(BT2>=Datos!$I$11,BT2<=Datos!$I$11+Datos!$I$12-1),$B$42*0.4/Datos!$I$12,IF(BT2=Datos!$I$11+Datos!$I$12,$B$42*0.1,0))) -> 0 | BU42: =IF(BU2=Datos!$I$10-1,$B$42*0.5,IF(AND(BU2>=Datos!$I$11,BU2<=Datos!$I$11+Datos!$I$12-1),$B$42*0.4/Datos!$I$12,IF(BU2=Datos!$I$11+Datos!$I$12,$B$42*0.1,0))) -> 0 | BV42: =IF(BV2=Datos!$I$10-1,$B$42*0.5,IF(AND(BV2>=Datos!$I$11,BV2<=Datos!$I$11+Datos!$I$12-1),$B$42*0.4/Datos!$I$12,IF(BV2=Datos!$I$11+Datos!$I$12,$B$42*0.1,0))) -> 0 | BW42: =IF(BW2=Datos!$I$10-1,$B$42*0.5,IF(AND(BW2>=Datos!$I$11,BW2<=Datos!$I$11+Datos!$I$12-1),$B$42*0.4/Datos!$I$12,IF(BW2=Datos!$I$11+Datos!$I$12,$B$42*0.1,0))) -> 0 | BX42: =IF(BX2=Datos!$I$10-1,$B$42*0.5,IF(AND(BX2>=Datos!$I$11,BX2<=Datos!$I$11+Datos!$I$12-1),$B$42*0.4/Datos!$I$12,IF(BX2=Datos!$I$11+Datos!$I$12,$B$42*0.1,0))) -> 0 | BY42: =IF(BY2=Datos!$I$10-1,$B$42*0.5,IF(AND(BY2>=Datos!$I$11,BY2<=Datos!$I$11+Datos!$I$12-1),$B$42*0.4/Datos!$I$12,IF(BY2=Datos!$I$11+Datos!$I$12,$B$42*0.1,0))) -> 0 | BZ42: =IF(BZ2=Datos!$I$10-1,$B$42*0.5,IF(AND(BZ2>=Datos!$I$11,BZ2<=Datos!$I$11+Datos!$I$12-1),$B$42*0.4/Datos!$I$12,IF(BZ2=Datos!$I$11+Datos!$I$12,$B$42*0.1,0))) -> 0
A43: =Evaluación!C75 -> Ingeniería Estructural | B43: =Evaluación!G75 -> 0 | C43: =IF(SUM(E43:BV43)=B43,"OK","") -> OK | E43: =IF(E$2=Datos!$I$10-1,Flujo!$B$43,0) -> 0 | F43: =IF(F$2=Datos!$I$10-1,Flujo!$B$43,0) -> 0 | G43: =IF(G$2=Datos!$I$10-1,Flujo!$B$43,0) -> 0 | H43: =IF(H$2=Datos!$I$10-1,Flujo!$B$43,0) -> 0 | I43: =IF(I$2=Datos!$I$10-1,Flujo!$B$43,0) -> 0 | J43: =IF(J$2=Datos!$I$10-1,Flujo!$B$43,0) -> 0 | K43: =IF(K$2=Datos!$I$10-1,Flujo!$B$43,0) -> 0 | L43: =IF(L$2=Datos!$I$10-1,Flujo!$B$43,0) -> 0 | M43: =IF(M$2=Datos!$I$10-1,Flujo!$B$43,0) -> 0 | N43: =IF(N$2=Datos!$I$10-1,Flujo!$B$43,0) -> 0 | O43: =IF(O$2=Datos!$I$10-1,Flujo!$B$43,0) -> 0 | P43: =IF(P$2=Datos!$I$10-1,Flujo!$B$43,0) -> 0 | Q43: =IF(Q$2=Datos!$I$10-1,Flujo!$B$43,0) -> 0 | R43: =IF(R$2=Datos!$I$10-1,Flujo!$B$43,0) -> 0 | S43: =IF(S$2=Datos!$I$10-1,Flujo!$B$43,0) -> 0 | T43: =IF(T$2=Datos!$I$10-1,Flujo!$B$43,0) -> 0 | U43: =IF(U$2=Datos!$I$10-1,Flujo!$B$43,0) -> 0 | V43: =IF(V$2=Datos!$I$10-1,Flujo!$B$43,0) -> 0 | W43: =IF(W$2=Datos!$I$10-1,Flujo!$B$43,0) -> 0 | X43: =IF(X$2=Datos!$I$10-1,Flujo!$B$43,0) -> 0 | Y43: =IF(Y$2=Datos!$I$10-1,Flujo!$B$43,0) -> 0 | Z43: =IF(Z$2=Datos!$I$10-1,Flujo!$B$43,0) -> 0 | AA43: =IF(AA$2=Datos!$I$10-1,Flujo!$B$43,0) -> 0 | AB43: =IF(AB$2=Datos!$I$10-1,Flujo!$B$43,0) -> 0 | AC43: =IF(AC$2=Datos!$I$10-1,Flujo!$B$43,0) -> 0 | AD43: =IF(AD$2=Datos!$I$10-1,Flujo!$B$43,0) -> 0 | AE43: =IF(AE$2=Datos!$I$10-1,Flujo!$B$43,0) -> 0 | AF43: =IF(AF$2=Datos!$I$10-1,Flujo!$B$43,0) -> 0 | AG43: =IF(AG$2=Datos!$I$10-1,Flujo!$B$43,0) -> 0 | AH43: =IF(AH$2=Datos!$I$10-1,Flujo!$B$43,0) -> 0 | AI43: =IF(AI$2=Datos!$I$10-1,Flujo!$B$43,0) -> 0 | AJ43: =IF(AJ$2=Datos!$I$10-1,Flujo!$B$43,0) -> 0 | AK43: =IF(AK$2=Datos!$I$10-1,Flujo!$B$43,0) -> 0 | AL43: =IF(AL$2=Datos!$I$10-1,Flujo!$B$43,0) -> 0 | AM43: =IF(AM$2=Datos!$I$10-1,Flujo!$B$43,0) -> 0 | AN43: =IF(AN$2=Datos!$I$10-1,Flujo!$B$43,0) -> 0 | AO43: =IF(AO$2=Datos!$I$10-1,Flujo!$B$43,0) -> 0 | AP43: =IF(AP$2=Datos!$I$10-1,Flujo!$B$43,0) -> 0 | AQ43: =IF(AQ$2=Datos!$I$10-1,Flujo!$B$43,0) -> 0 | AR43: =IF(AR$2=Datos!$I$10-1,Flujo!$B$43,0) -> 0 | AS43: =IF(AS$2=Datos!$I$10-1,Flujo!$B$43,0) -> 0 | AT43: =IF(AT$2=Datos!$I$10-1,Flujo!$B$43,0) -> 0 | AU43: =IF(AU$2=Datos!$I$10-1,Flujo!$B$43,0) -> 0 | AV43: =IF(AV$2=Datos!$I$10-1,Flujo!$B$43,0) -> 0 | AW43: =IF(AW$2=Datos!$I$10-1,Flujo!$B$43,0) -> 0 | AX43: =IF(AX$2=Datos!$I$10-1,Flujo!$B$43,0) -> 0 | AY43: =IF(AY$2=Datos!$I$10-1,Flujo!$B$43,0) -> 0 | AZ43: =IF(AZ$2=Datos!$I$10-1,Flujo!$B$43,0) -> 0 | BA43: =IF(BA$2=Datos!$I$10-1,Flujo!$B$43,0) -> 0 | BB43: =IF(BB$2=Datos!$I$10-1,Flujo!$B$43,0) -> 0 | BC43: =IF(BC$2=Datos!$I$10-1,Flujo!$B$43,0) -> 0 | BD43: =IF(BD$2=Datos!$I$10-1,Flujo!$B$43,0) -> 0 | BE43: =IF(BE$2=Datos!$I$10-1,Flujo!$B$43,0) -> 0 | BF43: =IF(BF$2=Datos!$I$10-1,Flujo!$B$43,0) -> 0 | BG43: =IF(BG$2=Datos!$I$10-1,Flujo!$B$43,0) -> 0 | BH43: =IF(BH$2=Datos!$I$10-1,Flujo!$B$43,0) -> 0 | BI43: =IF(BI$2=Datos!$I$10-1,Flujo!$B$43,0) -> 0 | BJ43: =IF(BJ$2=Datos!$I$10-1,Flujo!$B$43,0) -> 0 | BK43: =IF(BK$2=Datos!$I$10-1,Flujo!$B$43,0) -> 0 | BL43: =IF(BL$2=Datos!$I$10-1,Flujo!$B$43,0) -> 0 | BM43: =IF(BM$2=Datos!$I$10-1,Flujo!$B$43,0) -> 0 | BN43: =IF(BN$2=Datos!$I$10-1,Flujo!$B$43,0) -> 0 | BO43: =IF(BO$2=Datos!$I$10-1,Flujo!$B$43,0) -> 0 | BP43: =IF(BP$2=Datos!$I$10-1,Flujo!$B$43,0) -> 0 | BQ43: =IF(BQ$2=Datos!$I$10-1,Flujo!$B$43,0) -> 0 | BR43: =IF(BR$2=Datos!$I$10-1,Flujo!$B$43,0) -> 0 | BS43: =IF(BS$2=Datos!$I$10-1,Flujo!$B$43,0) -> 0 | BT43: =IF(BT$2=Datos!$I$10-1,Flujo!$B$43,0) -> 0 | BU43: =IF(BU$2=Datos!$I$10-1,Flujo!$B$43,0) -> 0 | BV43: =IF(BV$2=Datos!$I$10-1,Flujo!$B$43,0) -> 0 | BW43: =IF(BW$2=Datos!$I$10-1,Flujo!$B$43,0) -> 0 | BX43: =IF(BX$2=Datos!$I$10-1,Flujo!$B$43,0) -> 0 | BY43: =IF(BY$2=Datos!$I$10-1,Flujo!$B$43,0) -> 0 | BZ43: =IF(BZ$2=Datos!$I$10-1,Flujo!$B$43,0) -> 0
A44: =Evaluación!C76 -> Proyectos de Especialidades | B44: =Evaluación!G76 -> 0 | C44: OK | E44: =IF(E$2=Datos!$I$10-1,Flujo!$B$44,0) -> 0 | F44: =IF(F$2=Datos!$I$10-1,Flujo!$B$44,0) -> 0 | G44: =IF(G$2=Datos!$I$10-1,Flujo!$B$44,0) -> 0 | H44: =IF(H$2=Datos!$I$10-1,Flujo!$B$44,0) -> 0 | I44: =IF(I$2=Datos!$I$10-1,Flujo!$B$44,0) -> 0 | J44: =IF(J$2=Datos!$I$10-1,Flujo!$B$44,0) -> 0 | K44: =IF(K$2=Datos!$I$10-1,Flujo!$B$44,0) -> 0 | L44: =IF(L$2=Datos!$I$10-1,Flujo!$B$44,0) -> 0 | M44: =IF(M$2=Datos!$I$10-1,Flujo!$B$44,0) -> 0 | N44: =IF(N$2=Datos!$I$10-1,Flujo!$B$44,0) -> 0 | O44: =IF(O$2=Datos!$I$10-1,Flujo!$B$44,0) -> 0 | P44: =IF(P$2=Datos!$I$10-1,Flujo!$B$44,0) -> 0 | Q44: =IF(Q$2=Datos!$I$10-1,Flujo!$B$44,0) -> 0 | R44: =IF(R$2=Datos!$I$10-1,Flujo!$B$44,0) -> 0 | S44: =IF(S$2=Datos!$I$10-1,Flujo!$B$44,0) -> 0 | T44: =IF(T$2=Datos!$I$10-1,Flujo!$B$44,0) -> 0 | U44: =IF(U$2=Datos!$I$10-1,Flujo!$B$44,0) -> 0 | V44: =IF(V$2=Datos!$I$10-1,Flujo!$B$44,0) -> 0 | W44: =IF(W$2=Datos!$I$10-1,Flujo!$B$44,0) -> 0 | X44: =IF(X$2=Datos!$I$10-1,Flujo!$B$44,0) -> 0 | Y44: =IF(Y$2=Datos!$I$10-1,Flujo!$B$44,0) -> 0 | Z44: =IF(Z$2=Datos!$I$10-1,Flujo!$B$44,0) -> 0 | AA44: =IF(AA$2=Datos!$I$10-1,Flujo!$B$44,0) -> 0 | AB44: =IF(AB$2=Datos!$I$10-1,Flujo!$B$44,0) -> 0 | AC44: =IF(AC$2=Datos!$I$10-1,Flujo!$B$44,0) -> 0 | AD44: =IF(AD$2=Datos!$I$10-1,Flujo!$B$44,0) -> 0 | AE44: =IF(AE$2=Datos!$I$10-1,Flujo!$B$44,0) -> 0 | AF44: =IF(AF$2=Datos!$I$10-1,Flujo!$B$44,0) -> 0 | AG44: =IF(AG$2=Datos!$I$10-1,Flujo!$B$44,0) -> 0 | AH44: =IF(AH$2=Datos!$I$10-1,Flujo!$B$44,0) -> 0 | AI44: =IF(AI$2=Datos!$I$10-1,Flujo!$B$44,0) -> 0 | AJ44: =IF(AJ$2=Datos!$I$10-1,Flujo!$B$44,0) -> 0 | AK44: =IF(AK$2=Datos!$I$10-1,Flujo!$B$44,0) -> 0 | AL44: =IF(AL$2=Datos!$I$10-1,Flujo!$B$44,0) -> 0 | AM44: =IF(AM$2=Datos!$I$10-1,Flujo!$B$44,0) -> 0 | AN44: =IF(AN$2=Datos!$I$10-1,Flujo!$B$44,0) -> 0 | AO44: =IF(AO$2=Datos!$I$10-1,Flujo!$B$44,0) -> 0 | AP44: =IF(AP$2=Datos!$I$10-1,Flujo!$B$44,0) -> 0 | AQ44: =IF(AQ$2=Datos!$I$10-1,Flujo!$B$44,0) -> 0 | AR44: =IF(AR$2=Datos!$I$10-1,Flujo!$B$44,0) -> 0 | AS44: =IF(AS$2=Datos!$I$10-1,Flujo!$B$44,0) -> 0 | AT44: =IF(AT$2=Datos!$I$10-1,Flujo!$B$44,0) -> 0 | AU44: =IF(AU$2=Datos!$I$10-1,Flujo!$B$44,0) -> 0 | AV44: =IF(AV$2=Datos!$I$10-1,Flujo!$B$44,0) -> 0 | AW44: =IF(AW$2=Datos!$I$10-1,Flujo!$B$44,0) -> 0 | AX44: =IF(AX$2=Datos!$I$10-1,Flujo!$B$44,0) -> 0 | AY44: =IF(AY$2=Datos!$I$10-1,Flujo!$B$44,0) -> 0 | AZ44: =IF(AZ$2=Datos!$I$10-1,Flujo!$B$44,0) -> 0 | BA44: =IF(BA$2=Datos!$I$10-1,Flujo!$B$44,0) -> 0 | BB44: =IF(BB$2=Datos!$I$10-1,Flujo!$B$44,0) -> 0 | BC44: =IF(BC$2=Datos!$I$10-1,Flujo!$B$44,0) -> 0 | BD44: =IF(BD$2=Datos!$I$10-1,Flujo!$B$44,0) -> 0 | BE44: =IF(BE$2=Datos!$I$10-1,Flujo!$B$44,0) -> 0 | BF44: =IF(BF$2=Datos!$I$10-1,Flujo!$B$44,0) -> 0 | BG44: =IF(BG$2=Datos!$I$10-1,Flujo!$B$44,0) -> 0 | BH44: =IF(BH$2=Datos!$I$10-1,Flujo!$B$44,0) -> 0 | BI44: =IF(BI$2=Datos!$I$10-1,Flujo!$B$44,0) -> 0 | BJ44: =IF(BJ$2=Datos!$I$10-1,Flujo!$B$44,0) -> 0 | BK44: =IF(BK$2=Datos!$I$10-1,Flujo!$B$44,0) -> 0 | BL44: =IF(BL$2=Datos!$I$10-1,Flujo!$B$44,0) -> 0 | BM44: =IF(BM$2=Datos!$I$10-1,Flujo!$B$44,0) -> 0 | BN44: =IF(BN$2=Datos!$I$10-1,Flujo!$B$44,0) -> 0 | BO44: =IF(BO$2=Datos!$I$10-1,Flujo!$B$44,0) -> 0 | BP44: =IF(BP$2=Datos!$I$10-1,Flujo!$B$44,0) -> 0 | BQ44: =IF(BQ$2=Datos!$I$10-1,Flujo!$B$44,0) -> 0 | BR44: =IF(BR$2=Datos!$I$10-1,Flujo!$B$44,0) -> 0 | BS44: =IF(BS$2=Datos!$I$10-1,Flujo!$B$44,0) -> 0 | BT44: =IF(BT$2=Datos!$I$10-1,Flujo!$B$44,0) -> 0 | BU44: =IF(BU$2=Datos!$I$10-1,Flujo!$B$44,0) -> 0 | BV44: =IF(BV$2=Datos!$I$10-1,Flujo!$B$44,0) -> 0 | BW44: =IF(BW$2=Datos!$I$10-1,Flujo!$B$44,0) -> 0 | BX44: =IF(BX$2=Datos!$I$10-1,Flujo!$B$44,0) -> 0 | BY44: =IF(BY$2=Datos!$I$10-1,Flujo!$B$44,0) -> 0 | BZ44: =IF(BZ$2=Datos!$I$10-1,Flujo!$B$44,0) -> 0
A45: =Evaluación!C77 -> Asesorías | B45: =Evaluación!G77 -> 300 | C45: OK | J45: =+B45 -> 300
A46: =Evaluación!C78 -> ITO | B46: =Evaluación!G78 -> 0 | E46: =IF(AND(E2>=Datos!$I$11,E2<Datos!#REF!),$B$46/(Datos!$I$12),0) ->  | F46: =IF(AND(F2>=Datos!$I$11,F2<Datos!#REF!),$B$46/(Datos!$I$12),0) ->  | G46: =IF(AND(G2>=Datos!$I$11,G2<Datos!#REF!),$B$46/(Datos!$I$12),0) ->  | H46: =IF(AND(H2>=Datos!$I$11,H2<Datos!#REF!),$B$46/(Datos!$I$12),0) ->  | I46: =IF(AND(I2>=Datos!$I$11,I2<Datos!#REF!),$B$46/(Datos!$I$12),0) ->  | J46: =IF(AND(J2>=Datos!$I$11,J2<Datos!#REF!),$B$46/(Datos!$I$12),0) ->  | K46: =IF(AND(K2>=Datos!$I$11,K2<Datos!#REF!),$B$46/(Datos!$I$12),0) ->  | L46: =IF(AND(L2>=Datos!$I$11,L2<Datos!#REF!),$B$46/(Datos!$I$12),0) ->  | M46: =IF(AND(M2>=Datos!$I$11,M2<Datos!#REF!),$B$46/(Datos!$I$12),0) ->  | N46: =IF(AND(N2>=Datos!$I$11,N2<Datos!#REF!),$B$46/(Datos!$I$12),0) ->  | O46: =IF(AND(O2>=Datos!$I$11,O2<Datos!#REF!),$B$46/(Datos!$I$12),0) ->  | P46: =IF(AND(P2>=Datos!$I$11,P2<Datos!#REF!),$B$46/(Datos!$I$12),0) ->  | Q46: =IF(AND(Q2>=Datos!$I$11,Q2<Datos!#REF!),$B$46/(Datos!$I$12),0) ->  | R46: =IF(AND(R2>=Datos!$I$11,R2<Datos!#REF!),$B$46/(Datos!$I$12),0) ->  | S46: =IF(AND(S2>=Datos!$I$11,S2<Datos!#REF!),$B$46/(Datos!$I$12),0) ->  | T46: =IF(AND(T2>=Datos!$I$11,T2<Datos!#REF!),$B$46/(Datos!$I$12),0) ->  | U46: =IF(AND(U2>=Datos!$I$11,U2<Datos!#REF!),$B$46/(Datos!$I$12),0) ->  | V46: =IF(AND(V2>=Datos!$I$11,V2<Datos!#REF!),$B$46/(Datos!$I$12),0) ->  | W46: =IF(AND(W2>=Datos!$I$11,W2<Datos!#REF!),$B$46/(Datos!$I$12),0) ->  | X46: =IF(AND(X2>=Datos!$I$11,X2<Datos!#REF!),$B$46/(Datos!$I$12),0) ->  | Y46: =IF(AND(Y2>=Datos!$I$11,Y2<Datos!#REF!),$B$46/(Datos!$I$12),0) ->  | Z46: =IF(AND(Z2>=Datos!$I$11,Z2<Datos!#REF!),$B$46/(Datos!$I$12),0) ->  | AA46: =IF(AND(AA2>=Datos!$I$11,AA2<Datos!#REF!),$B$46/(Datos!$I$12),0) ->  | AB46: =IF(AND(AB2>=Datos!$I$11,AB2<Datos!#REF!),$B$46/(Datos!$I$12),0) ->  | AC46: =IF(AND(AC2>=Datos!$I$11,AC2<Datos!#REF!),$B$46/(Datos!$I$12),0) ->  | AD46: =IF(AND(AD2>=Datos!$I$11,AD2<Datos!#REF!),$B$46/(Datos!$I$12),0) ->  | AE46: =IF(AND(AE2>=Datos!$I$11,AE2<Datos!#REF!),$B$46/(Datos!$I$12),0) ->  | AF46: =IF(AND(AF2>=Datos!$I$11,AF2<Datos!#REF!),$B$46/(Datos!$I$12),0) ->  | AG46: =IF(AND(AG2>=Datos!$I$11,AG2<Datos!#REF!),$B$46/(Datos!$I$12),0) ->  | AH46: =IF(AND(AH2>=Datos!$I$11,AH2<Datos!#REF!),$B$46/(Datos!$I$12),0) ->  | AI46: =IF(AND(AI2>=Datos!$I$11,AI2<Datos!#REF!),$B$46/(Datos!$I$12),0) ->  | AJ46: =IF(AND(AJ2>=Datos!$I$11,AJ2<Datos!#REF!),$B$46/(Datos!$I$12),0) ->  | AK46: =IF(AND(AK2>=Datos!$I$11,AK2<Datos!#REF!),$B$46/(Datos!$I$12),0) ->  | AL46: =IF(AND(AL2>=Datos!$I$11,AL2<Datos!#REF!),$B$46/(Datos!$I$12),0) ->  | AM46: =IF(AND(AM2>=Datos!$I$11,AM2<Datos!#REF!),$B$46/(Datos!$I$12),0) ->  | AN46: =IF(AND(AN2>=Datos!$I$11,AN2<Datos!#REF!),$B$46/(Datos!$I$12),0) ->  | AO46: =IF(AND(AO2>=Datos!$I$11,AO2<Datos!#REF!),$B$46/(Datos!$I$12),0) ->  | AP46: =IF(AND(AP2>=Datos!$I$11,AP2<Datos!#REF!),$B$46/(Datos!$I$12),0) ->  | AQ46: =IF(AND(AQ2>=Datos!$I$11,AQ2<Datos!#REF!),$B$46/(Datos!$I$12),0) ->  | AR46: =IF(AND(AR2>=Datos!$I$11,AR2<Datos!#REF!),$B$46/(Datos!$I$12),0) ->  | AS46: =IF(AND(AS2>=Datos!$I$11,AS2<Datos!#REF!),$B$46/(Datos!$I$12),0) ->  | AT46: =IF(AND(AT2>=Datos!$I$11,AT2<Datos!#REF!),$B$46/(Datos!$I$12),0) ->  | AU46: =IF(AND(AU2>=Datos!$I$11,AU2<Datos!#REF!),$B$46/(Datos!$I$12),0) ->  | AV46: =IF(AND(AV2>=Datos!$I$11,AV2<Datos!#REF!),$B$46/(Datos!$I$12),0) ->  | AW46: =IF(AND(AW2>=Datos!$I$11,AW2<Datos!#REF!),$B$46/(Datos!$I$12),0) ->  | AX46: =IF(AND(AX2>=Datos!$I$11,AX2<Datos!#REF!),$B$46/(Datos!$I$12),0) ->  | AY46: =IF(AND(AY2>=Datos!$I$11,AY2<Datos!#REF!),$B$46/(Datos!$I$12),0) ->  | AZ46: =IF(AND(AZ2>=Datos!$I$11,AZ2<Datos!#REF!),$B$46/(Datos!$I$12),0) ->  | BA46: =IF(AND(BA2>=Datos!$I$11,BA2<Datos!#REF!),$B$46/(Datos!$I$12),0) ->  | BB46: =IF(AND(BB2>=Datos!$I$11,BB2<Datos!#REF!),$B$46/(Datos!$I$12),0) ->  | BC46: =IF(AND(BC2>=Datos!$I$11,BC2<Datos!#REF!),$B$46/(Datos!$I$12),0) ->  | BD46: =IF(AND(BD2>=Datos!$I$11,BD2<Datos!#REF!),$B$46/(Datos!$I$12),0) ->  | BE46: =IF(AND(BE2>=Datos!$I$11,BE2<Datos!#REF!),$B$46/(Datos!$I$12),0) ->  | BF46: =IF(AND(BF2>=Datos!$I$11,BF2<Datos!#REF!),$B$46/(Datos!$I$12),0) ->  | BG46: =IF(AND(BG2>=Datos!$I$11,BG2<Datos!#REF!),$B$46/(Datos!$I$12),0) ->  | BH46: =IF(AND(BH2>=Datos!$I$11,BH2<Datos!#REF!),$B$46/(Datos!$I$12),0) ->  | BI46: =IF(AND(BI2>=Datos!$I$11,BI2<Datos!#REF!),$B$46/(Datos!$I$12),0) ->  | BJ46: =IF(AND(BJ2>=Datos!$I$11,BJ2<Datos!#REF!),$B$46/(Datos!$I$12),0) ->  | BK46: =IF(AND(BK2>=Datos!$I$11,BK2<Datos!#REF!),$B$46/(Datos!$I$12),0) ->  | BL46: =IF(AND(BL2>=Datos!$I$11,BL2<Datos!#REF!),$B$46/(Datos!$I$12),0) ->  | BM46: =IF(AND(BM2>=Datos!$I$11,BM2<Datos!#REF!),$B$46/(Datos!$I$12),0) ->  | BN46: =IF(AND(BN2>=Datos!$I$11,BN2<Datos!#REF!),$B$46/(Datos!$I$12),0) ->  | BO46: =IF(AND(BO2>=Datos!$I$11,BO2<Datos!#REF!),$B$46/(Datos!$I$12),0) ->  | BP46: =IF(AND(BP2>=Datos!$I$11,BP2<Datos!#REF!),$B$46/(Datos!$I$12),0) ->  | BQ46: =IF(AND(BQ2>=Datos!$I$11,BQ2<Datos!#REF!),$B$46/(Datos!$I$12),0) ->  | BR46: =IF(AND(BR2>=Datos!$I$11,BR2<Datos!#REF!),$B$46/(Datos!$I$12),0) ->  | BS46: =IF(AND(BS2>=Datos!$I$11,BS2<Datos!#REF!),$B$46/(Datos!$I$12),0) ->  | BT46: =IF(AND(BT2>=Datos!$I$11,BT2<Datos!#REF!),$B$46/(Datos!$I$12),0) ->  | BU46: =IF(AND(BU2>=Datos!$I$11,BU2<Datos!#REF!),$B$46/(Datos!$I$12),0) ->  | BV46: =IF(AND(BV2>=Datos!$I$11,BV2<Datos!#REF!),$B$46/(Datos!$I$12),0) ->  | BW46: =IF(AND(BW2>=Datos!$I$11,BW2<Datos!#REF!),$B$46/(Datos!$I$12),0) ->  | BX46: =IF(AND(BX2>=Datos!$I$11,BX2<Datos!#REF!),$B$46/(Datos!$I$12),0) ->  | BY46: =IF(AND(BY2>=Datos!$I$11,BY2<Datos!#REF!),$B$46/(Datos!$I$12),0) ->  | BZ46: =IF(AND(BZ2>=Datos!$I$11,BZ2<Datos!#REF!),$B$46/(Datos!$I$12),0) -> 
A47: =Evaluación!C79 -> Interiorismo | B47: =Evaluación!G79 -> 250 | E47: =IF(E$2=Datos!$I$10-1,Flujo!$B$47,0) -> 0 | F47: =IF(F$2=Datos!$I$10-1,Flujo!$B$47,0) -> 0 | G47: =IF(G$2=Datos!$I$10-1,Flujo!$B$47,0) -> 0 | H47: =IF(H$2=Datos!$I$10-1,Flujo!$B$47,0) -> 0 | I47: =IF(I$2=Datos!$I$10-1,Flujo!$B$47,0) -> 0 | J47: =IF(J$2=Datos!$I$10-1,Flujo!$B$47,0) -> 0 | K47: =IF(K$2=Datos!$I$10-1,Flujo!$B$47,0) -> 0 | L47: =IF(L$2=Datos!$I$10-1,Flujo!$B$47,0) -> 0 | M47: =IF(M$2=Datos!$I$10-1,Flujo!$B$47,0) -> 0 | N47: =IF(N$2=Datos!$I$10-1,Flujo!$B$47,0) -> 0 | O47: =IF(O$2=Datos!$I$10-1,Flujo!$B$47,0) -> 0 | P47: =IF(P$2=Datos!$I$10-1,Flujo!$B$47,0) -> 0 | Q47: =IF(Q$2=Datos!$I$10-1,Flujo!$B$47,0) -> 0 | R47: =IF(R$2=Datos!$I$10-1,Flujo!$B$47,0) -> 0 | S47: =IF(S$2=Datos!$I$10-1,Flujo!$B$47,0) -> 0 | T47: =IF(T$2=Datos!$I$10-1,Flujo!$B$47,0) -> 0 | U47: =IF(U$2=Datos!$I$10-1,Flujo!$B$47,0) -> 0 | V47: =IF(V$2=Datos!$I$10-1,Flujo!$B$47,0) -> 0 | W47: =IF(W$2=Datos!$I$10-1,Flujo!$B$47,0) -> 0 | X47: =IF(X$2=Datos!$I$10-1,Flujo!$B$47,0) -> 0 | Y47: =IF(Y$2=Datos!$I$10-1,Flujo!$B$47,0) -> 0 | Z47: =IF(Z$2=Datos!$I$10-1,Flujo!$B$47,0) -> 0 | AA47: =IF(AA$2=Datos!$I$10-1,Flujo!$B$47,0) -> 0 | AB47: =IF(AB$2=Datos!$I$10-1,Flujo!$B$47,0) -> 0 | AC47: =IF(AC$2=Datos!$I$10-1,Flujo!$B$47,0) -> 0 | AD47: =IF(AD$2=Datos!$I$10-1,Flujo!$B$47,0) -> 0 | AE47: =IF(AE$2=Datos!$I$10-1,Flujo!$B$47,0) -> 0 | AF47: =IF(AF$2=Datos!$I$10-1,Flujo!$B$47,0) -> 0 | AG47: =IF(AG$2=Datos!$I$10-1,Flujo!$B$47,0) -> 0 | AH47: =IF(AH$2=Datos!$I$10-1,Flujo!$B$47,0) -> 0 | AI47: =IF(AI$2=Datos!$I$10-1,Flujo!$B$47,0) -> 0 | AJ47: =IF(AJ$2=Datos!$I$10-1,Flujo!$B$47,0) -> 0 | AK47: =IF(AK$2=Datos!$I$10-1,Flujo!$B$47,0) -> 0 | AL47: =IF(AL$2=Datos!$I$10-1,Flujo!$B$47,0) -> 0 | AM47: =IF(AM$2=Datos!$I$10-1,Flujo!$B$47,0) -> 0 | AN47: =IF(AN$2=Datos!$I$10-1,Flujo!$B$47,0) -> 0 | AO47: =IF(AO$2=Datos!$I$10-1,Flujo!$B$47,0) -> 0 | AP47: =IF(AP$2=Datos!$I$10-1,Flujo!$B$47,0) -> 0 | AQ47: =IF(AQ$2=Datos!$I$10-1,Flujo!$B$47,0) -> 0 | AR47: =IF(AR$2=Datos!$I$10-1,Flujo!$B$47,0) -> 0 | AS47: =IF(AS$2=Datos!$I$10-1,Flujo!$B$47,0) -> 0 | AT47: =IF(AT$2=Datos!$I$10-1,Flujo!$B$47,0) -> 0 | AU47: =IF(AU$2=Datos!$I$10-1,Flujo!$B$47,0) -> 0 | AV47: =IF(AV$2=Datos!$I$10-1,Flujo!$B$47,0) -> 0 | AW47: =IF(AW$2=Datos!$I$10-1,Flujo!$B$47,0) -> 0 | AX47: =IF(AX$2=Datos!$I$10-1,Flujo!$B$47,0) -> 0 | AY47: =IF(AY$2=Datos!$I$10-1,Flujo!$B$47,0) -> 0 | AZ47: =IF(AZ$2=Datos!$I$10-1,Flujo!$B$47,0) -> 0 | BA47: =IF(BA$2=Datos!$I$10-1,Flujo!$B$47,0) -> 0 | BB47: =IF(BB$2=Datos!$I$10-1,Flujo!$B$47,0) -> 0 | BC47: =IF(BC$2=Datos!$I$10-1,Flujo!$B$47,0) -> 0 | BD47: =IF(BD$2=Datos!$I$10-1,Flujo!$B$47,0) -> 0 | BE47: =IF(BE$2=Datos!$I$10-1,Flujo!$B$47,0) -> 0 | BF47: =IF(BF$2=Datos!$I$10-1,Flujo!$B$47,0) -> 0 | BG47: =IF(BG$2=Datos!$I$10-1,Flujo!$B$47,0) -> 0 | BH47: =IF(BH$2=Datos!$I$10-1,Flujo!$B$47,0) -> 0 | BI47: =IF(BI$2=Datos!$I$10-1,Flujo!$B$47,0) -> 0 | BJ47: =IF(BJ$2=Datos!$I$10-1,Flujo!$B$47,0) -> 0 | BK47: =IF(BK$2=Datos!$I$10-1,Flujo!$B$47,0) -> 0 | BL47: =IF(BL$2=Datos!$I$10-1,Flujo!$B$47,0) -> 0 | BM47: =IF(BM$2=Datos!$I$10-1,Flujo!$B$47,0) -> 0 | BN47: =IF(BN$2=Datos!$I$10-1,Flujo!$B$47,0) -> 0 | BO47: =IF(BO$2=Datos!$I$10-1,Flujo!$B$47,0) -> 0 | BP47: =IF(BP$2=Datos!$I$10-1,Flujo!$B$47,0) -> 0 | BQ47: =IF(BQ$2=Datos!$I$10-1,Flujo!$B$47,0) -> 0 | BR47: =IF(BR$2=Datos!$I$10-1,Flujo!$B$47,0) -> 0 | BS47: =IF(BS$2=Datos!$I$10-1,Flujo!$B$47,0) -> 0 | BT47: =IF(BT$2=Datos!$I$10-1,Flujo!$B$47,0) -> 0 | BU47: =IF(BU$2=Datos!$I$10-1,Flujo!$B$47,0) -> 0 | BV47: =IF(BV$2=Datos!$I$10-1,Flujo!$B$47,0) -> 0 | BW47: =IF(BW$2=Datos!$I$10-1,Flujo!$B$47,0) -> 0 | BX47: =IF(BX$2=Datos!$I$10-1,Flujo!$B$47,0) -> 0 | BY47: =IF(BY$2=Datos!$I$10-1,Flujo!$B$47,0) -> 0 | BZ47: =IF(BZ$2=Datos!$I$10-1,Flujo!$B$47,0) -> 0
A48: =Evaluación!C80 -> DIA | B48: =Evaluación!G80 -> 0 | C48: OK | E48: =IF(E$2=Datos!$I$10-1,Flujo!$B$48,0) -> 0 | F48: =IF(F$2=Datos!$I$10-1,Flujo!$B$48,0) -> 0 | G48: =IF(G$2=Datos!$I$10-1,Flujo!$B$48,0) -> 0 | H48: =IF(H$2=Datos!$I$10-1,Flujo!$B$48,0) -> 0 | I48: =IF(I$2=Datos!$I$10-1,Flujo!$B$48,0) -> 0 | J48: =IF(J$2=Datos!$I$10-1,Flujo!$B$48,0) -> 0 | K48: =IF(K$2=Datos!$I$10-1,Flujo!$B$48,0) -> 0 | L48: =IF(L$2=Datos!$I$10-1,Flujo!$B$48,0) -> 0 | M48: =IF(M$2=Datos!$I$10-1,Flujo!$B$48,0) -> 0 | N48: =IF(N$2=Datos!$I$10-1,Flujo!$B$48,0) -> 0 | O48: =IF(O$2=Datos!$I$10-1,Flujo!$B$48,0) -> 0 | P48: =IF(P$2=Datos!$I$10-1,Flujo!$B$48,0) -> 0 | Q48: =IF(Q$2=Datos!$I$10-1,Flujo!$B$48,0) -> 0 | R48: =IF(R$2=Datos!$I$10-1,Flujo!$B$48,0) -> 0 | S48: =IF(S$2=Datos!$I$10-1,Flujo!$B$48,0) -> 0 | T48: =IF(T$2=Datos!$I$10-1,Flujo!$B$48,0) -> 0 | U48: =IF(U$2=Datos!$I$10-1,Flujo!$B$48,0) -> 0 | V48: =IF(V$2=Datos!$I$10-1,Flujo!$B$48,0) -> 0 | W48: =IF(W$2=Datos!$I$10-1,Flujo!$B$48,0) -> 0 | X48: =IF(X$2=Datos!$I$10-1,Flujo!$B$48,0) -> 0 | Y48: =IF(Y$2=Datos!$I$10-1,Flujo!$B$48,0) -> 0 | Z48: =IF(Z$2=Datos!$I$10-1,Flujo!$B$48,0) -> 0 | AA48: =IF(AA$2=Datos!$I$10-1,Flujo!$B$48,0) -> 0 | AB48: =IF(AB$2=Datos!$I$10-1,Flujo!$B$48,0) -> 0 | AC48: =IF(AC$2=Datos!$I$10-1,Flujo!$B$48,0) -> 0 | AD48: =IF(AD$2=Datos!$I$10-1,Flujo!$B$48,0) -> 0 | AE48: =IF(AE$2=Datos!$I$10-1,Flujo!$B$48,0) -> 0 | AF48: =IF(AF$2=Datos!$I$10-1,Flujo!$B$48,0) -> 0 | AG48: =IF(AG$2=Datos!$I$10-1,Flujo!$B$48,0) -> 0 | AH48: =IF(AH$2=Datos!$I$10-1,Flujo!$B$48,0) -> 0 | AI48: =IF(AI$2=Datos!$I$10-1,Flujo!$B$48,0) -> 0 | AJ48: =IF(AJ$2=Datos!$I$10-1,Flujo!$B$48,0) -> 0 | AK48: =IF(AK$2=Datos!$I$10-1,Flujo!$B$48,0) -> 0 | AL48: =IF(AL$2=Datos!$I$10-1,Flujo!$B$48,0) -> 0 | AM48: =IF(AM$2=Datos!$I$10-1,Flujo!$B$48,0) -> 0 | AN48: =IF(AN$2=Datos!$I$10-1,Flujo!$B$48,0) -> 0 | AO48: =IF(AO$2=Datos!$I$10-1,Flujo!$B$48,0) -> 0 | AP48: =IF(AP$2=Datos!$I$10-1,Flujo!$B$48,0) -> 0 | AQ48: =IF(AQ$2=Datos!$I$10-1,Flujo!$B$48,0) -> 0 | AR48: =IF(AR$2=Datos!$I$10-1,Flujo!$B$48,0) -> 0 | AS48: =IF(AS$2=Datos!$I$10-1,Flujo!$B$48,0) -> 0 | AT48: =IF(AT$2=Datos!$I$10-1,Flujo!$B$48,0) -> 0 | AU48: =IF(AU$2=Datos!$I$10-1,Flujo!$B$48,0) -> 0 | AV48: =IF(AV$2=Datos!$I$10-1,Flujo!$B$48,0) -> 0 | AW48: =IF(AW$2=Datos!$I$10-1,Flujo!$B$48,0) -> 0 | AX48: =IF(AX$2=Datos!$I$10-1,Flujo!$B$48,0) -> 0 | AY48: =IF(AY$2=Datos!$I$10-1,Flujo!$B$48,0) -> 0 | AZ48: =IF(AZ$2=Datos!$I$10-1,Flujo!$B$48,0) -> 0 | BA48: =IF(BA$2=Datos!$I$10-1,Flujo!$B$48,0) -> 0 | BB48: =IF(BB$2=Datos!$I$10-1,Flujo!$B$48,0) -> 0 | BC48: =IF(BC$2=Datos!$I$10-1,Flujo!$B$48,0) -> 0 | BD48: =IF(BD$2=Datos!$I$10-1,Flujo!$B$48,0) -> 0 | BE48: =IF(BE$2=Datos!$I$10-1,Flujo!$B$48,0) -> 0 | BF48: =IF(BF$2=Datos!$I$10-1,Flujo!$B$48,0) -> 0 | BG48: =IF(BG$2=Datos!$I$10-1,Flujo!$B$48,0) -> 0 | BH48: =IF(BH$2=Datos!$I$10-1,Flujo!$B$48,0) -> 0 | BI48: =IF(BI$2=Datos!$I$10-1,Flujo!$B$48,0) -> 0 | BJ48: =IF(BJ$2=Datos!$I$10-1,Flujo!$B$48,0) -> 0 | BK48: =IF(BK$2=Datos!$I$10-1,Flujo!$B$48,0) -> 0 | BL48: =IF(BL$2=Datos!$I$10-1,Flujo!$B$48,0) -> 0 | BM48: =IF(BM$2=Datos!$I$10-1,Flujo!$B$48,0) -> 0 | BN48: =IF(BN$2=Datos!$I$10-1,Flujo!$B$48,0) -> 0 | BO48: =IF(BO$2=Datos!$I$10-1,Flujo!$B$48,0) -> 0 | BP48: =IF(BP$2=Datos!$I$10-1,Flujo!$B$48,0) -> 0 | BQ48: =IF(BQ$2=Datos!$I$10-1,Flujo!$B$48,0) -> 0 | BR48: =IF(BR$2=Datos!$I$10-1,Flujo!$B$48,0) -> 0 | BS48: =IF(BS$2=Datos!$I$10-1,Flujo!$B$48,0) -> 0 | BT48: =IF(BT$2=Datos!$I$10-1,Flujo!$B$48,0) -> 0 | BU48: =IF(BU$2=Datos!$I$10-1,Flujo!$B$48,0) -> 0 | BV48: =IF(BV$2=Datos!$I$10-1,Flujo!$B$48,0) -> 0 | BW48: =IF(BW$2=Datos!$I$10-1,Flujo!$B$48,0) -> 0 | BX48: =IF(BX$2=Datos!$I$10-1,Flujo!$B$48,0) -> 0 | BY48: =IF(BY$2=Datos!$I$10-1,Flujo!$B$48,0) -> 0 | BZ48: =IF(BZ$2=Datos!$I$10-1,Flujo!$B$48,0) -> 0
A49: =Evaluación!C81 -> EISTU | B49: =Evaluación!G81 -> 0 | C49: OK | E49: =IF(E$2=Datos!$I$10-1,Flujo!$B$49,0) -> 0 | F49: =IF(F$2=Datos!$I$10-1,Flujo!$B$49,0) -> 0 | G49: =IF(G$2=Datos!$I$10-1,Flujo!$B$49,0) -> 0 | H49: =IF(H$2=Datos!$I$10-1,Flujo!$B$49,0) -> 0 | I49: =IF(I$2=Datos!$I$10-1,Flujo!$B$49,0) -> 0 | J49: =IF(J$2=Datos!$I$10-1,Flujo!$B$49,0) -> 0 | K49: =IF(K$2=Datos!$I$10-1,Flujo!$B$49,0) -> 0 | L49: =IF(L$2=Datos!$I$10-1,Flujo!$B$49,0) -> 0 | M49: =IF(M$2=Datos!$I$10-1,Flujo!$B$49,0) -> 0 | N49: =IF(N$2=Datos!$I$10-1,Flujo!$B$49,0) -> 0 | O49: =IF(O$2=Datos!$I$10-1,Flujo!$B$49,0) -> 0 | P49: =IF(P$2=Datos!$I$10-1,Flujo!$B$49,0) -> 0 | Q49: =IF(Q$2=Datos!$I$10-1,Flujo!$B$49,0) -> 0 | R49: =IF(R$2=Datos!$I$10-1,Flujo!$B$49,0) -> 0 | S49: =IF(S$2=Datos!$I$10-1,Flujo!$B$49,0) -> 0 | T49: =IF(T$2=Datos!$I$10-1,Flujo!$B$49,0) -> 0 | U49: =IF(U$2=Datos!$I$10-1,Flujo!$B$49,0) -> 0 | V49: =IF(V$2=Datos!$I$10-1,Flujo!$B$49,0) -> 0 | W49: =IF(W$2=Datos!$I$10-1,Flujo!$B$49,0) -> 0 | X49: =IF(X$2=Datos!$I$10-1,Flujo!$B$49,0) -> 0 | Y49: =IF(Y$2=Datos!$I$10-1,Flujo!$B$49,0) -> 0 | Z49: =IF(Z$2=Datos!$I$10-1,Flujo!$B$49,0) -> 0 | AA49: =IF(AA$2=Datos!$I$10-1,Flujo!$B$49,0) -> 0 | AB49: =IF(AB$2=Datos!$I$10-1,Flujo!$B$49,0) -> 0 | AC49: =IF(AC$2=Datos!$I$10-1,Flujo!$B$49,0) -> 0 | AD49: =IF(AD$2=Datos!$I$10-1,Flujo!$B$49,0) -> 0 | AE49: =IF(AE$2=Datos!$I$10-1,Flujo!$B$49,0) -> 0 | AF49: =IF(AF$2=Datos!$I$10-1,Flujo!$B$49,0) -> 0 | AG49: =IF(AG$2=Datos!$I$10-1,Flujo!$B$49,0) -> 0 | AH49: =IF(AH$2=Datos!$I$10-1,Flujo!$B$49,0) -> 0 | AI49: =IF(AI$2=Datos!$I$10-1,Flujo!$B$49,0) -> 0 | AJ49: =IF(AJ$2=Datos!$I$10-1,Flujo!$B$49,0) -> 0 | AK49: =IF(AK$2=Datos!$I$10-1,Flujo!$B$49,0) -> 0 | AL49: =IF(AL$2=Datos!$I$10-1,Flujo!$B$49,0) -> 0 | AM49: =IF(AM$2=Datos!$I$10-1,Flujo!$B$49,0) -> 0 | AN49: =IF(AN$2=Datos!$I$10-1,Flujo!$B$49,0) -> 0 | AO49: =IF(AO$2=Datos!$I$10-1,Flujo!$B$49,0) -> 0 | AP49: =IF(AP$2=Datos!$I$10-1,Flujo!$B$49,0) -> 0 | AQ49: =IF(AQ$2=Datos!$I$10-1,Flujo!$B$49,0) -> 0 | AR49: =IF(AR$2=Datos!$I$10-1,Flujo!$B$49,0) -> 0 | AS49: =IF(AS$2=Datos!$I$10-1,Flujo!$B$49,0) -> 0 | AT49: =IF(AT$2=Datos!$I$10-1,Flujo!$B$49,0) -> 0 | AU49: =IF(AU$2=Datos!$I$10-1,Flujo!$B$49,0) -> 0 | AV49: =IF(AV$2=Datos!$I$10-1,Flujo!$B$49,0) -> 0 | AW49: =IF(AW$2=Datos!$I$10-1,Flujo!$B$49,0) -> 0 | AX49: =IF(AX$2=Datos!$I$10-1,Flujo!$B$49,0) -> 0 | AY49: =IF(AY$2=Datos!$I$10-1,Flujo!$B$49,0) -> 0 | AZ49: =IF(AZ$2=Datos!$I$10-1,Flujo!$B$49,0) -> 0 | BA49: =IF(BA$2=Datos!$I$10-1,Flujo!$B$49,0) -> 0 | BB49: =IF(BB$2=Datos!$I$10-1,Flujo!$B$49,0) -> 0 | BC49: =IF(BC$2=Datos!$I$10-1,Flujo!$B$49,0) -> 0 | BD49: =IF(BD$2=Datos!$I$10-1,Flujo!$B$49,0) -> 0 | BE49: =IF(BE$2=Datos!$I$10-1,Flujo!$B$49,0) -> 0 | BF49: =IF(BF$2=Datos!$I$10-1,Flujo!$B$49,0) -> 0 | BG49: =IF(BG$2=Datos!$I$10-1,Flujo!$B$49,0) -> 0 | BH49: =IF(BH$2=Datos!$I$10-1,Flujo!$B$49,0) -> 0 | BI49: =IF(BI$2=Datos!$I$10-1,Flujo!$B$49,0) -> 0 | BJ49: =IF(BJ$2=Datos!$I$10-1,Flujo!$B$49,0) -> 0 | BK49: =IF(BK$2=Datos!$I$10-1,Flujo!$B$49,0) -> 0 | BL49: =IF(BL$2=Datos!$I$10-1,Flujo!$B$49,0) -> 0 | BM49: =IF(BM$2=Datos!$I$10-1,Flujo!$B$49,0) -> 0 | BN49: =IF(BN$2=Datos!$I$10-1,Flujo!$B$49,0) -> 0 | BO49: =IF(BO$2=Datos!$I$10-1,Flujo!$B$49,0) -> 0 | BP49: =IF(BP$2=Datos!$I$10-1,Flujo!$B$49,0) -> 0 | BQ49: =IF(BQ$2=Datos!$I$10-1,Flujo!$B$49,0) -> 0 | BR49: =IF(BR$2=Datos!$I$10-1,Flujo!$B$49,0) -> 0 | BS49: =IF(BS$2=Datos!$I$10-1,Flujo!$B$49,0) -> 0 | BT49: =IF(BT$2=Datos!$I$10-1,Flujo!$B$49,0) -> 0 | BU49: =IF(BU$2=Datos!$I$10-1,Flujo!$B$49,0) -> 0 | BV49: =IF(BV$2=Datos!$I$10-1,Flujo!$B$49,0) -> 0 | BW49: =IF(BW$2=Datos!$I$10-1,Flujo!$B$49,0) -> 0 | BX49: =IF(BX$2=Datos!$I$10-1,Flujo!$B$49,0) -> 0 | BY49: =IF(BY$2=Datos!$I$10-1,Flujo!$B$49,0) -> 0 | BZ49: =IF(BZ$2=Datos!$I$10-1,Flujo!$B$49,0) -> 0
A50: IVA Honorarios y Proyectos | C50: OK
A52: Total Honorarios y Proyectos | B52: =SUM(B42:B51) -> 550 | C52: =IF(SUM(D52:BV52)=B52,"OK","") ->  | D52: =SUM(D42:D50) -> 0 | J52: =SUM(J42:J51) ->  | K52: =SUM(K42:K50) ->  | AS52: =SUM(AS42:AS50) ->  | BC52: =SUM(BC42:BC50) ->  | BD52: =SUM(BD42:BD50) ->  | BE52: =SUM(BE42:BE50) ->  | BF52: =SUM(BF42:BF50) ->  | BG52: =SUM(BG42:BG50) ->  | BM52: =SUM(BM42:BM50) ->  | BW52: =SUM(BW42:BW50) ->  | BX52: =SUM(BX42:BX50) ->  | BY52: =SUM(BY42:BY50) ->  | BZ52: =SUM(BZ42:BZ50) -> 
A54: 5.- GASTOS COMERCIALIZACIÓN | T54: termino escrituracion | U54: termino escrituracion
A55: =Evaluación!C86 -> Gastos publicidad | B55: =Evaluación!G86 -> 0 | C55: =IF(SUM(E55:BV55)=B55,"OK","") ->  | E55: =IF(E91>0,$B$55/Datos!#REF!,0) ->  | F55: =IF(F91>0,$B$55/Datos!#REF!,0) ->  | G55: =IF(G91>0,$B$55/Datos!#REF!,0) ->  | H55: =IF(H91>0,$B$55/Datos!#REF!,0) ->  | I55: =IF(I91>0,$B$55/Datos!#REF!,0) ->  | J55: =IF(J91>0,$B$55/Datos!#REF!,0) ->  | K55: =IF(K91>0,$B$55/Datos!#REF!,0) ->  | L55: =IF(L91>0,$B$55/Datos!#REF!,0) ->  | M55: =IF(M91>0,$B$55/Datos!#REF!,0) ->  | N55: =IF(N91>0,$B$55/Datos!#REF!,0) ->  | O55: =IF(O91>0,$B$55/Datos!#REF!,0) ->  | P55: =IF(P91>0,$B$55/Datos!#REF!,0) ->  | Q55: =IF(Q91>0,$B$55/Datos!#REF!,0) ->  | R55: =IF(R91>0,$B$55/Datos!#REF!,0) ->  | S55: =IF(S91>0,$B$55/Datos!#REF!,0) ->  | T55: =IF(T91>0,$B$55/Datos!#REF!,0) ->  | U55: =IF(U91>0,$B$55/Datos!#REF!,0) ->  | V55: =IF(V91>0,$B$55/Datos!#REF!,0) ->  | W55: =IF(W91>0,$B$55/Datos!#REF!,0) ->  | X55: =IF(X91>0,$B$55/Datos!#REF!,0) ->  | Y55: =IF(Y91>0,$B$55/Datos!#REF!,0) ->  | Z55: =IF(Z91>0,$B$55/Datos!#REF!,0) ->  | AA55: =IF(AA91>0,$B$55/Datos!#REF!,0) ->  | AB55: =IF(AB91>0,$B$55/Datos!#REF!,0) ->  | AC55: =IF(AC91>0,$B$55/Datos!#REF!,0) ->  | AD55: =IF(AD91>0,$B$55/Datos!#REF!,0) ->  | AE55: =IF(AE91>0,$B$55/Datos!#REF!,0) ->  | AF55: =IF(AF91>0,$B$55/Datos!#REF!,0) ->  | AG55: =IF(AG91>0,$B$55/Datos!#REF!,0) ->  | AH55: =IF(AH91>0,$B$55/Datos!#REF!,0) ->  | AI55: =IF(AI91>0,$B$55/Datos!#REF!,0) ->  | AJ55: =IF(AJ91>0,$B$55/Datos!#REF!,0) ->  | AK55: =IF(AK91>0,$B$55/Datos!#REF!,0) ->  | AL55: =IF(AL91>0,$B$55/Datos!#REF!,0) ->  | AM55: =IF(AM91>0,$B$55/Datos!#REF!,0) ->  | AN55: =IF(AN91>0,$B$55/Datos!#REF!,0) ->  | AO55: =IF(AO91>0,$B$55/Datos!#REF!,0) ->  | AP55: =IF(AP91>0,$B$55/Datos!#REF!,0) ->  | AQ55: =IF(AQ91>0,$B$55/Datos!#REF!,0) ->  | AR55: =IF(AR91>0,$B$55/Datos!#REF!,0) ->  | AS55: =IF(AS91>0,$B$55/Datos!#REF!,0) ->  | AT55: =IF(AT91>0,$B$55/Datos!#REF!,0) ->  | AU55: =IF(AU91>0,$B$55/Datos!#REF!,0) ->  | AV55: =IF(AV91>0,$B$55/Datos!#REF!,0) ->  | AW55: =IF(AW91>0,$B$55/Datos!#REF!,0) ->  | AX55: =IF(AX91>0,$B$55/Datos!#REF!,0) ->  | AY55: =IF(AY91>0,$B$55/Datos!#REF!,0) ->  | AZ55: =IF(AZ91>0,$B$55/Datos!#REF!,0) ->  | BA55: =IF(BA91>0,$B$55/Datos!#REF!,0) ->  | BB55: =IF(BB91>0,$B$55/Datos!#REF!,0) ->  | BC55: =IF(BC91>0,$B$55/Datos!#REF!,0) ->  | BD55: =IF(BD91>0,$B$55/Datos!#REF!,0) ->  | BE55: =IF(BE91>0,$B$55/Datos!#REF!,0) ->  | BF55: =IF(BF91>0,$B$55/Datos!#REF!,0) ->  | BG55: =IF(BG91>0,$B$55/Datos!#REF!,0) ->  | BH55: =IF(BH91>0,$B$55/Datos!#REF!,0) ->  | BI55: =IF(BI91>0,$B$55/Datos!#REF!,0) ->  | BJ55: =IF(BJ91>0,$B$55/Datos!#REF!,0) ->  | BK55: =IF(BK91>0,$B$55/Datos!#REF!,0) ->  | BL55: =IF(BL91>0,$B$55/Datos!#REF!,0) ->  | BM55: =IF(BM91>0,$B$55/Datos!#REF!,0) ->  | BN55: =IF(BN91>0,$B$55/Datos!#REF!,0) ->  | BO55: =IF(BO91>0,$B$55/Datos!#REF!,0) ->  | BP55: =IF(BP91>0,$B$55/Datos!#REF!,0) ->  | BQ55: =IF(BQ91>0,$B$55/Datos!#REF!,0) ->  | BR55: =IF(BR91>0,$B$55/Datos!#REF!,0) ->  | BS55: =IF(BS91>0,$B$55/Datos!#REF!,0) ->  | BT55: =IF(BT91>0,$B$55/Datos!#REF!,0) ->  | BU55: =IF(BU91>0,$B$55/Datos!#REF!,0) ->  | BV55: =IF(BV91>0,$B$55/Datos!#REF!,0) ->  | BW55: =IF(BW91>0,$B$55/Datos!#REF!,0) ->  | BX55: =IF(BX91>0,$B$55/Datos!#REF!,0) ->  | BY55: =IF(BY91>0,$B$55/Datos!#REF!,0) ->  | BZ55: =IF(BZ91>0,$B$55/Datos!#REF!,0) -> 
A56: =Evaluación!C87 -> Gestión de Ventas | B56: =Evaluación!G87 -> 0 | C56: =IF(SUM(E56:BV56)=B56,"OK","") ->  | E56: =IF(E91>0,$B$56/Datos!#REF!,0) ->  | F56: =IF(F91>0,$B$56/Datos!#REF!,0) ->  | G56: =IF(G91>0,$B$56/Datos!#REF!,0) ->  | H56: =IF(H91>0,$B$56/Datos!#REF!,0) ->  | I56: =IF(I91>0,$B$56/Datos!#REF!,0) ->  | J56: =IF(J91>0,$B$56/Datos!#REF!,0) ->  | K56: =IF(K91>0,$B$56/Datos!#REF!,0) ->  | L56: =IF(L91>0,$B$56/Datos!#REF!,0) ->  | M56: =IF(M91>0,$B$56/Datos!#REF!,0) ->  | N56: =IF(N91>0,$B$56/Datos!#REF!,0) ->  | O56: =IF(O91>0,$B$56/Datos!#REF!,0) ->  | P56: =IF(P91>0,$B$56/Datos!#REF!,0) ->  | Q56: =IF(Q91>0,$B$56/Datos!#REF!,0) ->  | R56: =IF(R91>0,$B$56/Datos!#REF!,0) ->  | S56: =IF(S91>0,$B$56/Datos!#REF!,0) ->  | T56: =IF(T91>0,$B$56/Datos!#REF!,0) ->  | U56: =IF(U91>0,$B$56/Datos!#REF!,0) ->  | V56: =IF(V91>0,$B$56/Datos!#REF!,0) ->  | W56: =IF(W91>0,$B$56/Datos!#REF!,0) ->  | X56: =IF(X91>0,$B$56/Datos!#REF!,0) ->  | Y56: =IF(Y91>0,$B$56/Datos!#REF!,0) ->  | Z56: =IF(Z91>0,$B$56/Datos!#REF!,0) ->  | AA56: =IF(AA91>0,$B$56/Datos!#REF!,0) ->  | AB56: =IF(AB91>0,$B$56/Datos!#REF!,0) ->  | AC56: =IF(AC91>0,$B$56/Datos!#REF!,0) ->  | AD56: =IF(AD91>0,$B$56/Datos!#REF!,0) ->  | AE56: =IF(AE91>0,$B$56/Datos!#REF!,0) ->  | AF56: =IF(AF91>0,$B$56/Datos!#REF!,0) ->  | AG56: =IF(AG91>0,$B$56/Datos!#REF!,0) ->  | AH56: =IF(AH91>0,$B$56/Datos!#REF!,0) ->  | AI56: =IF(AI91>0,$B$56/Datos!#REF!,0) ->  | AJ56: =IF(AJ91>0,$B$56/Datos!#REF!,0) ->  | AK56: =IF(AK91>0,$B$56/Datos!#REF!,0) ->  | AL56: =IF(AL91>0,$B$56/Datos!#REF!,0) ->  | AM56: =IF(AM91>0,$B$56/Datos!#REF!,0) ->  | AN56: =IF(AN91>0,$B$56/Datos!#REF!,0) ->  | AO56: =IF(AO91>0,$B$56/Datos!#REF!,0) ->  | AP56: =IF(AP91>0,$B$56/Datos!#REF!,0) ->  | AQ56: =IF(AQ91>0,$B$56/Datos!#REF!,0) ->  | AR56: =IF(AR91>0,$B$56/Datos!#REF!,0) ->  | AS56: =IF(AS91>0,$B$56/Datos!#REF!,0) ->  | AT56: =IF(AT91>0,$B$56/Datos!#REF!,0) ->  | AU56: =IF(AU91>0,$B$56/Datos!#REF!,0) ->  | AV56: =IF(AV91>0,$B$56/Datos!#REF!,0) ->  | AW56: =IF(AW91>0,$B$56/Datos!#REF!,0) ->  | AX56: =IF(AX91>0,$B$56/Datos!#REF!,0) ->  | AY56: =IF(AY91>0,$B$56/Datos!#REF!,0) ->  | AZ56: =IF(AZ91>0,$B$56/Datos!#REF!,0) ->  | BA56: =IF(BA91>0,$B$56/Datos!#REF!,0) ->  | BB56: =IF(BB91>0,$B$56/Datos!#REF!,0) ->  | BC56: =IF(BC91>0,$B$56/Datos!#REF!,0) ->  | BD56: =IF(BD91>0,$B$56/Datos!#REF!,0) ->  | BE56: =IF(BE91>0,$B$56/Datos!#REF!,0) ->  | BF56: =IF(BF91>0,$B$56/Datos!#REF!,0) ->  | BG56: =IF(BG91>0,$B$56/Datos!#REF!,0) ->  | BH56: =IF(BH91>0,$B$56/Datos!#REF!,0) ->  | BI56: =IF(BI91>0,$B$56/Datos!#REF!,0) ->  | BJ56: =IF(BJ91>0,$B$56/Datos!#REF!,0) ->  | BK56: =IF(BK91>0,$B$56/Datos!#REF!,0) ->  | BL56: =IF(BL91>0,$B$56/Datos!#REF!,0) ->  | BM56: =IF(BM91>0,$B$56/Datos!#REF!,0) ->  | BN56: =IF(BN91>0,$B$56/Datos!#REF!,0) ->  | BO56: =IF(BO91>0,$B$56/Datos!#REF!,0) ->  | BP56: =IF(BP91>0,$B$56/Datos!#REF!,0) ->  | BQ56: =IF(BQ91>0,$B$56/Datos!#REF!,0) ->  | BR56: =IF(BR91>0,$B$56/Datos!#REF!,0) ->  | BS56: =IF(BS91>0,$B$56/Datos!#REF!,0) ->  | BT56: =IF(BT91>0,$B$56/Datos!#REF!,0) ->  | BU56: =IF(BU91>0,$B$56/Datos!#REF!,0) ->  | BV56: =IF(BV91>0,$B$56/Datos!#REF!,0) ->  | BW56: =IF(BW91>0,$B$56/Datos!#REF!,0) ->  | BX56: =IF(BX91>0,$B$56/Datos!#REF!,0) ->  | BY56: =IF(BY91>0,$B$56/Datos!#REF!,0) ->  | BZ56: =IF(BZ91>0,$B$56/Datos!#REF!,0) -> 
A57: =Evaluación!C88 -> Sala de ventas y piloto | B57: =Evaluación!G88 -> 2400 | C57: =IF(SUM(E57:BV57)=B57,"OK","") ->  | E57: =IF(E2=Datos!$I$10,($B$57*2/3),IF(E2=Datos!$I$11,($B$57*1/3),0)) -> 0 | F57: =IF(F2=Datos!$I$10,($B$57*2/3),IF(F2=Datos!$I$11,($B$57*1/3),0)) -> 0 | G57: =IF(G2=Datos!$I$10,($B$57*2/3),IF(G2=Datos!$I$11,($B$57*1/3),0)) -> 0 | H57: =IF(H2=Datos!$I$10,($B$57*2/3),IF(H2=Datos!$I$11,($B$57*1/3),0)) -> 0 | I57: =IF(I2=Datos!$I$10,($B$57*2/3),IF(I2=Datos!$I$11,($B$57*1/3),0)) -> 0 | J57: =IF(J2=Datos!$I$10,($B$57*2/3),IF(J2=Datos!$I$11,($B$57*1/3),0)) -> 0 | K57: =IF(K2=Datos!$I$10,($B$57*2/3),IF(K2=Datos!$I$11,($B$57*1/3),0)) -> 0 | L57: =IF(L2=Datos!$I$10,($B$57*2/3),IF(L2=Datos!$I$11,($B$57*1/3),0)) -> 0 | M57: =IF(M2=Datos!$I$10,($B$57*2/3),IF(M2=Datos!$I$11,($B$57*1/3),0)) -> 0 | N57: =IF(N2=Datos!$I$10,($B$57*2/3),IF(N2=Datos!$I$11,($B$57*1/3),0)) -> 0 | O57: =IF(O2=Datos!$I$10,($B$57*2/3),IF(O2=Datos!$I$11,($B$57*1/3),0)) -> 0 | P57: =IF(P2=Datos!$I$10,($B$57*2/3),IF(P2=Datos!$I$11,($B$57*1/3),0)) -> 0 | Q57: =IF(Q2=Datos!$I$10,($B$57*2/3),IF(Q2=Datos!$I$11,($B$57*1/3),0)) -> 0 | R57: =IF(R2=Datos!$I$10,($B$57*2/3),IF(R2=Datos!$I$11,($B$57*1/3),0)) -> 0 | S57: =IF(S2=Datos!$I$10,($B$57*2/3),IF(S2=Datos!$I$11,($B$57*1/3),0)) -> 0 | T57: =IF(T2=Datos!$I$10,($B$57*2/3),IF(T2=Datos!$I$11,($B$57*1/3),0)) -> 0 | U57: =IF(U2=Datos!$I$10,($B$57*2/3),IF(U2=Datos!$I$11,($B$57*1/3),0)) -> 0 | V57: =IF(V2=Datos!$I$10,($B$57*2/3),IF(V2=Datos!$I$11,($B$57*1/3),0)) -> 0 | W57: =IF(W2=Datos!$I$10,($B$57*2/3),IF(W2=Datos!$I$11,($B$57*1/3),0)) -> 0 | X57: =IF(X2=Datos!$I$10,($B$57*2/3),IF(X2=Datos!$I$11,($B$57*1/3),0)) -> 0 | Y57: =IF(Y2=Datos!$I$10,($B$57*2/3),IF(Y2=Datos!$I$11,($B$57*1/3),0)) -> 0 | Z57: =IF(Z2=Datos!$I$10,($B$57*2/3),IF(Z2=Datos!$I$11,($B$57*1/3),0)) -> 0 | AA57: =IF(AA2=Datos!$I$10,($B$57*2/3),IF(AA2=Datos!$I$11,($B$57*1/3),0)) -> 0 | AB57: =IF(AB2=Datos!$I$10,($B$57*2/3),IF(AB2=Datos!$I$11,($B$57*1/3),0)) -> 0 | AC57: =IF(AC2=Datos!$I$10,($B$57*2/3),IF(AC2=Datos!$I$11,($B$57*1/3),0)) -> 0 | AD57: =IF(AD2=Datos!$I$10,($B$57*2/3),IF(AD2=Datos!$I$11,($B$57*1/3),0)) -> 0 | AE57: =IF(AE2=Datos!$I$10,($B$57*2/3),IF(AE2=Datos!$I$11,($B$57*1/3),0)) -> 0 | AF57: =IF(AF2=Datos!$I$10,($B$57*2/3),IF(AF2=Datos!$I$11,($B$57*1/3),0)) -> 0 | AG57: =IF(AG2=Datos!$I$10,($B$57*2/3),IF(AG2=Datos!$I$11,($B$57*1/3),0)) -> 0 | AH57: =IF(AH2=Datos!$I$10,($B$57*2/3),IF(AH2=Datos!$I$11,($B$57*1/3),0)) -> 0 | AI57: =IF(AI2=Datos!$I$10,($B$57*2/3),IF(AI2=Datos!$I$11,($B$57*1/3),0)) -> 0 | AJ57: =IF(AJ2=Datos!$I$10,($B$57*2/3),IF(AJ2=Datos!$I$11,($B$57*1/3),0)) -> 0 | AK57: =IF(AK2=Datos!$I$10,($B$57*2/3),IF(AK2=Datos!$I$11,($B$57*1/3),0)) -> 0 | AL57: =IF(AL2=Datos!$I$10,($B$57*2/3),IF(AL2=Datos!$I$11,($B$57*1/3),0)) -> 0 | AM57: =IF(AM2=Datos!$I$10,($B$57*2/3),IF(AM2=Datos!$I$11,($B$57*1/3),0)) -> 0 | AN57: =IF(AN2=Datos!$I$10,($B$57*2/3),IF(AN2=Datos!$I$11,($B$57*1/3),0)) -> 0 | AO57: =IF(AO2=Datos!$I$10,($B$57*2/3),IF(AO2=Datos!$I$11,($B$57*1/3),0)) -> 0 | AP57: =IF(AP2=Datos!$I$10,($B$57*2/3),IF(AP2=Datos!$I$11,($B$57*1/3),0)) -> 0 | AQ57: =IF(AQ2=Datos!$I$10,($B$57*2/3),IF(AQ2=Datos!$I$11,($B$57*1/3),0)) -> 0 | AR57: =IF(AR2=Datos!$I$10,($B$57*2/3),IF(AR2=Datos!$I$11,($B$57*1/3),0)) -> 0 | AS57: =IF(AS2=Datos!$I$10,($B$57*2/3),IF(AS2=Datos!$I$11,($B$57*1/3),0)) -> 0 | AT57: =IF(AT2=Datos!$I$10,($B$57*2/3),IF(AT2=Datos!$I$11,($B$57*1/3),0)) -> 0 | AU57: =IF(AU2=Datos!$I$10,($B$57*2/3),IF(AU2=Datos!$I$11,($B$57*1/3),0)) -> 0 | AV57: =IF(AV2=Datos!$I$10,($B$57*2/3),IF(AV2=Datos!$I$11,($B$57*1/3),0)) -> 0 | AW57: =IF(AW2=Datos!$I$10,($B$57*2/3),IF(AW2=Datos!$I$11,($B$57*1/3),0)) -> 0 | AX57: =IF(AX2=Datos!$I$10,($B$57*2/3),IF(AX2=Datos!$I$11,($B$57*1/3),0)) -> 0 | AY57: =IF(AY2=Datos!$I$10,($B$57*2/3),IF(AY2=Datos!$I$11,($B$57*1/3),0)) -> 0 | AZ57: =IF(AZ2=Datos!$I$10,($B$57*2/3),IF(AZ2=Datos!$I$11,($B$57*1/3),0)) -> 0 | BA57: =IF(BA2=Datos!$I$10,($B$57*2/3),IF(BA2=Datos!$I$11,($B$57*1/3),0)) -> 0 | BB57: =IF(BB2=Datos!$I$10,($B$57*2/3),IF(BB2=Datos!$I$11,($B$57*1/3),0)) -> 0 | BC57: =IF(BC2=Datos!$I$10,($B$57*2/3),IF(BC2=Datos!$I$11,($B$57*1/3),0)) -> 0 | BD57: =IF(BD2=Datos!$I$10,($B$57*2/3),IF(BD2=Datos!$I$11,($B$57*1/3),0)) -> 0 | BE57: =IF(BE2=Datos!$I$10,($B$57*2/3),IF(BE2=Datos!$I$11,($B$57*1/3),0)) -> 0 | BF57: =IF(BF2=Datos!$I$10,($B$57*2/3),IF(BF2=Datos!$I$11,($B$57*1/3),0)) -> 0 | BG57: =IF(BG2=Datos!$I$10,($B$57*2/3),IF(BG2=Datos!$I$11,($B$57*1/3),0)) -> 0 | BH57: =IF(BH2=Datos!$I$10,($B$57*2/3),IF(BH2=Datos!$I$11,($B$57*1/3),0)) -> 0 | BI57: =IF(BI2=Datos!$I$10,($B$57*2/3),IF(BI2=Datos!$I$11,($B$57*1/3),0)) -> 0 | BJ57: =IF(BJ2=Datos!$I$10,($B$57*2/3),IF(BJ2=Datos!$I$11,($B$57*1/3),0)) -> 0 | BK57: =IF(BK2=Datos!$I$10,($B$57*2/3),IF(BK2=Datos!$I$11,($B$57*1/3),0)) -> 0 | BL57: =IF(BL2=Datos!$I$10,($B$57*2/3),IF(BL2=Datos!$I$11,($B$57*1/3),0)) -> 0 | BM57: =IF(BM2=Datos!$I$10,($B$57*2/3),IF(BM2=Datos!$I$11,($B$57*1/3),0)) -> 0 | BN57: =IF(BN2=Datos!$I$10,($B$57*2/3),IF(BN2=Datos!$I$11,($B$57*1/3),0)) -> 0 | BO57: =IF(BO2=Datos!$I$10,($B$57*2/3),IF(BO2=Datos!$I$11,($B$57*1/3),0)) -> 0 | BP57: =IF(BP2=Datos!$I$10,($B$57*2/3),IF(BP2=Datos!$I$11,($B$57*1/3),0)) -> 0 | BQ57: =IF(BQ2=Datos!$I$10,($B$57*2/3),IF(BQ2=Datos!$I$11,($B$57*1/3),0)) -> 0 | BR57: =IF(BR2=Datos!$I$10,($B$57*2/3),IF(BR2=Datos!$I$11,($B$57*1/3),0)) -> 0 | BS57: =IF(BS2=Datos!$I$10,($B$57*2/3),IF(BS2=Datos!$I$11,($B$57*1/3),0)) -> 0 | BT57: =IF(BT2=Datos!$I$10,($B$57*2/3),IF(BT2=Datos!$I$11,($B$57*1/3),0)) -> 0 | BU57: =IF(BU2=Datos!$I$10,($B$57*2/3),IF(BU2=Datos!$I$11,($B$57*1/3),0)) -> 0 | BV57: =IF(BV2=Datos!$I$10,($B$57*2/3),IF(BV2=Datos!$I$11,($B$57*1/3),0)) -> 0 | BW57: =IF(BW2=Datos!$I$10,($B$57*2/3),IF(BW2=Datos!$I$11,($B$57*1/3),0)) -> 0 | BX57: =IF(BX2=Datos!$I$10,($B$57*2/3),IF(BX2=Datos!$I$11,($B$57*1/3),0)) -> 0 | BY57: =IF(BY2=Datos!$I$10,($B$57*2/3),IF(BY2=Datos!$I$11,($B$57*1/3),0)) -> 0 | BZ57: =IF(BZ2=Datos!$I$10,($B$57*2/3),IF(BZ2=Datos!$I$11,($B$57*1/3),0)) -> 0
A58: =Evaluación!C89 -> Gastos generales | B58: =Evaluación!G89 -> 0 | C58: =IF(SUM(E58:BV58)=B58,"OK","") ->  | E58: =IF(AND(E2>=Datos!$I$10,E2<=Datos!#REF!+7),Flujo!$B$58/(Datos!#REF!+8-Datos!$I$10),0) ->  | F58: =IF(AND(F2>=Datos!$I$10,F2<=Datos!#REF!+7),Flujo!$B$58/(Datos!#REF!+8-Datos!$I$10),0) ->  | G58: =IF(AND(G2>=Datos!$I$10,G2<=Datos!#REF!+7),Flujo!$B$58/(Datos!#REF!+8-Datos!$I$10),0) ->  | H58: =IF(AND(H2>=Datos!$I$10,H2<=Datos!#REF!+7),Flujo!$B$58/(Datos!#REF!+8-Datos!$I$10),0) ->  | I58: =IF(AND(I2>=Datos!$I$10,I2<=Datos!#REF!+7),Flujo!$B$58/(Datos!#REF!+8-Datos!$I$10),0) ->  | J58: =IF(AND(J2>=Datos!$I$10,J2<=Datos!#REF!+7),Flujo!$B$58/(Datos!#REF!+8-Datos!$I$10),0) ->  | K58: =IF(AND(K2>=Datos!$I$10,K2<=Datos!#REF!+7),Flujo!$B$58/(Datos!#REF!+8-Datos!$I$10),0) ->  | L58: =IF(AND(L2>=Datos!$I$10,L2<=Datos!#REF!+7),Flujo!$B$58/(Datos!#REF!+8-Datos!$I$10),0) ->  | M58: =IF(AND(M2>=Datos!$I$10,M2<=Datos!#REF!+7),Flujo!$B$58/(Datos!#REF!+8-Datos!$I$10),0) ->  | N58: =IF(AND(N2>=Datos!$I$10,N2<=Datos!#REF!+7),Flujo!$B$58/(Datos!#REF!+8-Datos!$I$10),0) ->  | O58: =IF(AND(O2>=Datos!$I$10,O2<=Datos!#REF!+7),Flujo!$B$58/(Datos!#REF!+8-Datos!$I$10),0) ->  | P58: =IF(AND(P2>=Datos!$I$10,P2<=Datos!#REF!+7),Flujo!$B$58/(Datos!#REF!+8-Datos!$I$10),0) ->  | Q58: =IF(AND(Q2>=Datos!$I$10,Q2<=Datos!#REF!+7),Flujo!$B$58/(Datos!#REF!+8-Datos!$I$10),0) ->  | R58: =IF(AND(R2>=Datos!$I$10,R2<=Datos!#REF!+7),Flujo!$B$58/(Datos!#REF!+8-Datos!$I$10),0) ->  | S58: =IF(AND(S2>=Datos!$I$10,S2<=Datos!#REF!+7),Flujo!$B$58/(Datos!#REF!+8-Datos!$I$10),0) ->  | T58: =IF(AND(T2>=Datos!$I$10,T2<=Datos!#REF!+7),Flujo!$B$58/(Datos!#REF!+8-Datos!$I$10),0) ->  | U58: =IF(AND(U2>=Datos!$I$10,U2<=Datos!#REF!+7),Flujo!$B$58/(Datos!#REF!+8-Datos!$I$10),0) ->  | V58: =IF(AND(V2>=Datos!$I$10,V2<=Datos!#REF!+7),Flujo!$B$58/(Datos!#REF!+8-Datos!$I$10),0) ->  | W58: =IF(AND(W2>=Datos!$I$10,W2<=Datos!#REF!+7),Flujo!$B$58/(Datos!#REF!+8-Datos!$I$10),0) ->  | X58: =IF(AND(X2>=Datos!$I$10,X2<=Datos!#REF!+7),Flujo!$B$58/(Datos!#REF!+8-Datos!$I$10),0) ->  | Y58: =IF(AND(Y2>=Datos!$I$10,Y2<=Datos!#REF!+7),Flujo!$B$58/(Datos!#REF!+8-Datos!$I$10),0) ->  | Z58: =IF(AND(Z2>=Datos!$I$10,Z2<=Datos!#REF!+7),Flujo!$B$58/(Datos!#REF!+8-Datos!$I$10),0) ->  | AA58: =IF(AND(AA2>=Datos!$I$10,AA2<=Datos!#REF!+7),Flujo!$B$58/(Datos!#REF!+8-Datos!$I$10),0) ->  | AB58: =IF(AND(AB2>=Datos!$I$10,AB2<=Datos!#REF!+7),Flujo!$B$58/(Datos!#REF!+8-Datos!$I$10),0) ->  | AC58: =IF(AND(AC2>=Datos!$I$10,AC2<=Datos!#REF!+7),Flujo!$B$58/(Datos!#REF!+8-Datos!$I$10),0) ->  | AD58: =IF(AND(AD2>=Datos!$I$10,AD2<=Datos!#REF!+7),Flujo!$B$58/(Datos!#REF!+8-Datos!$I$10),0) ->  | AE58: =IF(AND(AE2>=Datos!$I$10,AE2<=Datos!#REF!+7),Flujo!$B$58/(Datos!#REF!+8-Datos!$I$10),0) ->  | AF58: =IF(AND(AF2>=Datos!$I$10,AF2<=Datos!#REF!+7),Flujo!$B$58/(Datos!#REF!+8-Datos!$I$10),0) ->  | AG58: =IF(AND(AG2>=Datos!$I$10,AG2<=Datos!#REF!+7),Flujo!$B$58/(Datos!#REF!+8-Datos!$I$10),0) ->  | AH58: =IF(AND(AH2>=Datos!$I$10,AH2<=Datos!#REF!+7),Flujo!$B$58/(Datos!#REF!+8-Datos!$I$10),0) ->  | AI58: =IF(AND(AI2>=Datos!$I$10,AI2<=Datos!#REF!+7),Flujo!$B$58/(Datos!#REF!+8-Datos!$I$10),0) ->  | AJ58: =IF(AND(AJ2>=Datos!$I$10,AJ2<=Datos!#REF!+7),Flujo!$B$58/(Datos!#REF!+8-Datos!$I$10),0) ->  | AK58: =IF(AND(AK2>=Datos!$I$10,AK2<=Datos!#REF!+7),Flujo!$B$58/(Datos!#REF!+8-Datos!$I$10),0) ->  | AL58: =IF(AND(AL2>=Datos!$I$10,AL2<=Datos!#REF!+7),Flujo!$B$58/(Datos!#REF!+8-Datos!$I$10),0) ->  | AM58: =IF(AND(AM2>=Datos!$I$10,AM2<=Datos!#REF!+7),Flujo!$B$58/(Datos!#REF!+8-Datos!$I$10),0) ->  | AN58: =IF(AND(AN2>=Datos!$I$10,AN2<=Datos!#REF!+7),Flujo!$B$58/(Datos!#REF!+8-Datos!$I$10),0) ->  | AO58: =IF(AND(AO2>=Datos!$I$10,AO2<=Datos!#REF!+7),Flujo!$B$58/(Datos!#REF!+8-Datos!$I$10),0) ->  | AP58: =IF(AND(AP2>=Datos!$I$10,AP2<=Datos!#REF!+7),Flujo!$B$58/(Datos!#REF!+8-Datos!$I$10),0) ->  | AQ58: =IF(AND(AQ2>=Datos!$I$10,AQ2<=Datos!#REF!+7),Flujo!$B$58/(Datos!#REF!+8-Datos!$I$10),0) ->  | AR58: =IF(AND(AR2>=Datos!$I$10,AR2<=Datos!#REF!+7),Flujo!$B$58/(Datos!#REF!+8-Datos!$I$10),0) ->  | AS58: =IF(AND(AS2>=Datos!$I$10,AS2<=Datos!#REF!+7),Flujo!$B$58/(Datos!#REF!+8-Datos!$I$10),0) ->  | AT58: =IF(AND(AT2>=Datos!$I$10,AT2<=Datos!#REF!+7),Flujo!$B$58/(Datos!#REF!+8-Datos!$I$10),0) ->  | AU58: =IF(AND(AU2>=Datos!$I$10,AU2<=Datos!#REF!+7),Flujo!$B$58/(Datos!#REF!+8-Datos!$I$10),0) ->  | AV58: =IF(AND(AV2>=Datos!$I$10,AV2<=Datos!#REF!+7),Flujo!$B$58/(Datos!#REF!+8-Datos!$I$10),0) ->  | AW58: =IF(AND(AW2>=Datos!$I$10,AW2<=Datos!#REF!+7),Flujo!$B$58/(Datos!#REF!+8-Datos!$I$10),0) ->  | AX58: =IF(AND(AX2>=Datos!$I$10,AX2<=Datos!#REF!+7),Flujo!$B$58/(Datos!#REF!+8-Datos!$I$10),0) ->  | AY58: =IF(AND(AY2>=Datos!$I$10,AY2<=Datos!#REF!+7),Flujo!$B$58/(Datos!#REF!+8-Datos!$I$10),0) ->  | AZ58: =IF(AND(AZ2>=Datos!$I$10,AZ2<=Datos!#REF!+7),Flujo!$B$58/(Datos!#REF!+8-Datos!$I$10),0) ->  | BA58: =IF(AND(BA2>=Datos!$I$10,BA2<=Datos!#REF!+7),Flujo!$B$58/(Datos!#REF!+8-Datos!$I$10),0) ->  | BB58: =IF(AND(BB2>=Datos!$I$10,BB2<=Datos!#REF!+7),Flujo!$B$58/(Datos!#REF!+8-Datos!$I$10),0) ->  | BC58: =IF(AND(BC2>=Datos!$I$10,BC2<=Datos!#REF!+7),Flujo!$B$58/(Datos!#REF!+8-Datos!$I$10),0) ->  | BD58: =IF(AND(BD2>=Datos!$I$10,BD2<=Datos!#REF!+7),Flujo!$B$58/(Datos!#REF!+8-Datos!$I$10),0) ->  | BE58: =IF(AND(BE2>=Datos!$I$10,BE2<=Datos!#REF!+7),Flujo!$B$58/(Datos!#REF!+8-Datos!$I$10),0) ->  | BF58: =IF(AND(BF2>=Datos!$I$10,BF2<=Datos!#REF!+7),Flujo!$B$58/(Datos!#REF!+8-Datos!$I$10),0) ->  | BG58: =IF(AND(BG2>=Datos!$I$10,BG2<=Datos!#REF!+7),Flujo!$B$58/(Datos!#REF!+8-Datos!$I$10),0) ->  | BH58: =IF(AND(BH2>=Datos!$I$10,BH2<=Datos!#REF!+7),Flujo!$B$58/(Datos!#REF!+8-Datos!$I$10),0) ->  | BI58: =IF(AND(BI2>=Datos!$I$10,BI2<=Datos!#REF!+7),Flujo!$B$58/(Datos!#REF!+8-Datos!$I$10),0) ->  | BJ58: =IF(AND(BJ2>=Datos!$I$10,BJ2<=Datos!#REF!+7),Flujo!$B$58/(Datos!#REF!+8-Datos!$I$10),0) ->  | BK58: =IF(AND(BK2>=Datos!$I$10,BK2<=Datos!#REF!+7),Flujo!$B$58/(Datos!#REF!+8-Datos!$I$10),0) ->  | BL58: =IF(AND(BL2>=Datos!$I$10,BL2<=Datos!#REF!+7),Flujo!$B$58/(Datos!#REF!+8-Datos!$I$10),0) ->  | BM58: =IF(AND(BM2>=Datos!$I$10,BM2<=Datos!#REF!+7),Flujo!$B$58/(Datos!#REF!+8-Datos!$I$10),0) ->  | BN58: =IF(AND(BN2>=Datos!$I$10,BN2<=Datos!#REF!+7),Flujo!$B$58/(Datos!#REF!+8-Datos!$I$10),0) ->  | BO58: =IF(AND(BO2>=Datos!$I$10,BO2<=Datos!#REF!+7),Flujo!$B$58/(Datos!#REF!+8-Datos!$I$10),0) ->  | BP58: =IF(AND(BP2>=Datos!$I$10,BP2<=Datos!#REF!+7),Flujo!$B$58/(Datos!#REF!+8-Datos!$I$10),0) ->  | BQ58: =IF(AND(BQ2>=Datos!$I$10,BQ2<=Datos!#REF!+7),Flujo!$B$58/(Datos!#REF!+8-Datos!$I$10),0) ->  | BR58: =IF(AND(BR2>=Datos!$I$10,BR2<=Datos!#REF!+7),Flujo!$B$58/(Datos!#REF!+8-Datos!$I$10),0) ->  | BS58: =IF(AND(BS2>=Datos!$I$10,BS2<=Datos!#REF!+7),Flujo!$B$58/(Datos!#REF!+8-Datos!$I$10),0) ->  | BT58: =IF(AND(BT2>=Datos!$I$10,BT2<=Datos!#REF!+7),Flujo!$B$58/(Datos!#REF!+8-Datos!$I$10),0) ->  | BU58: =IF(AND(BU2>=Datos!$I$10,BU2<=Datos!#REF!+7),Flujo!$B$58/(Datos!#REF!+8-Datos!$I$10),0) ->  | BV58: =IF(AND(BV2>=Datos!$I$10,BV2<=Datos!#REF!+7),Flujo!$B$58/(Datos!#REF!+8-Datos!$I$10),0) ->  | BW58: =IF(AND(BW2>=Datos!$I$10,BW2<=Datos!#REF!+7),Flujo!$B$58/(Datos!#REF!+8-Datos!$I$10),0) ->  | BX58: =IF(AND(BX2>=Datos!$I$10,BX2<=Datos!#REF!+7),Flujo!$B$58/(Datos!#REF!+8-Datos!$I$10),0) ->  | BY58: =IF(AND(BY2>=Datos!$I$10,BY2<=Datos!#REF!+7),Flujo!$B$58/(Datos!#REF!+8-Datos!$I$10),0) ->  | BZ58: =IF(AND(BZ2>=Datos!$I$10,BZ2<=Datos!#REF!+7),Flujo!$B$58/(Datos!#REF!+8-Datos!$I$10),0) -> 
A59: IVA Comercialización | B59: =Evaluación!H87+Evaluación!H88+Evaluación!H86+Evaluación!H89 -> 228 | C59: =IF(SUM(E59:BV59)=B59,"OK","") ->  | E59: =IF(E91>0,$B$59/Datos!#REF!,0) ->  | F59: =IF(F91>0,$B$59/Datos!#REF!,0) ->  | G59: =IF(G91>0,$B$59/Datos!#REF!,0) ->  | H59: =IF(H91>0,$B$59/Datos!#REF!,0) ->  | I59: =IF(I91>0,$B$59/Datos!#REF!,0) ->  | J59: =IF(J91>0,$B$59/Datos!#REF!,0) ->  | K59: =IF(K91>0,$B$59/Datos!#REF!,0) ->  | L59: =IF(L91>0,$B$59/Datos!#REF!,0) ->  | M59: =IF(M91>0,$B$59/Datos!#REF!,0) ->  | N59: =IF(N91>0,$B$59/Datos!#REF!,0) ->  | O59: =IF(O91>0,$B$59/Datos!#REF!,0) ->  | P59: =IF(P91>0,$B$59/Datos!#REF!,0) ->  | Q59: =IF(Q91>0,$B$59/Datos!#REF!,0) ->  | R59: =IF(R91>0,$B$59/Datos!#REF!,0) ->  | S59: =IF(S91>0,$B$59/Datos!#REF!,0) ->  | T59: =IF(T91>0,$B$59/Datos!#REF!,0) ->  | U59: =IF(U91>0,$B$59/Datos!#REF!,0) ->  | V59: =IF(V91>0,$B$59/Datos!#REF!,0) ->  | W59: =IF(W91>0,$B$59/Datos!#REF!,0) ->  | X59: =IF(X91>0,$B$59/Datos!#REF!,0) ->  | Y59: =IF(Y91>0,$B$59/Datos!#REF!,0) ->  | Z59: =IF(Z91>0,$B$59/Datos!#REF!,0) ->  | AA59: =IF(AA91>0,$B$59/Datos!#REF!,0) ->  | AB59: =IF(AB91>0,$B$59/Datos!#REF!,0) ->  | AC59: =IF(AC91>0,$B$59/Datos!#REF!,0) ->  | AD59: =IF(AD91>0,$B$59/Datos!#REF!,0) ->  | AE59: =IF(AE91>0,$B$59/Datos!#REF!,0) ->  | AF59: =IF(AF91>0,$B$59/Datos!#REF!,0) ->  | AG59: =IF(AG91>0,$B$59/Datos!#REF!,0) ->  | AH59: =IF(AH91>0,$B$59/Datos!#REF!,0) ->  | AI59: =IF(AI91>0,$B$59/Datos!#REF!,0) ->  | AJ59: =IF(AJ91>0,$B$59/Datos!#REF!,0) ->  | AK59: =IF(AK91>0,$B$59/Datos!#REF!,0) ->  | AL59: =IF(AL91>0,$B$59/Datos!#REF!,0) ->  | AM59: =IF(AM91>0,$B$59/Datos!#REF!,0) ->  | AN59: =IF(AN91>0,$B$59/Datos!#REF!,0) ->  | AO59: =IF(AO91>0,$B$59/Datos!#REF!,0) ->  | AP59: =IF(AP91>0,$B$59/Datos!#REF!,0) ->  | AQ59: =IF(AQ91>0,$B$59/Datos!#REF!,0) ->  | AR59: =IF(AR91>0,$B$59/Datos!#REF!,0) ->  | AS59: =IF(AS91>0,$B$59/Datos!#REF!,0) ->  | AT59: =IF(AT91>0,$B$59/Datos!#REF!,0) ->  | AU59: =IF(AU91>0,$B$59/Datos!#REF!,0) ->  | AV59: =IF(AV91>0,$B$59/Datos!#REF!,0) ->  | AW59: =IF(AW91>0,$B$59/Datos!#REF!,0) ->  | AX59: =IF(AX91>0,$B$59/Datos!#REF!,0) ->  | AY59: =IF(AY91>0,$B$59/Datos!#REF!,0) ->  | AZ59: =IF(AZ91>0,$B$59/Datos!#REF!,0) ->  | BA59: =IF(BA91>0,$B$59/Datos!#REF!,0) ->  | BB59: =IF(BB91>0,$B$59/Datos!#REF!,0) ->  | BC59: =IF(BC91>0,$B$59/Datos!#REF!,0) ->  | BD59: =IF(BD91>0,$B$59/Datos!#REF!,0) ->  | BE59: =IF(BE91>0,$B$59/Datos!#REF!,0) ->  | BF59: =IF(BF91>0,$B$59/Datos!#REF!,0) ->  | BG59: =IF(BG91>0,$B$59/Datos!#REF!,0) ->  | BH59: =IF(BH91>0,$B$59/Datos!#REF!,0) ->  | BI59: =IF(BI91>0,$B$59/Datos!#REF!,0) ->  | BJ59: =IF(BJ91>0,$B$59/Datos!#REF!,0) ->  | BK59: =IF(BK91>0,$B$59/Datos!#REF!,0) ->  | BL59: =IF(BL91>0,$B$59/Datos!#REF!,0) ->  | BM59: =IF(BM91>0,$B$59/Datos!#REF!,0) ->  | BN59: =IF(BN91>0,$B$59/Datos!#REF!,0) ->  | BO59: =IF(BO91>0,$B$59/Datos!#REF!,0) ->  | BP59: =IF(BP91>0,$B$59/Datos!#REF!,0) ->  | BQ59: =IF(BQ91>0,$B$59/Datos!#REF!,0) ->  | BR59: =IF(BR91>0,$B$59/Datos!#REF!,0) ->  | BS59: =IF(BS91>0,$B$59/Datos!#REF!,0) ->  | BT59: =IF(BT91>0,$B$59/Datos!#REF!,0) ->  | BU59: =IF(BU91>0,$B$59/Datos!#REF!,0) ->  | BV59: =IF(BV91>0,$B$59/Datos!#REF!,0) ->  | BW59: =IF(BW91>0,$B$59/Datos!#REF!,0) ->  | BX59: =IF(BX91>0,$B$59/Datos!#REF!,0) ->  | BY59: =IF(BY91>0,$B$59/Datos!#REF!,0) ->  | BZ59: =IF(BZ91>0,$B$59/Datos!#REF!,0) -> 
A61: Total Comercialización | B61: =SUM(B55:B60) -> 2628 | C61: =IF(SUM(D61:BV61)=B61,"OK","") ->  | D61: =SUM(D55:D60) -> 0 | E61: =SUM(E55:E60) ->  | F61: =SUM(F55:F60) ->  | AK61: =SUM(AK55:AK60) ->  | AS61: =SUM(AS55:AS60) ->  | BC61: =SUM(BC55:BC60) ->  | BD61: =SUM(BD55:BD60) ->  | BE61: =SUM(BE55:BE60) ->  | BF61: =SUM(BF55:BF60) ->  | BG61: =SUM(BG55:BG60) ->  | BM61: =SUM(BM55:BM60) ->  | BW61: =SUM(BW55:BW60) ->  | BX61: =SUM(BX55:BX60) ->  | BY61: =SUM(BY55:BY60) ->  | BZ61: =SUM(BZ55:BZ60) -> 
A63: 6.- POST VENTA | AI63: parte inicio escrituracion + 6 meses | AJ63: Pagar todo aca (sin distribución)
A64: =Evaluación!C93 -> Adicionales e Imprevistos | B64: =Evaluación!G93 -> 0 | C64: =IF(SUM(E64:BV64)=B64,"OK","") ->  | E64: =IF(E2=Datos!#REF!,Flujo!$B$64,0) ->  | F64: =IF(F2=Datos!#REF!,Flujo!$B$64,0) ->  | G64: =IF(G2=Datos!#REF!,Flujo!$B$64,0) ->  | H64: =IF(H2=Datos!#REF!,Flujo!$B$64,0) ->  | I64: =IF(I2=Datos!#REF!,Flujo!$B$64,0) ->  | J64: =IF(J2=Datos!#REF!,Flujo!$B$64,0) ->  | K64: =IF(K2=Datos!#REF!,Flujo!$B$64,0) ->  | L64: =IF(L2=Datos!#REF!,Flujo!$B$64,0) ->  | M64: =IF(M2=Datos!#REF!,Flujo!$B$64,0) ->  | N64: =IF(N2=Datos!#REF!,Flujo!$B$64,0) ->  | O64: =IF(O2=Datos!#REF!,Flujo!$B$64,0) ->  | P64: =IF(P2=Datos!#REF!,Flujo!$B$64,0) ->  | Q64: =IF(Q2=Datos!#REF!,Flujo!$B$64,0) ->  | R64: =IF(R2=Datos!#REF!,Flujo!$B$64,0) ->  | S64: =IF(S2=Datos!#REF!,Flujo!$B$64,0) ->  | T64: =IF(T2=Datos!#REF!,Flujo!$B$64,0) ->  | U64: =IF(U2=Datos!#REF!,Flujo!$B$64,0) ->  | V64: =IF(V2=Datos!#REF!,Flujo!$B$64,0) ->  | W64: =IF(W2=Datos!#REF!,Flujo!$B$64,0) ->  | X64: =IF(X2=Datos!#REF!,Flujo!$B$64,0) ->  | Y64: =IF(Y2=Datos!#REF!,Flujo!$B$64,0) ->  | Z64: =IF(Z2=Datos!#REF!,Flujo!$B$64,0) ->  | AA64: =IF(AA2=Datos!#REF!,Flujo!$B$64,0) ->  | AB64: =IF(AB2=Datos!#REF!,Flujo!$B$64,0) ->  | AC64: =IF(AC2=Datos!#REF!,Flujo!$B$64,0) ->  | AD64: =IF(AD2=Datos!#REF!,Flujo!$B$64,0) ->  | AE64: =IF(AE2=Datos!#REF!,Flujo!$B$64,0) ->  | AF64: =IF(AF2=Datos!#REF!,Flujo!$B$64,0) ->  | AG64: =IF(AG2=Datos!#REF!,Flujo!$B$64,0) ->  | AH64: =IF(AH2=Datos!#REF!,Flujo!$B$64,0) ->  | AI64: =IF(AI2=Datos!#REF!,Flujo!$B$64,0) ->  | AJ64: =IF(AJ2=Datos!#REF!,Flujo!$B$64,0) ->  | AK64: =IF(AK2=Datos!#REF!,Flujo!$B$64,0) ->  | AL64: =IF(AL2=Datos!#REF!,Flujo!$B$64,0) ->  | AM64: =IF(AM2=Datos!#REF!,Flujo!$B$64,0) ->  | AN64: =IF(AN2=Datos!#REF!,Flujo!$B$64,0) ->  | AO64: =IF(AO2=Datos!#REF!,Flujo!$B$64,0) ->  | AP64: =IF(AP2=Datos!#REF!,Flujo!$B$64,0) ->  | AQ64: =IF(AQ2=Datos!#REF!,Flujo!$B$64,0) ->  | AR64: =IF(AR2=Datos!#REF!,Flujo!$B$64,0) ->  | AS64: =IF(AS2=Datos!#REF!,Flujo!$B$64,0) ->  | AT64: =IF(AT2=Datos!#REF!,Flujo!$B$64,0) ->  | AU64: =IF(AU2=Datos!#REF!,Flujo!$B$64,0) ->  | AV64: =IF(AV2=Datos!#REF!,Flujo!$B$64,0) ->  | AW64: =IF(AW2=Datos!#REF!,Flujo!$B$64,0) ->  | AX64: =IF(AX2=Datos!#REF!,Flujo!$B$64,0) ->  | AY64: =IF(AY2=Datos!#REF!,Flujo!$B$64,0) ->  | AZ64: =IF(AZ2=Datos!#REF!,Flujo!$B$64,0) ->  | BA64: =IF(BA2=Datos!#REF!,Flujo!$B$64,0) ->  | BB64: =IF(BB2=Datos!#REF!,Flujo!$B$64,0) ->  | BC64: =IF(BC2=Datos!#REF!,Flujo!$B$64,0) ->  | BD64: =IF(BD2=Datos!#REF!,Flujo!$B$64,0) ->  | BE64: =IF(BE2=Datos!#REF!,Flujo!$B$64,0) ->  | BF64: =IF(BF2=Datos!#REF!,Flujo!$B$64,0) ->  | BG64: =IF(BG2=Datos!#REF!,Flujo!$B$64,0) ->  | BH64: =IF(BH2=Datos!#REF!,Flujo!$B$64,0) ->  | BI64: =IF(BI2=Datos!#REF!,Flujo!$B$64,0) ->  | BJ64: =IF(BJ2=Datos!#REF!,Flujo!$B$64,0) ->  | BK64: =IF(BK2=Datos!#REF!,Flujo!$B$64,0) ->  | BL64: =IF(BL2=Datos!#REF!,Flujo!$B$64,0) ->  | BM64: =IF(BM2=Datos!#REF!,Flujo!$B$64,0) ->  | BN64: =IF(BN2=Datos!#REF!,Flujo!$B$64,0) ->  | BO64: =IF(BO2=Datos!#REF!,Flujo!$B$64,0) ->  | BP64: =IF(BP2=Datos!#REF!,Flujo!$B$64,0) ->  | BQ64: =IF(BQ2=Datos!#REF!,Flujo!$B$64,0) ->  | BR64: =IF(BR2=Datos!#REF!,Flujo!$B$64,0) ->  | BS64: =IF(BS2=Datos!#REF!,Flujo!$B$64,0) ->  | BT64: =IF(BT2=Datos!#REF!,Flujo!$B$64,0) ->  | BU64: =IF(BU2=Datos!#REF!,Flujo!$B$64,0) ->  | BV64: =IF(BV2=Datos!#REF!,Flujo!$B$64,0) ->  | BW64: =IF(BW2=Datos!#REF!,Flujo!$B$64,0) ->  | BX64: =IF(BX2=Datos!#REF!,Flujo!$B$64,0) ->  | BY64: =IF(BY2=Datos!#REF!,Flujo!$B$64,0) ->  | BZ64: =IF(BZ2=Datos!#REF!,Flujo!$B$64,0) -> 
A65: =Evaluación!C94 -> Post Venta (Materiales + M.O.) | B65: =Evaluación!G94 -> 0 | C65: =IF(SUM(E65:BV65)=B65,"OK","") ->  | E65: =IF(AND(E2>=Datos!#REF!+3,E2<=Datos!#REF!+8),$B$65/6,0) ->  | F65: =IF(AND(F2>=Datos!#REF!+3,F2<=Datos!#REF!+8),$B$65/6,0) ->  | G65: =IF(AND(G2>=Datos!#REF!+3,G2<=Datos!#REF!+8),$B$65/6,0) ->  | H65: =IF(AND(H2>=Datos!#REF!+3,H2<=Datos!#REF!+8),$B$65/6,0) ->  | I65: =IF(AND(I2>=Datos!#REF!+3,I2<=Datos!#REF!+8),$B$65/6,0) ->  | J65: =IF(AND(J2>=Datos!#REF!+3,J2<=Datos!#REF!+8),$B$65/6,0) ->  | K65: =IF(AND(K2>=Datos!#REF!+3,K2<=Datos!#REF!+8),$B$65/6,0) ->  | L65: =IF(AND(L2>=Datos!#REF!+3,L2<=Datos!#REF!+8),$B$65/6,0) ->  | M65: =IF(AND(M2>=Datos!#REF!+3,M2<=Datos!#REF!+8),$B$65/6,0) ->  | N65: =IF(AND(N2>=Datos!#REF!+3,N2<=Datos!#REF!+8),$B$65/6,0) ->  | O65: =IF(AND(O2>=Datos!#REF!+3,O2<=Datos!#REF!+8),$B$65/6,0) ->  | P65: =IF(AND(P2>=Datos!#REF!+3,P2<=Datos!#REF!+8),$B$65/6,0) ->  | Q65: =IF(AND(Q2>=Datos!#REF!+3,Q2<=Datos!#REF!+8),$B$65/6,0) ->  | R65: =IF(AND(R2>=Datos!#REF!+3,R2<=Datos!#REF!+8),$B$65/6,0) ->  | S65: =IF(AND(S2>=Datos!#REF!+3,S2<=Datos!#REF!+8),$B$65/6,0) ->  | T65: =IF(AND(T2>=Datos!#REF!+3,T2<=Datos!#REF!+8),$B$65/6,0) ->  | U65: =IF(AND(U2>=Datos!#REF!+3,U2<=Datos!#REF!+8),$B$65/6,0) ->  | V65: =IF(AND(V2>=Datos!#REF!+3,V2<=Datos!#REF!+8),$B$65/6,0) ->  | W65: =IF(AND(W2>=Datos!#REF!+3,W2<=Datos!#REF!+8),$B$65/6,0) ->  | X65: =IF(AND(X2>=Datos!#REF!+3,X2<=Datos!#REF!+8),$B$65/6,0) ->  | Y65: =IF(AND(Y2>=Datos!#REF!+3,Y2<=Datos!#REF!+8),$B$65/6,0) ->  | Z65: =IF(AND(Z2>=Datos!#REF!+3,Z2<=Datos!#REF!+8),$B$65/6,0) ->  | AA65: =IF(AND(AA2>=Datos!#REF!+3,AA2<=Datos!#REF!+8),$B$65/6,0) ->  | AB65: =IF(AND(AB2>=Datos!#REF!+3,AB2<=Datos!#REF!+8),$B$65/6,0) ->  | AC65: =IF(AND(AC2>=Datos!#REF!+3,AC2<=Datos!#REF!+8),$B$65/6,0) ->  | AD65: =IF(AND(AD2>=Datos!#REF!+3,AD2<=Datos!#REF!+8),$B$65/6,0) ->  | AE65: =IF(AND(AE2>=Datos!#REF!+3,AE2<=Datos!#REF!+8),$B$65/6,0) ->  | AF65: =IF(AND(AF2>=Datos!#REF!+3,AF2<=Datos!#REF!+8),$B$65/6,0) ->  | AG65: =IF(AND(AG2>=Datos!#REF!+3,AG2<=Datos!#REF!+8),$B$65/6,0) ->  | AH65: =IF(AND(AH2>=Datos!#REF!+3,AH2<=Datos!#REF!+8),$B$65/6,0) ->  | AI65: =IF(AND(AI2>=Datos!#REF!+3,AI2<=Datos!#REF!+8),$B$65/6,0) ->  | AJ65: =IF(AND(AJ2>=Datos!#REF!+3,AJ2<=Datos!#REF!+8),$B$65/6,0) ->  | AK65: =IF(AND(AK2>=Datos!#REF!+3,AK2<=Datos!#REF!+8),$B$65/6,0) ->  | AL65: =IF(AND(AL2>=Datos!#REF!+3,AL2<=Datos!#REF!+8),$B$65/6,0) ->  | AM65: =IF(AND(AM2>=Datos!#REF!+3,AM2<=Datos!#REF!+8),$B$65/6,0) ->  | AN65: =IF(AND(AN2>=Datos!#REF!+3,AN2<=Datos!#REF!+8),$B$65/6,0) ->  | AO65: =IF(AND(AO2>=Datos!#REF!+3,AO2<=Datos!#REF!+8),$B$65/6,0) ->  | AP65: =IF(AND(AP2>=Datos!#REF!+3,AP2<=Datos!#REF!+8),$B$65/6,0) ->  | AQ65: =IF(AND(AQ2>=Datos!#REF!+3,AQ2<=Datos!#REF!+8),$B$65/6,0) ->  | AR65: =IF(AND(AR2>=Datos!#REF!+3,AR2<=Datos!#REF!+8),$B$65/6,0) ->  | AS65: =IF(AND(AS2>=Datos!#REF!+3,AS2<=Datos!#REF!+8),$B$65/6,0) ->  | AT65: =IF(AND(AT2>=Datos!#REF!+3,AT2<=Datos!#REF!+8),$B$65/6,0) ->  | AU65: =IF(AND(AU2>=Datos!#REF!+3,AU2<=Datos!#REF!+8),$B$65/6,0) ->  | AV65: =IF(AND(AV2>=Datos!#REF!+3,AV2<=Datos!#REF!+8),$B$65/6,0) ->  | AW65: =IF(AND(AW2>=Datos!#REF!+3,AW2<=Datos!#REF!+8),$B$65/6,0) ->  | AX65: =IF(AND(AX2>=Datos!#REF!+3,AX2<=Datos!#REF!+8),$B$65/6,0) ->  | AY65: =IF(AND(AY2>=Datos!#REF!+3,AY2<=Datos!#REF!+8),$B$65/6,0) ->  | AZ65: =IF(AND(AZ2>=Datos!#REF!+3,AZ2<=Datos!#REF!+8),$B$65/6,0) ->  | BA65: =IF(AND(BA2>=Datos!#REF!+3,BA2<=Datos!#REF!+8),$B$65/6,0) ->  | BB65: =IF(AND(BB2>=Datos!#REF!+3,BB2<=Datos!#REF!+8),$B$65/6,0) ->  | BC65: =IF(AND(BC2>=Datos!#REF!+3,BC2<=Datos!#REF!+8),$B$65/6,0) ->  | BD65: =IF(AND(BD2>=Datos!#REF!+3,BD2<=Datos!#REF!+8),$B$65/6,0) ->  | BE65: =IF(AND(BE2>=Datos!#REF!+3,BE2<=Datos!#REF!+8),$B$65/6,0) ->  | BF65: =IF(AND(BF2>=Datos!#REF!+3,BF2<=Datos!#REF!+8),$B$65/6,0) ->  | BG65: =IF(AND(BG2>=Datos!#REF!+3,BG2<=Datos!#REF!+8),$B$65/6,0) ->  | BH65: =IF(AND(BH2>=Datos!#REF!+3,BH2<=Datos!#REF!+8),$B$65/6,0) ->  | BI65: =IF(AND(BI2>=Datos!#REF!+3,BI2<=Datos!#REF!+8),$B$65/6,0) ->  | BJ65: =IF(AND(BJ2>=Datos!#REF!+3,BJ2<=Datos!#REF!+8),$B$65/6,0) ->  | BK65: =IF(AND(BK2>=Datos!#REF!+3,BK2<=Datos!#REF!+8),$B$65/6,0) ->  | BL65: =IF(AND(BL2>=Datos!#REF!+3,BL2<=Datos!#REF!+8),$B$65/6,0) ->  | BM65: =IF(AND(BM2>=Datos!#REF!+3,BM2<=Datos!#REF!+8),$B$65/6,0) ->  | BN65: =IF(AND(BN2>=Datos!#REF!+3,BN2<=Datos!#REF!+8),$B$65/6,0) ->  | BO65: =IF(AND(BO2>=Datos!#REF!+3,BO2<=Datos!#REF!+8),$B$65/6,0) ->  | BP65: =IF(AND(BP2>=Datos!#REF!+3,BP2<=Datos!#REF!+8),$B$65/6,0) ->  | BQ65: =IF(AND(BQ2>=Datos!#REF!+3,BQ2<=Datos!#REF!+8),$B$65/6,0) ->  | BR65: =IF(AND(BR2>=Datos!#REF!+3,BR2<=Datos!#REF!+8),$B$65/6,0) ->  | BS65: =IF(AND(BS2>=Datos!#REF!+3,BS2<=Datos!#REF!+8),$B$65/6,0) ->  | BT65: =IF(AND(BT2>=Datos!#REF!+3,BT2<=Datos!#REF!+8),$B$65/6,0) ->  | BU65: =IF(AND(BU2>=Datos!#REF!+3,BU2<=Datos!#REF!+8),$B$65/6,0) ->  | BV65: =IF(AND(BV2>=Datos!#REF!+3,BV2<=Datos!#REF!+8),$B$65/6,0) ->  | BW65: =IF(AND(BW2>=Datos!#REF!+3,BW2<=Datos!#REF!+8),$B$65/6,0) ->  | BX65: =IF(AND(BX2>=Datos!#REF!+3,BX2<=Datos!#REF!+8),$B$65/6,0) ->  | BY65: =IF(AND(BY2>=Datos!#REF!+3,BY2<=Datos!#REF!+8),$B$65/6,0) ->  | BZ65: =IF(AND(BZ2>=Datos!#REF!+3,BZ2<=Datos!#REF!+8),$B$65/6,0) -> 
A66: IVA Post Venta | B66: =Evaluación!H94 -> 0 | C66: =IF(SUM(E66:BV66)=B66,"OK","") ->  | E66: =IF(AND(E2>=Datos!#REF!,E2<=Datos!#REF!+14),$B$66/15,0) ->  | F66: =IF(AND(F2>=Datos!#REF!,F2<=Datos!#REF!+14),$B$66/15,0) ->  | G66: =IF(AND(G2>=Datos!#REF!,G2<=Datos!#REF!+14),$B$66/15,0) ->  | H66: =IF(AND(H2>=Datos!#REF!,H2<=Datos!#REF!+14),$B$66/15,0) ->  | I66: =IF(AND(I2>=Datos!#REF!,I2<=Datos!#REF!+14),$B$66/15,0) ->  | J66: =IF(AND(J2>=Datos!#REF!,J2<=Datos!#REF!+14),$B$66/15,0) ->  | K66: =IF(AND(K2>=Datos!#REF!,K2<=Datos!#REF!+14),$B$66/15,0) ->  | L66: =IF(AND(L2>=Datos!#REF!,L2<=Datos!#REF!+14),$B$66/15,0) ->  | M66: =IF(AND(M2>=Datos!#REF!,M2<=Datos!#REF!+14),$B$66/15,0) ->  | N66: =IF(AND(N2>=Datos!#REF!,N2<=Datos!#REF!+14),$B$66/15,0) ->  | O66: =IF(AND(O2>=Datos!#REF!,O2<=Datos!#REF!+14),$B$66/15,0) ->  | P66: =IF(AND(P2>=Datos!#REF!,P2<=Datos!#REF!+14),$B$66/15,0) ->  | Q66: =IF(AND(Q2>=Datos!#REF!,Q2<=Datos!#REF!+14),$B$66/15,0) ->  | R66: =IF(AND(R2>=Datos!#REF!,R2<=Datos!#REF!+14),$B$66/15,0) ->  | S66: =IF(AND(S2>=Datos!#REF!,S2<=Datos!#REF!+14),$B$66/15,0) ->  | T66: =IF(AND(T2>=Datos!#REF!,T2<=Datos!#REF!+14),$B$66/15,0) ->  | U66: =IF(AND(U2>=Datos!#REF!,U2<=Datos!#REF!+14),$B$66/15,0) ->  | V66: =IF(AND(V2>=Datos!#REF!,V2<=Datos!#REF!+14),$B$66/15,0) ->  | W66: =IF(AND(W2>=Datos!#REF!,W2<=Datos!#REF!+14),$B$66/15,0) ->  | X66: =IF(AND(X2>=Datos!#REF!,X2<=Datos!#REF!+14),$B$66/15,0) ->  | Y66: =IF(AND(Y2>=Datos!#REF!,Y2<=Datos!#REF!+14),$B$66/15,0) ->  | Z66: =IF(AND(Z2>=Datos!#REF!,Z2<=Datos!#REF!+14),$B$66/15,0) ->  | AA66: =IF(AND(AA2>=Datos!#REF!,AA2<=Datos!#REF!+14),$B$66/15,0) ->  | AB66: =IF(AND(AB2>=Datos!#REF!,AB2<=Datos!#REF!+14),$B$66/15,0) ->  | AC66: =IF(AND(AC2>=Datos!#REF!,AC2<=Datos!#REF!+14),$B$66/15,0) ->  | AD66: =IF(AND(AD2>=Datos!#REF!,AD2<=Datos!#REF!+14),$B$66/15,0) ->  | AE66: =IF(AND(AE2>=Datos!#REF!,AE2<=Datos!#REF!+14),$B$66/15,0) ->  | AF66: =IF(AND(AF2>=Datos!#REF!,AF2<=Datos!#REF!+14),$B$66/15,0) ->  | AG66: =IF(AND(AG2>=Datos!#REF!,AG2<=Datos!#REF!+14),$B$66/15,0) ->  | AH66: =IF(AND(AH2>=Datos!#REF!,AH2<=Datos!#REF!+14),$B$66/15,0) ->  | AI66: =IF(AND(AI2>=Datos!#REF!,AI2<=Datos!#REF!+14),$B$66/15,0) ->  | AJ66: =IF(AND(AJ2>=Datos!#REF!,AJ2<=Datos!#REF!+14),$B$66/15,0) ->  | AK66: =IF(AND(AK2>=Datos!#REF!,AK2<=Datos!#REF!+14),$B$66/15,0) ->  | AL66: =IF(AND(AL2>=Datos!#REF!,AL2<=Datos!#REF!+14),$B$66/15,0) ->  | AM66: =IF(AND(AM2>=Datos!#REF!,AM2<=Datos!#REF!+14),$B$66/15,0) ->  | AN66: =IF(AND(AN2>=Datos!#REF!,AN2<=Datos!#REF!+14),$B$66/15,0) ->  | AO66: =IF(AND(AO2>=Datos!#REF!,AO2<=Datos!#REF!+14),$B$66/15,0) ->  | AP66: =IF(AND(AP2>=Datos!#REF!,AP2<=Datos!#REF!+14),$B$66/15,0) ->  | AQ66: =IF(AND(AQ2>=Datos!#REF!,AQ2<=Datos!#REF!+14),$B$66/15,0) ->  | AR66: =IF(AND(AR2>=Datos!#REF!,AR2<=Datos!#REF!+14),$B$66/15,0) ->  | AS66: =IF(AND(AS2>=Datos!#REF!,AS2<=Datos!#REF!+14),$B$66/15,0) ->  | AT66: =IF(AND(AT2>=Datos!#REF!,AT2<=Datos!#REF!+14),$B$66/15,0) ->  | AU66: =IF(AND(AU2>=Datos!#REF!,AU2<=Datos!#REF!+14),$B$66/15,0) ->  | AV66: =IF(AND(AV2>=Datos!#REF!,AV2<=Datos!#REF!+14),$B$66/15,0) ->  | AW66: =IF(AND(AW2>=Datos!#REF!,AW2<=Datos!#REF!+14),$B$66/15,0) ->  | AX66: =IF(AND(AX2>=Datos!#REF!,AX2<=Datos!#REF!+14),$B$66/15,0) ->  | AY66: =IF(AND(AY2>=Datos!#REF!,AY2<=Datos!#REF!+14),$B$66/15,0) ->  | AZ66: =IF(AND(AZ2>=Datos!#REF!,AZ2<=Datos!#REF!+14),$B$66/15,0) ->  | BA66: =IF(AND(BA2>=Datos!#REF!,BA2<=Datos!#REF!+14),$B$66/15,0) ->  | BB66: =IF(AND(BB2>=Datos!#REF!,BB2<=Datos!#REF!+14),$B$66/15,0) ->  | BC66: =IF(AND(BC2>=Datos!#REF!,BC2<=Datos!#REF!+14),$B$66/15,0) ->  | BD66: =IF(AND(BD2>=Datos!#REF!,BD2<=Datos!#REF!+14),$B$66/15,0) ->  | BE66: =IF(AND(BE2>=Datos!#REF!,BE2<=Datos!#REF!+14),$B$66/15,0) ->  | BF66: =IF(AND(BF2>=Datos!#REF!,BF2<=Datos!#REF!+14),$B$66/15,0) ->  | BG66: =IF(AND(BG2>=Datos!#REF!,BG2<=Datos!#REF!+14),$B$66/15,0) ->  | BH66: =IF(AND(BH2>=Datos!#REF!,BH2<=Datos!#REF!+14),$B$66/15,0) ->  | BI66: =IF(AND(BI2>=Datos!#REF!,BI2<=Datos!#REF!+14),$B$66/15,0) ->  | BJ66: =IF(AND(BJ2>=Datos!#REF!,BJ2<=Datos!#REF!+14),$B$66/15,0) ->  | BK66: =IF(AND(BK2>=Datos!#REF!,BK2<=Datos!#REF!+14),$B$66/15,0) ->  | BL66: =IF(AND(BL2>=Datos!#REF!,BL2<=Datos!#REF!+14),$B$66/15,0) ->  | BM66: =IF(AND(BM2>=Datos!#REF!,BM2<=Datos!#REF!+14),$B$66/15,0) ->  | BN66: =IF(AND(BN2>=Datos!#REF!,BN2<=Datos!#REF!+14),$B$66/15,0) ->  | BO66: =IF(AND(BO2>=Datos!#REF!,BO2<=Datos!#REF!+14),$B$66/15,0) ->  | BP66: =IF(AND(BP2>=Datos!#REF!,BP2<=Datos!#REF!+14),$B$66/15,0) ->  | BQ66: =IF(AND(BQ2>=Datos!#REF!,BQ2<=Datos!#REF!+14),$B$66/15,0) ->  | BR66: =IF(AND(BR2>=Datos!#REF!,BR2<=Datos!#REF!+14),$B$66/15,0) ->  | BS66: =IF(AND(BS2>=Datos!#REF!,BS2<=Datos!#REF!+14),$B$66/15,0) ->  | BT66: =IF(AND(BT2>=Datos!#REF!,BT2<=Datos!#REF!+14),$B$66/15,0) ->  | BU66: =IF(AND(BU2>=Datos!#REF!,BU2<=Datos!#REF!+14),$B$66/15,0) ->  | BV66: =IF(AND(BV2>=Datos!#REF!,BV2<=Datos!#REF!+14),$B$66/15,0) ->  | BW66: =IF(AND(BW2>=Datos!#REF!,BW2<=Datos!#REF!+14),$B$66/15,0) ->  | BX66: =IF(AND(BX2>=Datos!#REF!,BX2<=Datos!#REF!+14),$B$66/15,0) ->  | BY66: =IF(AND(BY2>=Datos!#REF!,BY2<=Datos!#REF!+14),$B$66/15,0) ->  | BZ66: =IF(AND(BZ2>=Datos!#REF!,BZ2<=Datos!#REF!+14),$B$66/15,0) -> 
A68: Total Post Venta | B68: =SUM(B64:B66) -> 0 | C68: =IF(SUM(D68:BV68)=B68,"OK","") ->  | D68: =SUM(D64:D66) -> 0 | E68: =SUM(E64:E66) ->  | F68: =SUM(F64:F66) ->  | AS68: =SUM(AS64:AS66) ->  | BC68: =SUM(BC64:BC66) ->  | BD68: =SUM(BD64:BD66) ->  | BE68: =SUM(BE64:BE66) ->  | BF68: =SUM(BF64:BF66) ->  | BG68: =SUM(BG64:BG66) ->  | BM68: =SUM(BM64:BM66) ->  | BW68: =SUM(BW64:BW66) ->  | BX68: =SUM(BX64:BX66) ->  | BY68: =SUM(BY64:BY66) ->  | BZ68: =SUM(BZ64:BZ66) -> 
A70: 7.- Gastos Operacionales | AM70: parte inicio escrituracion + 6 meses
A71: =Evaluación!C98 -> Habilitación Espacios Comúnes | B71: =Evaluación!G98 -> 500 | C71: =IF(SUM(E71:BV71)=B71,"OK","") ->  | E71: =IF(AND(E2>=Datos!#REF!,E2<=Datos!#REF!+1),Flujo!$B$71/2,0) ->  | F71: =IF(AND(F2>=Datos!#REF!,F2<=Datos!#REF!+1),Flujo!$B$71/2,0) ->  | G71: =IF(AND(G2>=Datos!#REF!,G2<=Datos!#REF!+1),Flujo!$B$71/2,0) ->  | H71: =IF(AND(H2>=Datos!#REF!,H2<=Datos!#REF!+1),Flujo!$B$71/2,0) ->  | I71: =IF(AND(I2>=Datos!#REF!,I2<=Datos!#REF!+1),Flujo!$B$71/2,0) ->  | J71: =IF(AND(J2>=Datos!#REF!,J2<=Datos!#REF!+1),Flujo!$B$71/2,0) ->  | K71: =IF(AND(K2>=Datos!#REF!,K2<=Datos!#REF!+1),Flujo!$B$71/2,0) ->  | L71: =IF(AND(L2>=Datos!#REF!,L2<=Datos!#REF!+1),Flujo!$B$71/2,0) ->  | M71: =IF(AND(M2>=Datos!#REF!,M2<=Datos!#REF!+1),Flujo!$B$71/2,0) ->  | N71: =IF(AND(N2>=Datos!#REF!,N2<=Datos!#REF!+1),Flujo!$B$71/2,0) ->  | O71: =IF(AND(O2>=Datos!#REF!,O2<=Datos!#REF!+1),Flujo!$B$71/2,0) ->  | P71: =IF(AND(P2>=Datos!#REF!,P2<=Datos!#REF!+1),Flujo!$B$71/2,0) ->  | Q71: =IF(AND(Q2>=Datos!#REF!,Q2<=Datos!#REF!+1),Flujo!$B$71/2,0) ->  | R71: =IF(AND(R2>=Datos!#REF!,R2<=Datos!#REF!+1),Flujo!$B$71/2,0) ->  | S71: =IF(AND(S2>=Datos!#REF!,S2<=Datos!#REF!+1),Flujo!$B$71/2,0) ->  | T71: =IF(AND(T2>=Datos!#REF!,T2<=Datos!#REF!+1),Flujo!$B$71/2,0) ->  | U71: =IF(AND(U2>=Datos!#REF!,U2<=Datos!#REF!+1),Flujo!$B$71/2,0) ->  | V71: =IF(AND(V2>=Datos!#REF!,V2<=Datos!#REF!+1),Flujo!$B$71/2,0) ->  | W71: =IF(AND(W2>=Datos!#REF!,W2<=Datos!#REF!+1),Flujo!$B$71/2,0) ->  | X71: =IF(AND(X2>=Datos!#REF!,X2<=Datos!#REF!+1),Flujo!$B$71/2,0) ->  | Y71: =IF(AND(Y2>=Datos!#REF!,Y2<=Datos!#REF!+1),Flujo!$B$71/2,0) ->  | Z71: =IF(AND(Z2>=Datos!#REF!,Z2<=Datos!#REF!+1),Flujo!$B$71/2,0) ->  | AA71: =IF(AND(AA2>=Datos!#REF!,AA2<=Datos!#REF!+1),Flujo!$B$71/2,0) ->  | AB71: =IF(AND(AB2>=Datos!#REF!,AB2<=Datos!#REF!+1),Flujo!$B$71/2,0) ->  | AC71: =IF(AND(AC2>=Datos!#REF!,AC2<=Datos!#REF!+1),Flujo!$B$71/2,0) ->  | AD71: =IF(AND(AD2>=Datos!#REF!,AD2<=Datos!#REF!+1),Flujo!$B$71/2,0) ->  | AE71: =IF(AND(AE2>=Datos!#REF!,AE2<=Datos!#REF!+1),Flujo!$B$71/2,0) ->  | AF71: =IF(AND(AF2>=Datos!#REF!,AF2<=Datos!#REF!+1),Flujo!$B$71/2,0) ->  | AG71: =IF(AND(AG2>=Datos!#REF!,AG2<=Datos!#REF!+1),Flujo!$B$71/2,0) ->  | AH71: =IF(AND(AH2>=Datos!#REF!,AH2<=Datos!#REF!+1),Flujo!$B$71/2,0) ->  | AI71: =IF(AND(AI2>=Datos!#REF!,AI2<=Datos!#REF!+1),Flujo!$B$71/2,0) ->  | AJ71: =IF(AND(AJ2>=Datos!#REF!,AJ2<=Datos!#REF!+1),Flujo!$B$71/2,0) ->  | AK71: =IF(AND(AK2>=Datos!#REF!,AK2<=Datos!#REF!+1),Flujo!$B$71/2,0) ->  | AL71: =IF(AND(AL2>=Datos!#REF!,AL2<=Datos!#REF!+1),Flujo!$B$71/2,0) ->  | AM71: =IF(AND(AM2>=Datos!#REF!,AM2<=Datos!#REF!+1),Flujo!$B$71/2,0) ->  | AN71: =IF(AND(AN2>=Datos!#REF!,AN2<=Datos!#REF!+1),Flujo!$B$71/2,0) ->  | AO71: =IF(AND(AO2>=Datos!#REF!,AO2<=Datos!#REF!+1),Flujo!$B$71/2,0) ->  | AP71: =IF(AND(AP2>=Datos!#REF!,AP2<=Datos!#REF!+1),Flujo!$B$71/2,0) ->  | AQ71: =IF(AND(AQ2>=Datos!#REF!,AQ2<=Datos!#REF!+1),Flujo!$B$71/2,0) ->  | AR71: =IF(AND(AR2>=Datos!#REF!,AR2<=Datos!#REF!+1),Flujo!$B$71/2,0) ->  | AS71: =IF(AND(AS2>=Datos!#REF!,AS2<=Datos!#REF!+1),Flujo!$B$71/2,0) ->  | AT71: =IF(AND(AT2>=Datos!#REF!,AT2<=Datos!#REF!+1),Flujo!$B$71/2,0) ->  | AU71: =IF(AND(AU2>=Datos!#REF!,AU2<=Datos!#REF!+1),Flujo!$B$71/2,0) ->  | AV71: =IF(AND(AV2>=Datos!#REF!,AV2<=Datos!#REF!+1),Flujo!$B$71/2,0) ->  | AW71: =IF(AND(AW2>=Datos!#REF!,AW2<=Datos!#REF!+1),Flujo!$B$71/2,0) ->  | AX71: =IF(AND(AX2>=Datos!#REF!,AX2<=Datos!#REF!+1),Flujo!$B$71/2,0) ->  | AY71: =IF(AND(AY2>=Datos!#REF!,AY2<=Datos!#REF!+1),Flujo!$B$71/2,0) ->  | AZ71: =IF(AND(AZ2>=Datos!#REF!,AZ2<=Datos!#REF!+1),Flujo!$B$71/2,0) ->  | BA71: =IF(AND(BA2>=Datos!#REF!,BA2<=Datos!#REF!+1),Flujo!$B$71/2,0) ->  | BB71: =IF(AND(BB2>=Datos!#REF!,BB2<=Datos!#REF!+1),Flujo!$B$71/2,0) ->  | BC71: =IF(AND(BC2>=Datos!#REF!,BC2<=Datos!#REF!+1),Flujo!$B$71/2,0) ->  | BD71: =IF(AND(BD2>=Datos!#REF!,BD2<=Datos!#REF!+1),Flujo!$B$71/2,0) ->  | BE71: =IF(AND(BE2>=Datos!#REF!,BE2<=Datos!#REF!+1),Flujo!$B$71/2,0) ->  | BF71: =IF(AND(BF2>=Datos!#REF!,BF2<=Datos!#REF!+1),Flujo!$B$71/2,0) ->  | BG71: =IF(AND(BG2>=Datos!#REF!,BG2<=Datos!#REF!+1),Flujo!$B$71/2,0) ->  | BH71: =IF(AND(BH2>=Datos!#REF!,BH2<=Datos!#REF!+1),Flujo!$B$71/2,0) ->  | BI71: =IF(AND(BI2>=Datos!#REF!,BI2<=Datos!#REF!+1),Flujo!$B$71/2,0) ->  | BJ71: =IF(AND(BJ2>=Datos!#REF!,BJ2<=Datos!#REF!+1),Flujo!$B$71/2,0) ->  | BK71: =IF(AND(BK2>=Datos!#REF!,BK2<=Datos!#REF!+1),Flujo!$B$71/2,0) ->  | BL71: =IF(AND(BL2>=Datos!#REF!,BL2<=Datos!#REF!+1),Flujo!$B$71/2,0) ->  | BM71: =IF(AND(BM2>=Datos!#REF!,BM2<=Datos!#REF!+1),Flujo!$B$71/2,0) ->  | BN71: =IF(AND(BN2>=Datos!#REF!,BN2<=Datos!#REF!+1),Flujo!$B$71/2,0) ->  | BO71: =IF(AND(BO2>=Datos!#REF!,BO2<=Datos!#REF!+1),Flujo!$B$71/2,0) ->  | BP71: =IF(AND(BP2>=Datos!#REF!,BP2<=Datos!#REF!+1),Flujo!$B$71/2,0) ->  | BQ71: =IF(AND(BQ2>=Datos!#REF!,BQ2<=Datos!#REF!+1),Flujo!$B$71/2,0) ->  | BR71: =IF(AND(BR2>=Datos!#REF!,BR2<=Datos!#REF!+1),Flujo!$B$71/2,0) ->  | BS71: =IF(AND(BS2>=Datos!#REF!,BS2<=Datos!#REF!+1),Flujo!$B$71/2,0) ->  | BT71: =IF(AND(BT2>=Datos!#REF!,BT2<=Datos!#REF!+1),Flujo!$B$71/2,0) ->  | BU71: =IF(AND(BU2>=Datos!#REF!,BU2<=Datos!#REF!+1),Flujo!$B$71/2,0) ->  | BV71: =IF(AND(BV2>=Datos!#REF!,BV2<=Datos!#REF!+1),Flujo!$B$71/2,0) ->  | BW71: =IF(AND(BW2>=Datos!#REF!,BW2<=Datos!#REF!+1),Flujo!$B$71/2,0) ->  | BX71: =IF(AND(BX2>=Datos!#REF!,BX2<=Datos!#REF!+1),Flujo!$B$71/2,0) ->  | BY71: =IF(AND(BY2>=Datos!#REF!,BY2<=Datos!#REF!+1),Flujo!$B$71/2,0) ->  | BZ71: =IF(AND(BZ2>=Datos!#REF!,BZ2<=Datos!#REF!+1),Flujo!$B$71/2,0) -> 
A72: =Evaluación!C99 -> Mantención de Stock | B72: =Evaluación!G99 -> 0 | C72: =IF(SUM(E72:BV72)=B72,"OK","") ->  | E72: =IF(AND(E2>=Datos!#REF!+3,E2<=Datos!#REF!+8),Flujo!$B$72/6,0) ->  | F72: =IF(AND(F2>=Datos!#REF!+3,F2<=Datos!#REF!+8),Flujo!$B$72/6,0) ->  | G72: =IF(AND(G2>=Datos!#REF!+3,G2<=Datos!#REF!+8),Flujo!$B$72/6,0) ->  | H72: =IF(AND(H2>=Datos!#REF!+3,H2<=Datos!#REF!+8),Flujo!$B$72/6,0) ->  | I72: =IF(AND(I2>=Datos!#REF!+3,I2<=Datos!#REF!+8),Flujo!$B$72/6,0) ->  | J72: =IF(AND(J2>=Datos!#REF!+3,J2<=Datos!#REF!+8),Flujo!$B$72/6,0) ->  | K72: =IF(AND(K2>=Datos!#REF!+3,K2<=Datos!#REF!+8),Flujo!$B$72/6,0) ->  | L72: =IF(AND(L2>=Datos!#REF!+3,L2<=Datos!#REF!+8),Flujo!$B$72/6,0) ->  | M72: =IF(AND(M2>=Datos!#REF!+3,M2<=Datos!#REF!+8),Flujo!$B$72/6,0) ->  | N72: =IF(AND(N2>=Datos!#REF!+3,N2<=Datos!#REF!+8),Flujo!$B$72/6,0) ->  | O72: =IF(AND(O2>=Datos!#REF!+3,O2<=Datos!#REF!+8),Flujo!$B$72/6,0) ->  | P72: =IF(AND(P2>=Datos!#REF!+3,P2<=Datos!#REF!+8),Flujo!$B$72/6,0) ->  | Q72: =IF(AND(Q2>=Datos!#REF!+3,Q2<=Datos!#REF!+8),Flujo!$B$72/6,0) ->  | R72: =IF(AND(R2>=Datos!#REF!+3,R2<=Datos!#REF!+8),Flujo!$B$72/6,0) ->  | S72: =IF(AND(S2>=Datos!#REF!+3,S2<=Datos!#REF!+8),Flujo!$B$72/6,0) ->  | T72: =IF(AND(T2>=Datos!#REF!+3,T2<=Datos!#REF!+8),Flujo!$B$72/6,0) ->  | U72: =IF(AND(U2>=Datos!#REF!+3,U2<=Datos!#REF!+8),Flujo!$B$72/6,0) ->  | V72: =IF(AND(V2>=Datos!#REF!+3,V2<=Datos!#REF!+8),Flujo!$B$72/6,0) ->  | W72: =IF(AND(W2>=Datos!#REF!+3,W2<=Datos!#REF!+8),Flujo!$B$72/6,0) ->  | X72: =IF(AND(X2>=Datos!#REF!+3,X2<=Datos!#REF!+8),Flujo!$B$72/6,0) ->  | Y72: =IF(AND(Y2>=Datos!#REF!+3,Y2<=Datos!#REF!+8),Flujo!$B$72/6,0) ->  | Z72: =IF(AND(Z2>=Datos!#REF!+3,Z2<=Datos!#REF!+8),Flujo!$B$72/6,0) ->  | AA72: =IF(AND(AA2>=Datos!#REF!+3,AA2<=Datos!#REF!+8),Flujo!$B$72/6,0) ->  | AB72: =IF(AND(AB2>=Datos!#REF!+3,AB2<=Datos!#REF!+8),Flujo!$B$72/6,0) ->  | AC72: =IF(AND(AC2>=Datos!#REF!+3,AC2<=Datos!#REF!+8),Flujo!$B$72/6,0) ->  | AD72: =IF(AND(AD2>=Datos!#REF!+3,AD2<=Datos!#REF!+8),Flujo!$B$72/6,0) ->  | AE72: =IF(AND(AE2>=Datos!#REF!+3,AE2<=Datos!#REF!+8),Flujo!$B$72/6,0) ->  | AF72: =IF(AND(AF2>=Datos!#REF!+3,AF2<=Datos!#REF!+8),Flujo!$B$72/6,0) ->  | AG72: =IF(AND(AG2>=Datos!#REF!+3,AG2<=Datos!#REF!+8),Flujo!$B$72/6,0) ->  | AH72: =IF(AND(AH2>=Datos!#REF!+3,AH2<=Datos!#REF!+8),Flujo!$B$72/6,0) ->  | AI72: =IF(AND(AI2>=Datos!#REF!+3,AI2<=Datos!#REF!+8),Flujo!$B$72/6,0) ->  | AJ72: =IF(AND(AJ2>=Datos!#REF!+3,AJ2<=Datos!#REF!+8),Flujo!$B$72/6,0) ->  | AK72: =IF(AND(AK2>=Datos!#REF!+3,AK2<=Datos!#REF!+8),Flujo!$B$72/6,0) ->  | AL72: =IF(AND(AL2>=Datos!#REF!+3,AL2<=Datos!#REF!+8),Flujo!$B$72/6,0) ->  | AM72: =IF(AND(AM2>=Datos!#REF!+3,AM2<=Datos!#REF!+8),Flujo!$B$72/6,0) ->  | AN72: =IF(AND(AN2>=Datos!#REF!+3,AN2<=Datos!#REF!+8),Flujo!$B$72/6,0) ->  | AO72: =IF(AND(AO2>=Datos!#REF!+3,AO2<=Datos!#REF!+8),Flujo!$B$72/6,0) ->  | AP72: =IF(AND(AP2>=Datos!#REF!+3,AP2<=Datos!#REF!+8),Flujo!$B$72/6,0) ->  | AQ72: =IF(AND(AQ2>=Datos!#REF!+3,AQ2<=Datos!#REF!+8),Flujo!$B$72/6,0) ->  | AR72: =IF(AND(AR2>=Datos!#REF!+3,AR2<=Datos!#REF!+8),Flujo!$B$72/6,0) ->  | AS72: =IF(AND(AS2>=Datos!#REF!+3,AS2<=Datos!#REF!+8),Flujo!$B$72/6,0) ->  | AT72: =IF(AND(AT2>=Datos!#REF!+3,AT2<=Datos!#REF!+8),Flujo!$B$72/6,0) ->  | AU72: =IF(AND(AU2>=Datos!#REF!+3,AU2<=Datos!#REF!+8),Flujo!$B$72/6,0) ->  | AV72: =IF(AND(AV2>=Datos!#REF!+3,AV2<=Datos!#REF!+8),Flujo!$B$72/6,0) ->  | AW72: =IF(AND(AW2>=Datos!#REF!+3,AW2<=Datos!#REF!+8),Flujo!$B$72/6,0) ->  | AX72: =IF(AND(AX2>=Datos!#REF!+3,AX2<=Datos!#REF!+8),Flujo!$B$72/6,0) ->  | AY72: =IF(AND(AY2>=Datos!#REF!+3,AY2<=Datos!#REF!+8),Flujo!$B$72/6,0) ->  | AZ72: =IF(AND(AZ2>=Datos!#REF!+3,AZ2<=Datos!#REF!+8),Flujo!$B$72/6,0) ->  | BA72: =IF(AND(BA2>=Datos!#REF!+3,BA2<=Datos!#REF!+8),Flujo!$B$72/6,0) ->  | BB72: =IF(AND(BB2>=Datos!#REF!+3,BB2<=Datos!#REF!+8),Flujo!$B$72/6,0) ->  | BC72: =IF(AND(BC2>=Datos!#REF!+3,BC2<=Datos!#REF!+8),Flujo!$B$72/6,0) ->  | BD72: =IF(AND(BD2>=Datos!#REF!+3,BD2<=Datos!#REF!+8),Flujo!$B$72/6,0) ->  | BE72: =IF(AND(BE2>=Datos!#REF!+3,BE2<=Datos!#REF!+8),Flujo!$B$72/6,0) ->  | BF72: =IF(AND(BF2>=Datos!#REF!+3,BF2<=Datos!#REF!+8),Flujo!$B$72/6,0) ->  | BG72: =IF(AND(BG2>=Datos!#REF!+3,BG2<=Datos!#REF!+8),Flujo!$B$72/6,0) ->  | BH72: =IF(AND(BH2>=Datos!#REF!+3,BH2<=Datos!#REF!+8),Flujo!$B$72/6,0) ->  | BI72: =IF(AND(BI2>=Datos!#REF!+3,BI2<=Datos!#REF!+8),Flujo!$B$72/6,0) ->  | BJ72: =IF(AND(BJ2>=Datos!#REF!+3,BJ2<=Datos!#REF!+8),Flujo!$B$72/6,0) ->  | BK72: =IF(AND(BK2>=Datos!#REF!+3,BK2<=Datos!#REF!+8),Flujo!$B$72/6,0) ->  | BL72: =IF(AND(BL2>=Datos!#REF!+3,BL2<=Datos!#REF!+8),Flujo!$B$72/6,0) ->  | BM72: =IF(AND(BM2>=Datos!#REF!+3,BM2<=Datos!#REF!+8),Flujo!$B$72/6,0) ->  | BN72: =IF(AND(BN2>=Datos!#REF!+3,BN2<=Datos!#REF!+8),Flujo!$B$72/6,0) ->  | BO72: =IF(AND(BO2>=Datos!#REF!+3,BO2<=Datos!#REF!+8),Flujo!$B$72/6,0) ->  | BP72: =IF(AND(BP2>=Datos!#REF!+3,BP2<=Datos!#REF!+8),Flujo!$B$72/6,0) ->  | BQ72: =IF(AND(BQ2>=Datos!#REF!+3,BQ2<=Datos!#REF!+8),Flujo!$B$72/6,0) ->  | BR72: =IF(AND(BR2>=Datos!#REF!+3,BR2<=Datos!#REF!+8),Flujo!$B$72/6,0) ->  | BS72: =IF(AND(BS2>=Datos!#REF!+3,BS2<=Datos!#REF!+8),Flujo!$B$72/6,0) ->  | BT72: =IF(AND(BT2>=Datos!#REF!+3,BT2<=Datos!#REF!+8),Flujo!$B$72/6,0) ->  | BU72: =IF(AND(BU2>=Datos!#REF!+3,BU2<=Datos!#REF!+8),Flujo!$B$72/6,0) ->  | BV72: =IF(AND(BV2>=Datos!#REF!+3,BV2<=Datos!#REF!+8),Flujo!$B$72/6,0) ->  | BW72: =IF(AND(BW2>=Datos!#REF!+3,BW2<=Datos!#REF!+8),Flujo!$B$72/6,0) ->  | BX72: =IF(AND(BX2>=Datos!#REF!+3,BX2<=Datos!#REF!+8),Flujo!$B$72/6,0) ->  | BY72: =IF(AND(BY2>=Datos!#REF!+3,BY2<=Datos!#REF!+8),Flujo!$B$72/6,0) ->  | BZ72: =IF(AND(BZ2>=Datos!#REF!+3,BZ2<=Datos!#REF!+8),Flujo!$B$72/6,0) -> 
A73: IVA Gastos Operacionales | C73: =IF(SUM(E73:BV73)=B73,"OK","") -> OK
A75: Total Gastos Operacionales | B75: =+SUM(B71:B73) -> 500 | C75: =IF(SUM(D75:BV75)=B75,"OK","") ->  | D75: =SUM(D71:D73) -> 0 | K75: =SUM(K71:K73) ->  | AH75: =SUM(AH71:AH73) ->  | AS75: =SUM(AS71:AS73) ->  | BC75: =SUM(BC71:BC73) ->  | BD75: =SUM(BD71:BD73) ->  | BE75: =SUM(BE71:BE73) ->  | BF75: =SUM(BF71:BF73) ->  | BG75: =SUM(BG71:BG73) ->  | BM75: =SUM(BM71:BM73) ->  | BW75: =SUM(BW71:BW73) ->  | BX75: =SUM(BX71:BX73) ->  | BY75: =SUM(BY71:BY73) ->  | BZ75: =SUM(BZ71:BZ73) -> 
A77: 8.- GASTOS FINANCIEROS
A78: Intereses | C78: 0.04
C79: =IF(SUM(E79:BL79)=B79,"OK","") ->  | D79: =D16+D28+D39+D52+D61+D68+D75+D86+D100 -> 0 | E79: =+E61+E52+E39+E28+E16+E86-E100+D79+E68+E75 ->  | AK79: =+AK61+AK52+AK39+AK28+AK16+AK86-AK100+AJ79+AK68+AK75 ->  | BQ79: =+BQ61+BQ52+BQ39+BQ28+BQ16+BQ86-BQ100+BP79+BQ68+BQ75 -> 
A80: Total Gastos Financieros | B80: =SUM(E80:BV80) ->  | C80: =IF(SUM(E80:BV80)=B80,"OK","") ->  | E80: =IF(D$79*$C$78/12<0,0,D$79*$C$78/12) -> 0 | F80: =IF(E$79*$C$78/12<0,0,E$79*$C$78/12) ->  | G80: =IF(F$79*$C$78/12<0,0,F$79*$C$78/12) ->  | J80: =IF(I$79*$C$78/12<0,0,I$79*$C$78/12) ->  | L80: =IF(K$79*$C$78/12<0,0,K$79*$C$78/12) ->  | AJ80: =IF(AI$79*$C$78/12<0,0,AI$79*$C$78/12) ->  | AK80: =IF(AJ$79*$C$78/12<0,0,AJ$79*$C$78/12) ->  | AL80: =IF(AK$79*$C$78/12<0,0,AK$79*$C$78/12) ->  | AO80: =IF(AN$79*$C$78/12<0,0,AN$79*$C$78/12) -> 
AJ81: rm | AK81: escrituracion | AL81: escrit
A82: 9- GASTOS CASA CENTRAL
A83: =Evaluación!C109 -> Oficina Central Santiago | B83: =Evaluación!G109 -> 0 | C83: =IF(SUM(E83:BV83)=B83,"OK","") ->  | E83: =IF(E91>0,$B$83/Datos!#REF!,0) ->  | F83: =IF(F91>0,$B$83/Datos!#REF!,0) ->  | G83: =IF(G91>0,$B$83/Datos!#REF!,0) ->  | H83: =IF(H91>0,$B$83/Datos!#REF!,0) ->  | I83: =IF(I91>0,$B$83/Datos!#REF!,0) ->  | J83: =IF(J91>0,$B$83/Datos!#REF!,0) ->  | K83: =IF(K91>0,$B$83/Datos!#REF!,0) ->  | L83: =IF(L91>0,$B$83/Datos!#REF!,0) ->  | M83: =IF(M91>0,$B$83/Datos!#REF!,0) ->  | N83: =IF(N91>0,$B$83/Datos!#REF!,0) ->  | O83: =IF(O91>0,$B$83/Datos!#REF!,0) ->  | P83: =IF(P91>0,$B$83/Datos!#REF!,0) ->  | Q83: =IF(Q91>0,$B$83/Datos!#REF!,0) ->  | R83: =IF(R91>0,$B$83/Datos!#REF!,0) ->  | S83: =IF(S91>0,$B$83/Datos!#REF!,0) ->  | T83: =IF(T91>0,$B$83/Datos!#REF!,0) ->  | U83: =IF(U91>0,$B$83/Datos!#REF!,0) ->  | V83: =IF(V91>0,$B$83/Datos!#REF!,0) ->  | W83: =IF(W91>0,$B$83/Datos!#REF!,0) ->  | X83: =IF(X91>0,$B$83/Datos!#REF!,0) ->  | Y83: =IF(Y91>0,$B$83/Datos!#REF!,0) ->  | Z83: =IF(Z91>0,$B$83/Datos!#REF!,0) ->  | AA83: =IF(AA91>0,$B$83/Datos!#REF!,0) ->  | AB83: =IF(AB91>0,$B$83/Datos!#REF!,0) ->  | AC83: =IF(AC91>0,$B$83/Datos!#REF!,0) ->  | AD83: =IF(AD91>0,$B$83/Datos!#REF!,0) ->  | AE83: =IF(AE91>0,$B$83/Datos!#REF!,0) ->  | AF83: =IF(AF91>0,$B$83/Datos!#REF!,0) ->  | AG83: =IF(AG91>0,$B$83/Datos!#REF!,0) ->  | AH83: =IF(AH91>0,$B$83/Datos!#REF!,0) ->  | AI83: =IF(AI91>0,$B$83/Datos!#REF!,0) ->  | AJ83: =IF(AJ91>0,$B$83/Datos!#REF!,0) ->  | AK83: =IF(AK91>0,$B$83/Datos!#REF!,0) ->  | AL83: =IF(AL91>0,$B$83/Datos!#REF!,0) ->  | AM83: =IF(AM91>0,$B$83/Datos!#REF!,0) ->  | AN83: =IF(AN91>0,$B$83/Datos!#REF!,0) ->  | AO83: =IF(AO91>0,$B$83/Datos!#REF!,0) ->  | AP83: =IF(AP91>0,$B$83/Datos!#REF!,0) ->  | AQ83: =IF(AQ91>0,$B$83/Datos!#REF!,0) ->  | AR83: =IF(AR91>0,$B$83/Datos!#REF!,0) ->  | AS83: =IF(AS91>0,$B$83/Datos!#REF!,0) ->  | AT83: =IF(AT91>0,$B$83/Datos!#REF!,0) ->  | AU83: =IF(AU91>0,$B$83/Datos!#REF!,0) ->  | AV83: =IF(AV91>0,$B$83/Datos!#REF!,0) ->  | AW83: =IF(AW91>0,$B$83/Datos!#REF!,0) ->  | AX83: =IF(AX91>0,$B$83/Datos!#REF!,0) ->  | AY83: =IF(AY91>0,$B$83/Datos!#REF!,0) ->  | AZ83: =IF(AZ91>0,$B$83/Datos!#REF!,0) ->  | BA83: =IF(BA91>0,$B$83/Datos!#REF!,0) ->  | BB83: =IF(BB91>0,$B$83/Datos!#REF!,0) ->  | BC83: =IF(BC91>0,$B$83/Datos!#REF!,0) ->  | BD83: =IF(BD91>0,$B$83/Datos!#REF!,0) ->  | BE83: =IF(BE91>0,$B$83/Datos!#REF!,0) ->  | BF83: =IF(BF91>0,$B$83/Datos!#REF!,0) ->  | BG83: =IF(BG91>0,$B$83/Datos!#REF!,0) ->  | BH83: =IF(BH91>0,$B$83/Datos!#REF!,0) ->  | BI83: =IF(BI91>0,$B$83/Datos!#REF!,0) ->  | BJ83: =IF(BJ91>0,$B$83/Datos!#REF!,0) ->  | BK83: =IF(BK91>0,$B$83/Datos!#REF!,0) ->  | BL83: =IF(BL91>0,$B$83/Datos!#REF!,0) ->  | BM83: =IF(BM91>0,$B$83/Datos!#REF!,0) ->  | BN83: =IF(BN91>0,$B$83/Datos!#REF!,0) ->  | BO83: =IF(BO91>0,$B$83/Datos!#REF!,0) ->  | BP83: =IF(BP91>0,$B$83/Datos!#REF!,0) ->  | BQ83: =IF(BQ91>0,$B$83/Datos!#REF!,0) ->  | BR83: =IF(BR91>0,$B$83/Datos!#REF!,0) ->  | BS83: =IF(BS91>0,$B$83/Datos!#REF!,0) ->  | BT83: =IF(BT91>0,$B$83/Datos!#REF!,0) ->  | BU83: =IF(BU91>0,$B$83/Datos!#REF!,0) ->  | BV83: =IF(BV91>0,$B$83/Datos!#REF!,0) ->  | BW83: =IF(BW91>0,$B$83/Datos!#REF!,0) ->  | BX83: =IF(BX91>0,$B$83/Datos!#REF!,0) ->  | BY83: =IF(BY91>0,$B$83/Datos!#REF!,0) ->  | BZ83: =IF(BZ91>0,$B$83/Datos!#REF!,0) -> 
A84: =Evaluación!C110 -> Oficina Zonal | B84: =Evaluación!G110 -> 0 | C84: =IF(SUM(E84:BV84)=B84,"OK","") ->  | E84: =IF(E91>0,$B$84/Datos!#REF!,0) ->  | F84: =IF(F91>0,$B$84/Datos!#REF!,0) ->  | G84: =IF(G91>0,$B$84/Datos!#REF!,0) ->  | H84: =IF(H91>0,$B$84/Datos!#REF!,0) ->  | I84: =IF(I91>0,$B$84/Datos!#REF!,0) ->  | J84: =IF(J91>0,$B$84/Datos!#REF!,0) ->  | K84: =IF(K91>0,$B$84/Datos!#REF!,0) ->  | L84: =IF(L91>0,$B$84/Datos!#REF!,0) ->  | M84: =IF(M91>0,$B$84/Datos!#REF!,0) ->  | N84: =IF(N91>0,$B$84/Datos!#REF!,0) ->  | O84: =IF(O91>0,$B$84/Datos!#REF!,0) ->  | P84: =IF(P91>0,$B$84/Datos!#REF!,0) ->  | Q84: =IF(Q91>0,$B$84/Datos!#REF!,0) ->  | R84: =IF(R91>0,$B$84/Datos!#REF!,0) ->  | S84: =IF(S91>0,$B$84/Datos!#REF!,0) ->  | T84: =IF(T91>0,$B$84/Datos!#REF!,0) ->  | U84: =IF(U91>0,$B$84/Datos!#REF!,0) ->  | V84: =IF(V91>0,$B$84/Datos!#REF!,0) ->  | W84: =IF(W91>0,$B$84/Datos!#REF!,0) ->  | X84: =IF(X91>0,$B$84/Datos!#REF!,0) ->  | Y84: =IF(Y91>0,$B$84/Datos!#REF!,0) ->  | Z84: =IF(Z91>0,$B$84/Datos!#REF!,0) ->  | AA84: =IF(AA91>0,$B$84/Datos!#REF!,0) ->  | AB84: =IF(AB91>0,$B$84/Datos!#REF!,0) ->  | AC84: =IF(AC91>0,$B$84/Datos!#REF!,0) ->  | AD84: =IF(AD91>0,$B$84/Datos!#REF!,0) ->  | AE84: =IF(AE91>0,$B$84/Datos!#REF!,0) ->  | AF84: =IF(AF91>0,$B$84/Datos!#REF!,0) ->  | AG84: =IF(AG91>0,$B$84/Datos!#REF!,0) ->  | AH84: =IF(AH91>0,$B$84/Datos!#REF!,0) ->  | AI84: =IF(AI91>0,$B$84/Datos!#REF!,0) ->  | AJ84: =IF(AJ91>0,$B$84/Datos!#REF!,0) ->  | AK84: =IF(AK91>0,$B$84/Datos!#REF!,0) ->  | AL84: =IF(AL91>0,$B$84/Datos!#REF!,0) ->  | AM84: =IF(AM91>0,$B$84/Datos!#REF!,0) ->  | AN84: =IF(AN91>0,$B$84/Datos!#REF!,0) ->  | AO84: =IF(AO91>0,$B$84/Datos!#REF!,0) ->  | AP84: =IF(AP91>0,$B$84/Datos!#REF!,0) ->  | AQ84: =IF(AQ91>0,$B$84/Datos!#REF!,0) ->  | AR84: =IF(AR91>0,$B$84/Datos!#REF!,0) ->  | AS84: =IF(AS91>0,$B$84/Datos!#REF!,0) ->  | AT84: =IF(AT91>0,$B$84/Datos!#REF!,0) ->  | AU84: =IF(AU91>0,$B$84/Datos!#REF!,0) ->  | AV84: =IF(AV91>0,$B$84/Datos!#REF!,0) ->  | AW84: =IF(AW91>0,$B$84/Datos!#REF!,0) ->  | AX84: =IF(AX91>0,$B$84/Datos!#REF!,0) ->  | AY84: =IF(AY91>0,$B$84/Datos!#REF!,0) ->  | AZ84: =IF(AZ91>0,$B$84/Datos!#REF!,0) ->  | BA84: =IF(BA91>0,$B$84/Datos!#REF!,0) ->  | BB84: =IF(BB91>0,$B$84/Datos!#REF!,0) ->  | BC84: =IF(BC91>0,$B$84/Datos!#REF!,0) ->  | BD84: =IF(BD91>0,$B$84/Datos!#REF!,0) ->  | BE84: =IF(BE91>0,$B$84/Datos!#REF!,0) ->  | BF84: =IF(BF91>0,$B$84/Datos!#REF!,0) ->  | BG84: =IF(BG91>0,$B$84/Datos!#REF!,0) ->  | BH84: =IF(BH91>0,$B$84/Datos!#REF!,0) ->  | BI84: =IF(BI91>0,$B$84/Datos!#REF!,0) ->  | BJ84: =IF(BJ91>0,$B$84/Datos!#REF!,0) ->  | BK84: =IF(BK91>0,$B$84/Datos!#REF!,0) ->  | BL84: =IF(BL91>0,$B$84/Datos!#REF!,0) ->  | BM84: =IF(BM91>0,$B$84/Datos!#REF!,0) ->  | BN84: =IF(BN91>0,$B$84/Datos!#REF!,0) ->  | BO84: =IF(BO91>0,$B$84/Datos!#REF!,0) ->  | BP84: =IF(BP91>0,$B$84/Datos!#REF!,0) ->  | BQ84: =IF(BQ91>0,$B$84/Datos!#REF!,0) ->  | BR84: =IF(BR91>0,$B$84/Datos!#REF!,0) ->  | BS84: =IF(BS91>0,$B$84/Datos!#REF!,0) ->  | BT84: =IF(BT91>0,$B$84/Datos!#REF!,0) ->  | BU84: =IF(BU91>0,$B$84/Datos!#REF!,0) ->  | BV84: =IF(BV91>0,$B$84/Datos!#REF!,0) ->  | BW84: =IF(BW91>0,$B$84/Datos!#REF!,0) ->  | BX84: =IF(BX91>0,$B$84/Datos!#REF!,0) ->  | BY84: =IF(BY91>0,$B$84/Datos!#REF!,0) ->  | BZ84: =IF(BZ91>0,$B$84/Datos!#REF!,0) -> 
A86: Total Gastos Casa Central | B86: =+SUM(B83:B84) -> 0 | C86: =IF(SUM(D86:BV86)=B86,"OK","") ->  | E86: =SUM(E83:E84) ->  | F86: =SUM(F83:F84) ->  | K86: =SUM(K83:K84) ->  | L86: =SUM(L83:L84) ->  | N86: =SUM(N83:N84) ->  | AI86: =SUM(AI83:AI84) ->  | AS86: =SUM(AS83:AS84) ->  | BC86: =SUM(BC83:BC84) ->  | BD86: =SUM(BD83:BD84) ->  | BE86: =SUM(BE83:BE84) ->  | BF86: =SUM(BF83:BF84) ->  | BG86: =SUM(BG83:BG84) ->  | BM86: =SUM(BM83:BM84) ->  | BW86: =SUM(BW83:BW84) ->  | BX86: =SUM(BX83:BX84) ->  | BY86: =SUM(BY83:BY84) ->  | BZ86: =SUM(BZ83:BZ84) -> 
A88: TOTAL EGRESOS | B88: =+B86+B80+B75+B68+B61+B52+B39+B28+B16 ->  | C88: =IF(SUM(D88:BV88)=B88,"OK","") ->  | D88: =+D86+D80+D75+D68+D61+D52+D39+D28+D16 -> 0 | AJ88: =+AJ86+AJ80+AJ75+AJ68+AJ61+AJ52+AJ39+AJ28+AJ16 ->  | BP88: =+BP86+BP80+BP75+BP68+BP61+BP52+BP39+BP28+BP16 -> 
A90: 10.- VENTAS | B90: =Datos!C12 -> 0
A91: Unidades Ventas/Mes | B91: =Datos!C29 -> - | C91: =SUM(E91:BV91) ->  | E91: =IF(E2>=Datos!$I$10,IF(SUM($D$91:D91)<$B$90-$B$91,$B$91,$B$90-SUM($D$91:D91)),0) ->  | F91: =IF(F2>=Datos!$I$10,IF(SUM($D$91:E91)<$B$90-$B$91,$B$91,$B$90-SUM($D$91:E91)),0) ->  | G91: =IF(G2>=Datos!$I$10,IF(SUM($D$91:F91)<$B$90-$B$91,$B$91,$B$90-SUM($D$91:F91)),0) ->  | H91: =IF(H2>=Datos!$I$10,IF(SUM($D$91:G91)<$B$90-$B$91,$B$91,$B$90-SUM($D$91:G91)),0) ->  | I91: =IF(I2>=Datos!$I$10,IF(SUM($D$91:H91)<$B$90-$B$91,$B$91,$B$90-SUM($D$91:H91)),0) ->  | J91: =IF(J2>=Datos!$I$10,IF(SUM($D$91:I91)<$B$90-$B$91,$B$91,$B$90-SUM($D$91:I91)),0) ->  | K91: =IF(K2>=Datos!$I$10,IF(SUM($D$91:J91)<$B$90-$B$91,$B$91,$B$90-SUM($D$91:J91)),0) ->  | L91: =IF(L2>=Datos!$I$10,IF(SUM($D$91:K91)<$B$90-$B$91,$B$91,$B$90-SUM($D$91:K91)),0) ->  | M91: =IF(M2>=Datos!$I$10,IF(SUM($D$91:L91)<$B$90-$B$91,$B$91,$B$90-SUM($D$91:L91)),0) ->  | N91: =IF(N2>=Datos!$I$10,IF(SUM($D$91:M91)<$B$90-$B$91,$B$91,$B$90-SUM($D$91:M91)),0) ->  | O91: =IF(O2>=Datos!$I$10,IF(SUM($D$91:N91)<$B$90-$B$91,$B$91,$B$90-SUM($D$91:N91)),0) ->  | P91: =IF(P2>=Datos!$I$10,IF(SUM($D$91:O91)<$B$90-$B$91,$B$91,$B$90-SUM($D$91:O91)),0) ->  | Q91: =IF(Q2>=Datos!$I$10,IF(SUM($D$91:P91)<$B$90-$B$91,$B$91,$B$90-SUM($D$91:P91)),0) ->  | R91: =IF(R2>=Datos!$I$10,IF(SUM($D$91:Q91)<$B$90-$B$91,$B$91,$B$90-SUM($D$91:Q91)),0) ->  | S91: =IF(S2>=Datos!$I$10,IF(SUM($D$91:R91)<$B$90-$B$91,$B$91,$B$90-SUM($D$91:R91)),0) ->  | T91: =IF(T2>=Datos!$I$10,IF(SUM($D$91:S91)<$B$90-$B$91,$B$91,$B$90-SUM($D$91:S91)),0) ->  | U91: =IF(U2>=Datos!$I$10,IF(SUM($D$91:T91)<$B$90-$B$91,$B$91,$B$90-SUM($D$91:T91)),0) ->  | V91: =IF(V2>=Datos!$I$10,IF(SUM($D$91:U91)<$B$90-$B$91,$B$91,$B$90-SUM($D$91:U91)),0) ->  | W91: =IF(W2>=Datos!$I$10,IF(SUM($D$91:V91)<$B$90-$B$91,$B$91,$B$90-SUM($D$91:V91)),0) ->  | X91: =IF(X2>=Datos!$I$10,IF(SUM($D$91:W91)<$B$90-$B$91,$B$91,$B$90-SUM($D$91:W91)),0) ->  | Y91: =IF(Y2>=Datos!$I$10,IF(SUM($D$91:X91)<$B$90-$B$91,$B$91,$B$90-SUM($D$91:X91)),0) ->  | Z91: =IF(Z2>=Datos!$I$10,IF(SUM($D$91:Y91)<$B$90-$B$91,$B$91,$B$90-SUM($D$91:Y91)),0) ->  | AA91: =IF(AA2>=Datos!$I$10,IF(SUM($D$91:Z91)<$B$90-$B$91,$B$91,$B$90-SUM($D$91:Z91)),0) ->  | AB91: =IF(AB2>=Datos!$I$10,IF(SUM($D$91:AA91)<$B$90-$B$91,$B$91,$B$90-SUM($D$91:AA91)),0) ->  | AC91: =IF(AC2>=Datos!$I$10,IF(SUM($D$91:AB91)<$B$90-$B$91,$B$91,$B$90-SUM($D$91:AB91)),0) ->  | AD91: =IF(AD2>=Datos!$I$10,IF(SUM($D$91:AC91)<$B$90-$B$91,$B$91,$B$90-SUM($D$91:AC91)),0) ->  | AE91: =IF(AE2>=Datos!$I$10,IF(SUM($D$91:AD91)<$B$90-$B$91,$B$91,$B$90-SUM($D$91:AD91)),0) ->  | AF91: =IF(AF2>=Datos!$I$10,IF(SUM($D$91:AE91)<$B$90-$B$91,$B$91,$B$90-SUM($D$91:AE91)),0) ->  | AG91: =IF(AG2>=Datos!$I$10,IF(SUM($D$91:AF91)<$B$90-$B$91,$B$91,$B$90-SUM($D$91:AF91)),0) ->  | AH91: =IF(AH2>=Datos!$I$10,IF(SUM($D$91:AG91)<$B$90-$B$91,$B$91,$B$90-SUM($D$91:AG91)),0) ->  | AI91: =IF(AI2>=Datos!$I$10,IF(SUM($D$91:AH91)<$B$90-$B$91,$B$91,$B$90-SUM($D$91:AH91)),0) ->  | AJ91: =IF(AJ2>=Datos!$I$10,IF(SUM($D$91:AI91)<$B$90-$B$91,$B$91,$B$90-SUM($D$91:AI91)),0) ->  | AK91: =IF(AK2>=Datos!$I$10,IF(SUM($D$91:AJ91)<$B$90-$B$91,$B$91,$B$90-SUM($D$91:AJ91)),0) ->  | AL91: =IF(AL2>=Datos!$I$10,IF(SUM($D$91:AK91)<$B$90-$B$91,$B$91,$B$90-SUM($D$91:AK91)),0) ->  | AM91: =IF(AM2>=Datos!$I$10,IF(SUM($D$91:AL91)<$B$90-$B$91,$B$91,$B$90-SUM($D$91:AL91)),0) ->  | AN91: =IF(AN2>=Datos!$I$10,IF(SUM($D$91:AM91)<$B$90-$B$91,$B$91,$B$90-SUM($D$91:AM91)),0) ->  | AO91: =IF(AO2>=Datos!$I$10,IF(SUM($D$91:AN91)<$B$90-$B$91,$B$91,$B$90-SUM($D$91:AN91)),0) ->  | AP91: =IF(AP2>=Datos!$I$10,IF(SUM($D$91:AO91)<$B$90-$B$91,$B$91,$B$90-SUM($D$91:AO91)),0) ->  | AQ91: =IF(AQ2>=Datos!$I$10,IF(SUM($D$91:AP91)<$B$90-$B$91,$B$91,$B$90-SUM($D$91:AP91)),0) ->  | AR91: =IF(AR2>=Datos!$I$10,IF(SUM($D$91:AQ91)<$B$90-$B$91,$B$91,$B$90-SUM($D$91:AQ91)),0) ->  | AS91: =IF(AS2>=Datos!$I$10,IF(SUM($D$91:AR91)<$B$90-$B$91,$B$91,$B$90-SUM($D$91:AR91)),0) ->  | AT91: =IF(AT2>=Datos!$I$10,IF(SUM($D$91:AS91)<$B$90-$B$91,$B$91,$B$90-SUM($D$91:AS91)),0) ->  | AU91: =IF(AU2>=Datos!$I$10,IF(SUM($D$91:AT91)<$B$90-$B$91,$B$91,$B$90-SUM($D$91:AT91)),0) ->  | AV91: =IF(AV2>=Datos!$I$10,IF(SUM($D$91:AU91)<$B$90-$B$91,$B$91,$B$90-SUM($D$91:AU91)),0) ->  | AW91: =IF(AW2>=Datos!$I$10,IF(SUM($D$91:AV91)<$B$90-$B$91,$B$91,$B$90-SUM($D$91:AV91)),0) ->  | AX91: =IF(AX2>=Datos!$I$10,IF(SUM($D$91:AW91)<$B$90-$B$91,$B$91,$B$90-SUM($D$91:AW91)),0) ->  | AY91: =IF(AY2>=Datos!$I$10,IF(SUM($D$91:AX91)<$B$90-$B$91,$B$91,$B$90-SUM($D$91:AX91)),0) ->  | AZ91: =IF(AZ2>=Datos!$I$10,IF(SUM($D$91:AY91)<$B$90-$B$91,$B$91,$B$90-SUM($D$91:AY91)),0) ->  | BA91: =IF(BA2>=Datos!$I$10,IF(SUM($D$91:AZ91)<$B$90-$B$91,$B$91,$B$90-SUM($D$91:AZ91)),0) ->  | BB91: =IF(BB2>=Datos!$I$10,IF(SUM($D$91:BA91)<$B$90-$B$91,$B$91,$B$90-SUM($D$91:BA91)),0) ->  | BC91: =IF(BC2>=Datos!$I$10,IF(SUM($D$91:BB91)<$B$90-$B$91,$B$91,$B$90-SUM($D$91:BB91)),0) ->  | BD91: =IF(BD2>=Datos!$I$10,IF(SUM($D$91:BC91)<$B$90-$B$91,$B$91,$B$90-SUM($D$91:BC91)),0) ->  | BE91: =IF(BE2>=Datos!$I$10,IF(SUM($D$91:BD91)<$B$90-$B$91,$B$91,$B$90-SUM($D$91:BD91)),0) ->  | BF91: =IF(BF2>=Datos!$I$10,IF(SUM($D$91:BE91)<$B$90-$B$91,$B$91,$B$90-SUM($D$91:BE91)),0) ->  | BG91: =IF(BG2>=Datos!$I$10,IF(SUM($D$91:BF91)<$B$90-$B$91,$B$91,$B$90-SUM($D$91:BF91)),0) ->  | BH91: =IF(BH2>=Datos!$I$10,IF(SUM($D$91:BG91)<$B$90-$B$91,$B$91,$B$90-SUM($D$91:BG91)),0) ->  | BI91: =IF(BI2>=Datos!$I$10,IF(SUM($D$91:BH91)<$B$90-$B$91,$B$91,$B$90-SUM($D$91:BH91)),0) ->  | BJ91: =IF(BJ2>=Datos!$I$10,IF(SUM($D$91:BI91)<$B$90-$B$91,$B$91,$B$90-SUM($D$91:BI91)),0) ->  | BK91: =IF(BK2>=Datos!$I$10,IF(SUM($D$91:BJ91)<$B$90-$B$91,$B$91,$B$90-SUM($D$91:BJ91)),0) ->  | BL91: =IF(BL2>=Datos!$I$10,IF(SUM($D$91:BK91)<$B$90-$B$91,$B$91,$B$90-SUM($D$91:BK91)),0) ->  | BM91: =IF(BM2>=Datos!$I$10,IF(SUM($D$91:BL91)<$B$90-$B$91,$B$91,$B$90-SUM($D$91:BL91)),0) ->  | BN91: =IF(BN2>=Datos!$I$10,IF(SUM($D$91:BM91)<$B$90-$B$91,$B$91,$B$90-SUM($D$91:BM91)),0) ->  | BO91: =IF(BO2>=Datos!$I$10,IF(SUM($D$91:BN91)<$B$90-$B$91,$B$91,$B$90-SUM($D$91:BN91)),0) ->  | BP91: =IF(BP2>=Datos!$I$10,IF(SUM($D$91:BO91)<$B$90-$B$91,$B$91,$B$90-SUM($D$91:BO91)),0) ->  | BQ91: =IF(BQ2>=Datos!$I$10,IF(SUM($D$91:BP91)<$B$90-$B$91,$B$91,$B$90-SUM($D$91:BP91)),0) ->  | BR91: =IF(BR2>=Datos!$I$10,IF(SUM($D$91:BQ91)<$B$90-$B$91,$B$91,$B$90-SUM($D$91:BQ91)),0) ->  | BS91: =IF(BS2>=Datos!$I$10,IF(SUM($D$91:BR91)<$B$90-$B$91,$B$91,$B$90-SUM($D$91:BR91)),0) ->  | BT91: =IF(BT2>=Datos!$I$10,IF(SUM($D$91:BS91)<$B$90-$B$91,$B$91,$B$90-SUM($D$91:BS91)),0) ->  | BU91: =IF(BU2>=Datos!$I$10,IF(SUM($D$91:BT91)<$B$90-$B$91,$B$91,$B$90-SUM($D$91:BT91)),0) ->  | BV91: =IF(BV2>=Datos!$I$10,IF(SUM($D$91:BU91)<$B$90-$B$91,$B$91,$B$90-SUM($D$91:BU91)),0) ->  | BW91: =IF(BW2>=Datos!$I$10,IF(SUM($D$91:BV91)<$B$90-$B$91,$B$91,$B$90-SUM($D$91:BV91)),0) ->  | BX91: =IF(BX2>=Datos!$I$10,IF(SUM($D$91:BW91)<$B$90-$B$91,$B$91,$B$90-SUM($D$91:BW91)),0) ->  | BY91: =IF(BY2>=Datos!$I$10,IF(SUM($D$91:BX91)<$B$90-$B$91,$B$91,$B$90-SUM($D$91:BX91)),0) ->  | BZ91: =IF(BZ2>=Datos!$I$10,IF(SUM($D$91:BY91)<$B$90-$B$91,$B$91,$B$90-SUM($D$91:BY91)),0) -> 
A92: Reserva | B92: =20*B90 -> 0 | C92: =B92/B90 ->  | E92: =IF(E91="","",$C$92*E91) ->  | F92: =IF(F91="","",$C$92*F91) ->  | G92: =IF(G91="","",$C$92*G91) ->  | H92: =IF(H91="","",$C$92*H91) ->  | L92: =IF(L91="","",$C$92*L91) ->  | M92: =IF(M91="","",$C$92*M91) ->  | BC92: =IF(BC91="","",$C$92*BC91) ->  | BD92: =IF(BD91="","",$C$92*BD91) ->  | BE92: =IF(BE91="","",$C$92*BE91) ->  | BF92: =IF(BF91="","",$C$92*BF91) ->  | BG92: =IF(BG91="","",$C$92*BG91) ->  | BM92: =IF(BM91="","",$C$92*BM91) ->  | BW92: =IF(BW91="","",$C$92*BW91) ->  | BX92: =IF(BX91="","",$C$92*BX91) ->  | BY92: =IF(BY91="","",$C$92*BY91) ->  | BZ92: =IF(BZ91="","",$C$92*BZ91) -> 
A93: Promesa | B93: =Evaluación!G119*0.2 -> 0 | C93: =B93/B90 ->  | E93: =IF(E91="","",$C$93*E91) ->  | F93: =IF(F91="","",$C$93*F91) ->  | L93: =IF(L91="","",$C$93*L91) ->  | AS93: =IF(AS91="","",$C$93*AS91) ->  | BC93: =IF(BC91="","",$C$93*BC91) ->  | BD93: =IF(BD91="","",$C$93*BD91) ->  | BE93: =IF(BE91="","",$C$93*BE91) ->  | BF93: =IF(BF91="","",$C$93*BF91) ->  | BG93: =IF(BG91="","",$C$93*BG91) ->  | BM93: =IF(BM91="","",$C$93*BM91) ->  | BW93: =IF(BW91="","",$C$93*BW91) ->  | BX93: =IF(BX91="","",$C$93*BX91) ->  | BY93: =IF(BY91="","",$C$93*BY91) ->  | BZ93: =IF(BZ91="","",$C$93*BZ91) -> 
A94: Escrituración | B94: =Evaluación!G127 -> 0 | C94: =+B94/B90-(C93+C92) ->  | E94: =IF(E98="","",$C$94*E98) ->  | H94: =IF(H98="","",$C$94*H98) ->  | AM94: =IF(AM98="","",$C$94*AM98) ->  | BC94: =IF(BC98="","",$C$94*BC98) ->  | BD94: =IF(BD98="","",$C$94*BD98) ->  | BE94: =IF(BE98="","",$C$94*BE98) ->  | BF94: =IF(BF98="","",$C$94*BF98) ->  | BG94: =IF(BG98="","",$C$94*BG98) ->  | BM94: =IF(BM98="","",$C$94*BM98) ->  | BW94: =IF(BW98="","",$C$94*BW98) ->  | BX94: =IF(BX98="","",$C$94*BX98) ->  | BY94: =IF(BY98="","",$C$94*BY98) ->  | BZ94: =IF(BZ98="","",$C$94*BZ98) -> 
A96: IVA Venta | B96: =(Evaluación!G127-Evaluación!G133) -> 0 | C96: =+B96/B90 ->  | E96: =IF(E98="","",$C$96*E98) ->  | F96: =IF(F98="","",$C$96*F98) ->  | G96: =IF(G98="","",$C$96*G98) ->  | Q96: =IF(Q98="","",$C$96*Q98) ->  | Z96: =IF(Z98="","",$C$96*Z98) ->  | BC96: =IF(BC98="","",$C$96*BC98) ->  | BD96: =IF(BD98="","",$C$96*BD98) ->  | BE96: =IF(BE98="","",$C$96*BE98) ->  | BF96: =IF(BF98="","",$C$96*BF98) ->  | BG96: =IF(BG98="","",$C$96*BG98) ->  | BM96: =IF(BM98="","",$C$96*BM98) ->  | BW96: =IF(BW98="","",$C$96*BW98) ->  | BX96: =IF(BX98="","",$C$96*BX98) ->  | BY96: =IF(BY98="","",$C$96*BY98) ->  | BZ96: =IF(BZ98="","",$C$96*BZ98) -> 
A97: IVA Pagado Escrituración | B97: =Evaluación!L130 -> 0 | E97: =IF(SUM($E96:E96)>Evaluación!$L$128,SUM($E96:E96)-Evaluación!$L$128-SUM($D$97:D97),0) ->  | F97: =IF(SUM($E96:F96)>Evaluación!$L$128,SUM($E96:F96)-Evaluación!$L$128-SUM($D$97:E97),0) ->  | G97: =IF(SUM($E96:G96)>Evaluación!$L$128,SUM($E96:G96)-Evaluación!$L$128-SUM($D$97:F97),0) ->  | H97: =IF(SUM($E96:H96)>Evaluación!$L$128,SUM($E96:H96)-Evaluación!$L$128-SUM($D$97:G97),0) ->  | I97: =IF(SUM($E96:I96)>Evaluación!$L$128,SUM($E96:I96)-Evaluación!$L$128-SUM($D$97:H97),0) ->  | J97: =IF(SUM($E96:J96)>Evaluación!$L$128,SUM($E96:J96)-Evaluación!$L$128-SUM($D$97:I97),0) ->  | K97: =IF(SUM($E96:K96)>Evaluación!$L$128,SUM($E96:K96)-Evaluación!$L$128-SUM($D$97:J97),0) ->  | L97: =IF(SUM($E96:L96)>Evaluación!$L$128,SUM($E96:L96)-Evaluación!$L$128-SUM($D$97:K97),0) ->  | M97: =IF(SUM($E96:M96)>Evaluación!$L$128,SUM($E96:M96)-Evaluación!$L$128-SUM($D$97:L97),0) ->  | N97: =IF(SUM($E96:N96)>Evaluación!$L$128,SUM($E96:N96)-Evaluación!$L$128-SUM($D$97:M97),0) ->  | O97: =IF(SUM($E96:O96)>Evaluación!$L$128,SUM($E96:O96)-Evaluación!$L$128-SUM($D$97:N97),0) ->  | P97: =IF(SUM($E96:P96)>Evaluación!$L$128,SUM($E96:P96)-Evaluación!$L$128-SUM($D$97:O97),0) ->  | Q97: =IF(SUM($E96:Q96)>Evaluación!$L$128,SUM($E96:Q96)-Evaluación!$L$128-SUM($D$97:P97),0) ->  | R97: =IF(SUM($E96:R96)>Evaluación!$L$128,SUM($E96:R96)-Evaluación!$L$128-SUM($D$97:Q97),0) ->  | S97: =IF(SUM($E96:S96)>Evaluación!$L$128,SUM($E96:S96)-Evaluación!$L$128-SUM($D$97:R97),0) ->  | T97: =IF(SUM($E96:T96)>Evaluación!$L$128,SUM($E96:T96)-Evaluación!$L$128-SUM($D$97:S97),0) ->  | U97: =IF(SUM($E96:U96)>Evaluación!$L$128,SUM($E96:U96)-Evaluación!$L$128-SUM($D$97:T97),0) ->  | V97: =IF(SUM($E96:V96)>Evaluación!$L$128,SUM($E96:V96)-Evaluación!$L$128-SUM($D$97:U97),0) ->  | W97: =IF(SUM($E96:W96)>Evaluación!$L$128,SUM($E96:W96)-Evaluación!$L$128-SUM($D$97:V97),0) ->  | X97: =IF(SUM($E96:X96)>Evaluación!$L$128,SUM($E96:X96)-Evaluación!$L$128-SUM($D$97:W97),0) ->  | Y97: =IF(SUM($E96:Y96)>Evaluación!$L$128,SUM($E96:Y96)-Evaluación!$L$128-SUM($D$97:X97),0) ->  | Z97: =IF(SUM($E96:Z96)>Evaluación!$L$128,SUM($E96:Z96)-Evaluación!$L$128-SUM($D$97:Y97),0) ->  | AA97: =IF(SUM($E96:AA96)>Evaluación!$L$128,SUM($E96:AA96)-Evaluación!$L$128-SUM($D$97:Z97),0) ->  | AB97: =IF(SUM($E96:AB96)>Evaluación!$L$128,SUM($E96:AB96)-Evaluación!$L$128-SUM($D$97:AA97),0) ->  | AC97: =IF(SUM($E96:AC96)>Evaluación!$L$128,SUM($E96:AC96)-Evaluación!$L$128-SUM($D$97:AB97),0) ->  | AD97: =IF(SUM($E96:AD96)>Evaluación!$L$128,SUM($E96:AD96)-Evaluación!$L$128-SUM($D$97:AC97),0) ->  | AE97: =IF(SUM($E96:AE96)>Evaluación!$L$128,SUM($E96:AE96)-Evaluación!$L$128-SUM($D$97:AD97),0) ->  | AF97: =IF(SUM($E96:AF96)>Evaluación!$L$128,SUM($E96:AF96)-Evaluación!$L$128-SUM($D$97:AE97),0) ->  | AG97: =IF(SUM($E96:AG96)>Evaluación!$L$128,SUM($E96:AG96)-Evaluación!$L$128-SUM($D$97:AF97),0) ->  | AH97: =IF(SUM($E96:AH96)>Evaluación!$L$128,SUM($E96:AH96)-Evaluación!$L$128-SUM($D$97:AG97),0) ->  | AI97: =IF(SUM($E96:AI96)>Evaluación!$L$128,SUM($E96:AI96)-Evaluación!$L$128-SUM($D$97:AH97),0) ->  | AJ97: =IF(SUM($E96:AJ96)>Evaluación!$L$128,SUM($E96:AJ96)-Evaluación!$L$128-SUM($D$97:AI97),0) ->  | AK97: =IF(SUM($E96:AK96)>Evaluación!$L$128,SUM($E96:AK96)-Evaluación!$L$128-SUM($D$97:AJ97),0) ->  | AL97: =IF(SUM($E96:AL96)>Evaluación!$L$128,SUM($E96:AL96)-Evaluación!$L$128-SUM($D$97:AK97),0) ->  | AM97: =IF(SUM($E96:AM96)>Evaluación!$L$128,SUM($E96:AM96)-Evaluación!$L$128-SUM($D$97:AL97),0) ->  | AN97: =IF(SUM($E96:AN96)>Evaluación!$L$128,SUM($E96:AN96)-Evaluación!$L$128-SUM($D$97:AM97),0) ->  | AO97: =IF(SUM($E96:AO96)>Evaluación!$L$128,SUM($E96:AO96)-Evaluación!$L$128-SUM($D$97:AN97),0) ->  | AP97: =IF(SUM($E96:AP96)>Evaluación!$L$128,SUM($E96:AP96)-Evaluación!$L$128-SUM($D$97:AO97),0) ->  | AQ97: =IF(SUM($E96:AQ96)>Evaluación!$L$128,SUM($E96:AQ96)-Evaluación!$L$128-SUM($D$97:AP97),0) ->  | AR97: =IF(SUM($E96:AR96)>Evaluación!$L$128,SUM($E96:AR96)-Evaluación!$L$128-SUM($D$97:AQ97),0) ->  | AS97: =IF(SUM($E96:AS96)>Evaluación!$L$128,SUM($E96:AS96)-Evaluación!$L$128-SUM($D$97:AR97),0) ->  | AT97: =IF(SUM($E96:AT96)>Evaluación!$L$128,SUM($E96:AT96)-Evaluación!$L$128-SUM($D$97:AS97),0) ->  | AU97: =IF(SUM($E96:AU96)>Evaluación!$L$128,SUM($E96:AU96)-Evaluación!$L$128-SUM($D$97:AT97),0) ->  | AV97: =IF(SUM($E96:AV96)>Evaluación!$L$128,SUM($E96:AV96)-Evaluación!$L$128-SUM($D$97:AU97),0) ->  | AW97: =IF(SUM($E96:AW96)>Evaluación!$L$128,SUM($E96:AW96)-Evaluación!$L$128-SUM($D$97:AV97),0) ->  | AX97: =IF(SUM($E96:AX96)>Evaluación!$L$128,SUM($E96:AX96)-Evaluación!$L$128-SUM($D$97:AW97),0) ->  | AY97: =IF(SUM($E96:AY96)>Evaluación!$L$128,SUM($E96:AY96)-Evaluación!$L$128-SUM($D$97:AX97),0) ->  | AZ97: =IF(SUM($E96:AZ96)>Evaluación!$L$128,SUM($E96:AZ96)-Evaluación!$L$128-SUM($D$97:AY97),0) ->  | BA97: =IF(SUM($E96:BA96)>Evaluación!$L$128,SUM($E96:BA96)-Evaluación!$L$128-SUM($D$97:AZ97),0) ->  | BB97: =IF(SUM($E96:BB96)>Evaluación!$L$128,SUM($E96:BB96)-Evaluación!$L$128-SUM($D$97:BA97),0) ->  | BC97: =IF(SUM($E96:BC96)>Evaluación!$L$128,SUM($E96:BC96)-Evaluación!$L$128-SUM($D$97:BB97),0) ->  | BD97: =IF(SUM($E96:BD96)>Evaluación!$L$128,SUM($E96:BD96)-Evaluación!$L$128-SUM($D$97:BC97),0) ->  | BE97: =IF(SUM($E96:BE96)>Evaluación!$L$128,SUM($E96:BE96)-Evaluación!$L$128-SUM($D$97:BD97),0) ->  | BF97: =IF(SUM($E96:BF96)>Evaluación!$L$128,SUM($E96:BF96)-Evaluación!$L$128-SUM($D$97:BE97),0) ->  | BG97: =IF(SUM($E96:BG96)>Evaluación!$L$128,SUM($E96:BG96)-Evaluación!$L$128-SUM($D$97:BF97),0) ->  | BH97: =IF(SUM($E96:BH96)>Evaluación!$L$128,SUM($E96:BH96)-Evaluación!$L$128-SUM($D$97:BG97),0) ->  | BI97: =IF(SUM($E96:BI96)>Evaluación!$L$128,SUM($E96:BI96)-Evaluación!$L$128-SUM($D$97:BH97),0) ->  | BJ97: =IF(SUM($E96:BJ96)>Evaluación!$L$128,SUM($E96:BJ96)-Evaluación!$L$128-SUM($D$97:BI97),0) ->  | BK97: =IF(SUM($E96:BK96)>Evaluación!$L$128,SUM($E96:BK96)-Evaluación!$L$128-SUM($D$97:BJ97),0) ->  | BL97: =IF(SUM($E96:BL96)>Evaluación!$L$128,SUM($E96:BL96)-Evaluación!$L$128-SUM($D$97:BK97),0) ->  | BM97: =IF(SUM($E96:BM96)>Evaluación!$L$128,SUM($E96:BM96)-Evaluación!$L$128-SUM($D$97:BL97),0) ->  | BN97: =IF(SUM($E96:BN96)>Evaluación!$L$128,SUM($E96:BN96)-Evaluación!$L$128-SUM($D$97:BM97),0) ->  | BO97: =IF(SUM($E96:BO96)>Evaluación!$L$128,SUM($E96:BO96)-Evaluación!$L$128-SUM($D$97:BN97),0) ->  | BP97: =IF(SUM($E96:BP96)>Evaluación!$L$128,SUM($E96:BP96)-Evaluación!$L$128-SUM($D$97:BO97),0) ->  | BQ97: =IF(SUM($E96:BQ96)>Evaluación!$L$128,SUM($E96:BQ96)-Evaluación!$L$128-SUM($D$97:BP97),0) ->  | BR97: =IF(SUM($E96:BR96)>Evaluación!$L$128,SUM($E96:BR96)-Evaluación!$L$128-SUM($D$97:BQ97),0) ->  | BS97: =IF(SUM($E96:BS96)>Evaluación!$L$128,SUM($E96:BS96)-Evaluación!$L$128-SUM($D$97:BR97),0) ->  | BT97: =IF(SUM($E96:BT96)>Evaluación!$L$128,SUM($E96:BT96)-Evaluación!$L$128-SUM($D$97:BS97),0) ->  | BU97: =IF(SUM($E96:BU96)>Evaluación!$L$128,SUM($E96:BU96)-Evaluación!$L$128-SUM($D$97:BT97),0) ->  | BV97: =IF(SUM($E96:BV96)>Evaluación!$L$128,SUM($E96:BV96)-Evaluación!$L$128-SUM($D$97:BU97),0) ->  | BW97: =IF(SUM($E96:BW96)>Evaluación!$L$128,SUM($E96:BW96)-Evaluación!$L$128-SUM($D$97:BV97),0) ->  | BX97: =IF(SUM($E96:BX96)>Evaluación!$L$128,SUM($E96:BX96)-Evaluación!$L$128-SUM($D$97:BW97),0) ->  | BY97: =IF(SUM($E96:BY96)>Evaluación!$L$128,SUM($E96:BY96)-Evaluación!$L$128-SUM($D$97:BX97),0) ->  | BZ97: =IF(SUM($E96:BZ96)>Evaluación!$L$128,SUM($E96:BZ96)-Evaluación!$L$128-SUM($D$97:BY97),0) -> 
A98: Cantidad Escriturada | C98: =SUM(E98:BZ98) ->  | E98: =IF(AND(E2>=Datos!#REF!+3,E2<=Datos!#REF!+5),(SUMIFS($E$91:$BB$91,$E$2:$BB$2,"<"&Datos!#REF!))/3,IF(E2<Datos!#REF!,0,IF(E2>=Datos!#REF!+3,IF(B98>0,#REF!,0),0))) ->  | F98: =IF(AND(F2>=Datos!#REF!+3,F2<=Datos!#REF!+5),(SUMIFS($E$91:$BB$91,$E$2:$BB$2,"<"&Datos!#REF!))/3,IF(F2<Datos!#REF!,0,IF(F2>=Datos!#REF!+3,IF(C98>0,#REF!,0),0))) ->  | G98: =IF(AND(G2>=Datos!#REF!+3,G2<=Datos!#REF!+5),(SUMIFS($E$91:$BB$91,$E$2:$BB$2,"<"&Datos!#REF!))/3,IF(G2<Datos!#REF!,0,IF(G2>=Datos!#REF!+3,IF(D98>0,A91,0),0))) ->  | H98: =IF(AND(H2>=Datos!#REF!+3,H2<=Datos!#REF!+5),(SUMIFS($E$91:$BB$91,$E$2:$BB$2,"<"&Datos!#REF!))/3,IF(H2<Datos!#REF!,0,IF(H2>=Datos!#REF!+3,IF(E98>0,B91,0),0))) ->  | I98: =IF(AND(I2>=Datos!#REF!+3,I2<=Datos!#REF!+5),(SUMIFS($E$91:$BB$91,$E$2:$BB$2,"<"&Datos!#REF!))/3,IF(I2<Datos!#REF!,0,IF(I2>=Datos!#REF!+3,IF(F98>0,C91,0),0))) ->  | J98: =IF(AND(J2>=Datos!#REF!+3,J2<=Datos!#REF!+5),(SUMIFS($E$91:$BB$91,$E$2:$BB$2,"<"&Datos!#REF!))/3,IF(J2<Datos!#REF!,0,IF(J2>=Datos!#REF!+3,IF(G98>0,D91,0),0))) ->  | K98: =IF(AND(K2>=Datos!#REF!+3,K2<=Datos!#REF!+5),(SUMIFS($E$91:$BB$91,$E$2:$BB$2,"<"&Datos!#REF!))/3,IF(K2<Datos!#REF!,0,IF(K2>=Datos!#REF!+3,IF(H98>0,E91,0),0))) ->  | L98: =IF(AND(L2>=Datos!#REF!+3,L2<=Datos!#REF!+5),(SUMIFS($E$91:$BB$91,$E$2:$BB$2,"<"&Datos!#REF!))/3,IF(L2<Datos!#REF!,0,IF(L2>=Datos!#REF!+3,IF(I98>0,F91,0),0))) ->  | M98: =IF(AND(M2>=Datos!#REF!+3,M2<=Datos!#REF!+5),(SUMIFS($E$91:$BB$91,$E$2:$BB$2,"<"&Datos!#REF!))/3,IF(M2<Datos!#REF!,0,IF(M2>=Datos!#REF!+3,IF(J98>0,G91,0),0))) ->  | N98: =IF(AND(N2>=Datos!#REF!+3,N2<=Datos!#REF!+5),(SUMIFS($E$91:$BB$91,$E$2:$BB$2,"<"&Datos!#REF!))/3,IF(N2<Datos!#REF!,0,IF(N2>=Datos!#REF!+3,IF(K98>0,H91,0),0))) ->  | O98: =IF(AND(O2>=Datos!#REF!+3,O2<=Datos!#REF!+5),(SUMIFS($E$91:$BB$91,$E$2:$BB$2,"<"&Datos!#REF!))/3,IF(O2<Datos!#REF!,0,IF(O2>=Datos!#REF!+3,IF(L98>0,I91,0),0))) ->  | P98: =IF(AND(P2>=Datos!#REF!+3,P2<=Datos!#REF!+5),(SUMIFS($E$91:$BB$91,$E$2:$BB$2,"<"&Datos!#REF!))/3,IF(P2<Datos!#REF!,0,IF(P2>=Datos!#REF!+3,IF(M98>0,J91,0),0))) ->  | Q98: =IF(AND(Q2>=Datos!#REF!+3,Q2<=Datos!#REF!+5),(SUMIFS($E$91:$BB$91,$E$2:$BB$2,"<"&Datos!#REF!))/3,IF(Q2<Datos!#REF!,0,IF(Q2>=Datos!#REF!+3,IF(N98>0,K91,0),0))) ->  | R98: =IF(AND(R2>=Datos!#REF!+3,R2<=Datos!#REF!+5),(SUMIFS($E$91:$BB$91,$E$2:$BB$2,"<"&Datos!#REF!))/3,IF(R2<Datos!#REF!,0,IF(R2>=Datos!#REF!+3,IF(O98>0,L91,0),0))) ->  | S98: =IF(AND(S2>=Datos!#REF!+3,S2<=Datos!#REF!+5),(SUMIFS($E$91:$BB$91,$E$2:$BB$2,"<"&Datos!#REF!))/3,IF(S2<Datos!#REF!,0,IF(S2>=Datos!#REF!+3,IF(P98>0,M91,0),0))) ->  | T98: =IF(AND(T2>=Datos!#REF!+3,T2<=Datos!#REF!+5),(SUMIFS($E$91:$BB$91,$E$2:$BB$2,"<"&Datos!#REF!))/3,IF(T2<Datos!#REF!,0,IF(T2>=Datos!#REF!+3,IF(Q98>0,N91,0),0))) ->  | U98: =IF(AND(U2>=Datos!#REF!+3,U2<=Datos!#REF!+5),(SUMIFS($E$91:$BB$91,$E$2:$BB$2,"<"&Datos!#REF!))/3,IF(U2<Datos!#REF!,0,IF(U2>=Datos!#REF!+3,IF(R98>0,O91,0),0))) ->  | V98: =IF(AND(V2>=Datos!#REF!+3,V2<=Datos!#REF!+5),(SUMIFS($E$91:$BB$91,$E$2:$BB$2,"<"&Datos!#REF!))/3,IF(V2<Datos!#REF!,0,IF(V2>=Datos!#REF!+3,IF(S98>0,P91,0),0))) ->  | W98: =IF(AND(W2>=Datos!#REF!+3,W2<=Datos!#REF!+5),(SUMIFS($E$91:$BB$91,$E$2:$BB$2,"<"&Datos!#REF!))/3,IF(W2<Datos!#REF!,0,IF(W2>=Datos!#REF!+3,IF(T98>0,Q91,0),0))) ->  | X98: =IF(AND(X2>=Datos!#REF!+3,X2<=Datos!#REF!+5),(SUMIFS($E$91:$BB$91,$E$2:$BB$2,"<"&Datos!#REF!))/3,IF(X2<Datos!#REF!,0,IF(X2>=Datos!#REF!+3,IF(U98>0,R91,0),0))) ->  | Y98: =IF(AND(Y2>=Datos!#REF!+3,Y2<=Datos!#REF!+5),(SUMIFS($E$91:$BB$91,$E$2:$BB$2,"<"&Datos!#REF!))/3,IF(Y2<Datos!#REF!,0,IF(Y2>=Datos!#REF!+3,IF(V98>0,S91,0),0))) ->  | Z98: =IF(AND(Z2>=Datos!#REF!+3,Z2<=Datos!#REF!+5),(SUMIFS($E$91:$BB$91,$E$2:$BB$2,"<"&Datos!#REF!))/3,IF(Z2<Datos!#REF!,0,IF(Z2>=Datos!#REF!+3,IF(W98>0,T91,0),0))) ->  | AA98: =IF(AND(AA2>=Datos!#REF!+3,AA2<=Datos!#REF!+5),(SUMIFS($E$91:$BB$91,$E$2:$BB$2,"<"&Datos!#REF!))/3,IF(AA2<Datos!#REF!,0,IF(AA2>=Datos!#REF!+3,IF(X98>0,U91,0),0))) ->  | AB98: =IF(AND(AB2>=Datos!#REF!+3,AB2<=Datos!#REF!+5),(SUMIFS($E$91:$BB$91,$E$2:$BB$2,"<"&Datos!#REF!))/3,IF(AB2<Datos!#REF!,0,IF(AB2>=Datos!#REF!+3,IF(Y98>0,V91,0),0))) ->  | AC98: =IF(AND(AC2>=Datos!#REF!+3,AC2<=Datos!#REF!+5),(SUMIFS($E$91:$BB$91,$E$2:$BB$2,"<"&Datos!#REF!))/3,IF(AC2<Datos!#REF!,0,IF(AC2>=Datos!#REF!+3,IF(Z98>0,W91,0),0))) ->  | AD98: =IF(AND(AD2>=Datos!#REF!+3,AD2<=Datos!#REF!+5),(SUMIFS($E$91:$BB$91,$E$2:$BB$2,"<"&Datos!#REF!))/3,IF(AD2<Datos!#REF!,0,IF(AD2>=Datos!#REF!+3,IF(AA98>0,X91,0),0))) ->  | AE98: =IF(AND(AE2>=Datos!#REF!+3,AE2<=Datos!#REF!+5),(SUMIFS($E$91:$BB$91,$E$2:$BB$2,"<"&Datos!#REF!))/3,IF(AE2<Datos!#REF!,0,IF(AE2>=Datos!#REF!+3,IF(AB98>0,Y91,0),0))) ->  | AF98: =IF(AND(AF2>=Datos!#REF!+3,AF2<=Datos!#REF!+5),(SUMIFS($E$91:$BB$91,$E$2:$BB$2,"<"&Datos!#REF!))/3,IF(AF2<Datos!#REF!,0,IF(AF2>=Datos!#REF!+3,IF(AC98>0,Z91,0),0))) ->  | AG98: =IF(AND(AG2>=Datos!#REF!+3,AG2<=Datos!#REF!+5),(SUMIFS($E$91:$BB$91,$E$2:$BB$2,"<"&Datos!#REF!))/3,IF(AG2<Datos!#REF!,0,IF(AG2>=Datos!#REF!+3,IF(AD98>0,AA91,0),0))) ->  | AH98: =IF(AND(AH2>=Datos!#REF!+3,AH2<=Datos!#REF!+5),(SUMIFS($E$91:$BB$91,$E$2:$BB$2,"<"&Datos!#REF!))/3,IF(AH2<Datos!#REF!,0,IF(AH2>=Datos!#REF!+3,IF(AE98>0,AB91,0),0))) ->  | AI98: =IF(AND(AI2>=Datos!#REF!+3,AI2<=Datos!#REF!+5),(SUMIFS($E$91:$BB$91,$E$2:$BB$2,"<"&Datos!#REF!))/3,IF(AI2<Datos!#REF!,0,IF(AI2>=Datos!#REF!+3,IF(AF98>0,AC91,0),0))) ->  | AJ98: =IF(AND(AJ2>=Datos!#REF!+3,AJ2<=Datos!#REF!+5),(SUMIFS($E$91:$BB$91,$E$2:$BB$2,"<"&Datos!#REF!))/3,IF(AJ2<Datos!#REF!,0,IF(AJ2>=Datos!#REF!+3,IF(AG98>0,AD91,0),0))) ->  | AK98: =IF(AND(AK2>=Datos!#REF!+3,AK2<=Datos!#REF!+5),(SUMIFS($E$91:$BB$91,$E$2:$BB$2,"<"&Datos!#REF!))/3,IF(AK2<Datos!#REF!,0,IF(AK2>=Datos!#REF!+3,IF(AH98>0,AE91,0),0))) ->  | AL98: =IF(AND(AL2>=Datos!#REF!+3,AL2<=Datos!#REF!+5),(SUMIFS($E$91:$BB$91,$E$2:$BB$2,"<"&Datos!#REF!))/3,IF(AL2<Datos!#REF!,0,IF(AL2>=Datos!#REF!+3,IF(AI98>0,AF91,0),0))) ->  | AM98: =IF(AND(AM2>=Datos!#REF!+3,AM2<=Datos!#REF!+5),(SUMIFS($E$91:$BB$91,$E$2:$BB$2,"<"&Datos!#REF!))/3,IF(AM2<Datos!#REF!,0,IF(AM2>=Datos!#REF!+3,IF(AJ98>0,AG91,0),0))) ->  | AN98: =IF(AND(AN2>=Datos!#REF!+3,AN2<=Datos!#REF!+5),(SUMIFS($E$91:$BB$91,$E$2:$BB$2,"<"&Datos!#REF!))/3,IF(AN2<Datos!#REF!,0,IF(AN2>=Datos!#REF!+3,IF(AK98>0,AH91,0),0))) ->  | AO98: =IF(AND(AO2>=Datos!#REF!+3,AO2<=Datos!#REF!+5),(SUMIFS($E$91:$BB$91,$E$2:$BB$2,"<"&Datos!#REF!))/3,IF(AO2<Datos!#REF!,0,IF(AO2>=Datos!#REF!+3,IF(AL98>0,AI91,0),0))) ->  | AP98: =IF(AND(AP2>=Datos!#REF!+3,AP2<=Datos!#REF!+5),(SUMIFS($E$91:$BB$91,$E$2:$BB$2,"<"&Datos!#REF!))/3,IF(AP2<Datos!#REF!,0,IF(AP2>=Datos!#REF!+3,IF(AM98>0,AJ91,0),0))) ->  | AQ98: =IF(AND(AQ2>=Datos!#REF!+3,AQ2<=Datos!#REF!+5),(SUMIFS($E$91:$BB$91,$E$2:$BB$2,"<"&Datos!#REF!))/3,IF(AQ2<Datos!#REF!,0,IF(AQ2>=Datos!#REF!+3,IF(AN98>0,AK91,0),0))) ->  | AR98: =IF(AND(AR2>=Datos!#REF!+3,AR2<=Datos!#REF!+5),(SUMIFS($E$91:$BB$91,$E$2:$BB$2,"<"&Datos!#REF!))/3,IF(AR2<Datos!#REF!,0,IF(AR2>=Datos!#REF!+3,IF(AO98>0,AL91,0),0))) ->  | AS98: =IF(AND(AS2>=Datos!#REF!+3,AS2<=Datos!#REF!+5),(SUMIFS($E$91:$BB$91,$E$2:$BB$2,"<"&Datos!#REF!))/3,IF(AS2<Datos!#REF!,0,IF(AS2>=Datos!#REF!+3,IF(AP98>0,AM91,0),0))) ->  | AT98: =IF(AND(AT2>=Datos!#REF!+3,AT2<=Datos!#REF!+5),(SUMIFS($E$91:$BB$91,$E$2:$BB$2,"<"&Datos!#REF!))/3,IF(AT2<Datos!#REF!,0,IF(AT2>=Datos!#REF!+3,IF(AQ98>0,AN91,0),0))) ->  | AU98: =IF(AND(AU2>=Datos!#REF!+3,AU2<=Datos!#REF!+5),(SUMIFS($E$91:$BB$91,$E$2:$BB$2,"<"&Datos!#REF!))/3,IF(AU2<Datos!#REF!,0,IF(AU2>=Datos!#REF!+3,IF(AR98>0,AO91,0),0))) ->  | AV98: =IF(AND(AV2>=Datos!#REF!+3,AV2<=Datos!#REF!+5),(SUMIFS($E$91:$BB$91,$E$2:$BB$2,"<"&Datos!#REF!))/3,IF(AV2<Datos!#REF!,0,IF(AV2>=Datos!#REF!+3,IF(AS98>0,AP91,0),0))) ->  | AW98: =IF(AND(AW2>=Datos!#REF!+3,AW2<=Datos!#REF!+5),(SUMIFS($E$91:$BB$91,$E$2:$BB$2,"<"&Datos!#REF!))/3,IF(AW2<Datos!#REF!,0,IF(AW2>=Datos!#REF!+3,IF(AT98>0,AQ91,0),0))) ->  | AX98: =IF(AND(AX2>=Datos!#REF!+3,AX2<=Datos!#REF!+5),(SUMIFS($E$91:$BB$91,$E$2:$BB$2,"<"&Datos!#REF!))/3,IF(AX2<Datos!#REF!,0,IF(AX2>=Datos!#REF!+3,IF(AU98>0,AR91,0),0))) ->  | AY98: =IF(AND(AY2>=Datos!#REF!+3,AY2<=Datos!#REF!+5),(SUMIFS($E$91:$BB$91,$E$2:$BB$2,"<"&Datos!#REF!))/3,IF(AY2<Datos!#REF!,0,IF(AY2>=Datos!#REF!+3,IF(AV98>0,AS91,0),0))) ->  | AZ98: =IF(AND(AZ2>=Datos!#REF!+3,AZ2<=Datos!#REF!+5),(SUMIFS($E$91:$BB$91,$E$2:$BB$2,"<"&Datos!#REF!))/3,IF(AZ2<Datos!#REF!,0,IF(AZ2>=Datos!#REF!+3,IF(AW98>0,AT91,0),0))) ->  | BA98: =IF(AND(BA2>=Datos!#REF!+3,BA2<=Datos!#REF!+5),(SUMIFS($E$91:$BB$91,$E$2:$BB$2,"<"&Datos!#REF!))/3,IF(BA2<Datos!#REF!,0,IF(BA2>=Datos!#REF!+3,IF(AX98>0,AU91,0),0))) ->  | BB98: =IF(AND(BB2>=Datos!#REF!+3,BB2<=Datos!#REF!+5),(SUMIFS($E$91:$BB$91,$E$2:$BB$2,"<"&Datos!#REF!))/3,IF(BB2<Datos!#REF!,0,IF(BB2>=Datos!#REF!+3,IF(AY98>0,AV91,0),0))) ->  | BC98: =IF(AND(BC2>=Datos!#REF!+3,BC2<=Datos!#REF!+5),(SUMIFS($E$91:$BB$91,$E$2:$BB$2,"<"&Datos!#REF!))/3,IF(BC2<Datos!#REF!,0,IF(BC2>=Datos!#REF!+3,IF(AZ98>0,AW91,0),0))) ->  | BD98: =IF(AND(BD2>=Datos!#REF!+3,BD2<=Datos!#REF!+5),(SUMIFS($E$91:$BB$91,$E$2:$BB$2,"<"&Datos!#REF!))/3,IF(BD2<Datos!#REF!,0,IF(BD2>=Datos!#REF!+3,IF(BA98>0,AX91,0),0))) ->  | BE98: =IF(AND(BE2>=Datos!#REF!+3,BE2<=Datos!#REF!+5),(SUMIFS($E$91:$BB$91,$E$2:$BB$2,"<"&Datos!#REF!))/3,IF(BE2<Datos!#REF!,0,IF(BE2>=Datos!#REF!+3,IF(BB98>0,AY91,0),0))) ->  | BF98: =IF(AND(BF2>=Datos!#REF!+3,BF2<=Datos!#REF!+5),(SUMIFS($E$91:$BB$91,$E$2:$BB$2,"<"&Datos!#REF!))/3,IF(BF2<Datos!#REF!,0,IF(BF2>=Datos!#REF!+3,IF(BC98>0,AZ91,0),0))) ->  | BG98: =IF(AND(BG2>=Datos!#REF!+3,BG2<=Datos!#REF!+5),(SUMIFS($E$91:$BB$91,$E$2:$BB$2,"<"&Datos!#REF!))/3,IF(BG2<Datos!#REF!,0,IF(BG2>=Datos!#REF!+3,IF(BD98>0,BA91,0),0))) ->  | BH98: =IF(AND(BH2>=Datos!#REF!+3,BH2<=Datos!#REF!+5),(SUMIFS($E$91:$BB$91,$E$2:$BB$2,"<"&Datos!#REF!))/3,IF(BH2<Datos!#REF!,0,IF(BH2>=Datos!#REF!+3,IF(BE98>0,BB91,0),0))) ->  | BI98: =IF(AND(BI2>=Datos!#REF!+3,BI2<=Datos!#REF!+5),(SUMIFS($E$91:$BB$91,$E$2:$BB$2,"<"&Datos!#REF!))/3,IF(BI2<Datos!#REF!,0,IF(BI2>=Datos!#REF!+3,IF(BF98>0,BC91,0),0))) ->  | BJ98: =IF(AND(BJ2>=Datos!#REF!+3,BJ2<=Datos!#REF!+5),(SUMIFS($E$91:$BB$91,$E$2:$BB$2,"<"&Datos!#REF!))/3,IF(BJ2<Datos!#REF!,0,IF(BJ2>=Datos!#REF!+3,IF(BG98>0,BD91,0),0))) ->  | BK98: =IF(AND(BK2>=Datos!#REF!+3,BK2<=Datos!#REF!+5),(SUMIFS($E$91:$BB$91,$E$2:$BB$2,"<"&Datos!#REF!))/3,IF(BK2<Datos!#REF!,0,IF(BK2>=Datos!#REF!+3,IF(BH98>0,BE91,0),0))) ->  | BL98: =IF(AND(BL2>=Datos!#REF!+3,BL2<=Datos!#REF!+5),(SUMIFS($E$91:$BB$91,$E$2:$BB$2,"<"&Datos!#REF!))/3,IF(BL2<Datos!#REF!,0,IF(BL2>=Datos!#REF!+3,IF(BI98>0,BF91,0),0))) ->  | BM98: =IF(AND(BM2>=Datos!#REF!+3,BM2<=Datos!#REF!+5),(SUMIFS($E$91:$BB$91,$E$2:$BB$2,"<"&Datos!#REF!))/3,IF(BM2<Datos!#REF!,0,IF(BM2>=Datos!#REF!+3,IF(BJ98>0,BG91,0),0))) ->  | BN98: =IF(AND(BN2>=Datos!#REF!+3,BN2<=Datos!#REF!+5),(SUMIFS($E$91:$BB$91,$E$2:$BB$2,"<"&Datos!#REF!))/3,IF(BN2<Datos!#REF!,0,IF(BN2>=Datos!#REF!+3,IF(BK98>0,BH91,0),0))) ->  | BO98: =IF(AND(BO2>=Datos!#REF!+3,BO2<=Datos!#REF!+5),(SUMIFS($E$91:$BB$91,$E$2:$BB$2,"<"&Datos!#REF!))/3,IF(BO2<Datos!#REF!,0,IF(BO2>=Datos!#REF!+3,IF(BL98>0,BI91,0),0))) ->  | BP98: =IF(AND(BP2>=Datos!#REF!+3,BP2<=Datos!#REF!+5),(SUMIFS($E$91:$BB$91,$E$2:$BB$2,"<"&Datos!#REF!))/3,IF(BP2<Datos!#REF!,0,IF(BP2>=Datos!#REF!+3,IF(BM98>0,BJ91,0),0))) ->  | BQ98: =IF(AND(BQ2>=Datos!#REF!+3,BQ2<=Datos!#REF!+5),(SUMIFS($E$91:$BB$91,$E$2:$BB$2,"<"&Datos!#REF!))/3,IF(BQ2<Datos!#REF!,0,IF(BQ2>=Datos!#REF!+3,IF(BN98>0,BK91,0),0))) ->  | BR98: =IF(AND(BR2>=Datos!#REF!+3,BR2<=Datos!#REF!+5),(SUMIFS($E$91:$BB$91,$E$2:$BB$2,"<"&Datos!#REF!))/3,IF(BR2<Datos!#REF!,0,IF(BR2>=Datos!#REF!+3,IF(BO98>0,BL91,0),0))) ->  | BS98: =IF(AND(BS2>=Datos!#REF!+3,BS2<=Datos!#REF!+5),(SUMIFS($E$91:$BB$91,$E$2:$BB$2,"<"&Datos!#REF!))/3,IF(BS2<Datos!#REF!,0,IF(BS2>=Datos!#REF!+3,IF(BP98>0,BM91,0),0))) ->  | BT98: =IF(AND(BT2>=Datos!#REF!+3,BT2<=Datos!#REF!+5),(SUMIFS($E$91:$BB$91,$E$2:$BB$2,"<"&Datos!#REF!))/3,IF(BT2<Datos!#REF!,0,IF(BT2>=Datos!#REF!+3,IF(BQ98>0,BN91,0),0))) ->  | BU98: =IF(AND(BU2>=Datos!#REF!+3,BU2<=Datos!#REF!+5),(SUMIFS($E$91:$BB$91,$E$2:$BB$2,"<"&Datos!#REF!))/3,IF(BU2<Datos!#REF!,0,IF(BU2>=Datos!#REF!+3,IF(BR98>0,BO91,0),0))) ->  | BV98: =IF(AND(BV2>=Datos!#REF!+3,BV2<=Datos!#REF!+5),(SUMIFS($E$91:$BB$91,$E$2:$BB$2,"<"&Datos!#REF!))/3,IF(BV2<Datos!#REF!,0,IF(BV2>=Datos!#REF!+3,IF(BS98>0,BP91,0),0))) ->  | BW98: =IF(AND(BW2>=Datos!#REF!+3,BW2<=Datos!#REF!+5),(SUMIFS($E$91:$BB$91,$E$2:$BB$2,"<"&Datos!#REF!))/3,IF(BW2<Datos!#REF!,0,IF(BW2>=Datos!#REF!+3,IF(BT98>0,BQ91,0),0))) ->  | BX98: =IF(AND(BX2>=Datos!#REF!+3,BX2<=Datos!#REF!+5),(SUMIFS($E$91:$BB$91,$E$2:$BB$2,"<"&Datos!#REF!))/3,IF(BX2<Datos!#REF!,0,IF(BX2>=Datos!#REF!+3,IF(BU98>0,BR91,0),0))) ->  | BY98: =IF(AND(BY2>=Datos!#REF!+3,BY2<=Datos!#REF!+5),(SUMIFS($E$91:$BB$91,$E$2:$BB$2,"<"&Datos!#REF!))/3,IF(BY2<Datos!#REF!,0,IF(BY2>=Datos!#REF!+3,IF(BV98>0,BS91,0),0))) ->  | BZ98: =IF(AND(BZ2>=Datos!#REF!+3,BZ2<=Datos!#REF!+5),(SUMIFS($E$91:$BB$91,$E$2:$BB$2,"<"&Datos!#REF!))/3,IF(BZ2<Datos!#REF!,0,IF(BZ2>=Datos!#REF!+3,IF(BW98>0,BT91,0),0))) -> 
A100: TOTAL INGRESOS | B100: =SUM(E100:BV100) ->  | C100: =IF(SUM(E100:BV100)=B100,"OK","") ->  | D100: =SUM(D92:D96) -> 0 | E100: =SUM(E92:E94)-E97 ->  | L100: =SUM(L92:L94)-L97 ->  | T100: =SUM(T92:T94)-T97 ->  | AA100: =SUM(AA92:AA94)-AA97 ->  | AG100: =SUM(AG92:AG94)-AG97 ->  | AH100: =SUM(AH92:AH94)-AH97 ->  | AI100: =SUM(AI92:AI94)-AI97 ->  | AJ100: =SUM(AJ92:AJ94)-AJ97 ->  | AN100: =SUM(AN92:AN94)-AN97 ->  | BC100: =SUM(BC92:BC94)-BC97 ->  | BD100: =SUM(BD92:BD94)-BD97 ->  | BE100: =SUM(BE92:BE94)-BE97 ->  | BF100: =SUM(BF92:BF94)-BF97 ->  | BG100: =SUM(BG92:BG94)-BG97 ->  | BM100: =SUM(BM92:BM94)-BM97 ->  | BW100: =SUM(BW92:BW94)-BW97 ->  | BX100: =SUM(BX92:BX94)-BX97 ->  | BY100: =SUM(BY92:BY94)-BY97 ->  | BZ100: =SUM(BZ92:BZ94)-BZ97 -> 
A102: TOTAL EXCEDENTES | B102: =+B100-B88 ->  | C102: =IF(SUM(D102:BV102)=B102,"OK","") ->  | D102: =+D100-D88 -> 0 | L102: =+L100-L88 ->  | AU102: =+AU100-AU88 ->  | BG102: =+BG100-BG88 ->  | BM102: =+BM100-BM88 ->  | BW102: =+BW100-BW88 ->  | BX102: =+BX100-BX88 ->  | BY102: =+BY100-BY88 ->  | BZ102: =+BZ100-BZ88 -> 
A104: EGRESOS SIN GASTO FINANCIERO | D104: =+D88-D80 -> 0 | AJ104: =+AJ88-AJ80 ->  | BP104: =+BP88-BP80 -> 
A106: FLUJO | D106: =+D100-D104 -> 0 | E106: =+E100-E104 ->  | F106: =+F100-F104 ->  | P106: =IF(+P100-P104=0,"",+P100-P104) ->  | BR106: =IF(+BR100-BR104=0,"",+BR100-BR104) -> 
A107: VAN | C107: =SUM(D107:BZ107) -> 0 | D107: =+D106 -> 0 | E107: =IFERROR(+E106/(1+$D$110)^(E2),"") ->  | AK107: =IFERROR(+AK106/(1+$D$110)^(AK2),"") ->  | BQ107: =IFERROR(+BQ106/(1+$D$110)^(BQ2),"") -> 
C108: =+ROUND(C107,0) -> 0 | D108: 0.003585245333
A109: Tir Puro
A110: TIR MENSUAL | B110: =+IRR(C106:BZ106) ->  | D110: =0.1/12+D108 -> 0.01191857867
A111: TIR ANUAL | B111: =(1+B110)^12-1 ->  | D111: =(1+D110)^12-1 -> 0.152781066
A113: Van
A114: VAN 10% | B114: 0.08 | C114: =NPV((1+B114)^(1/12)-1,E106:BZ106) -> 
A115: VAN 10% | B115: 0.1 | C115: =NPV((1+B115)^(1/12)-1,E106:BZ106) -> 
A116: VAN 15% | B116: 0.15 | C116: =NPV((1+B116)^(1/12)-1,E106:BZ106) -> 
A117: VAN 18,6% | B117: =IFERROR(B111,D111) -> 0.152781066 | C117: =NPV((1+B117)^(1/12)-1,E106:BZ106) -> 

Sheet % Avance Const.
B2: Meses | C2: 1 | D2: 2 | E2: 3 | F2: 4 | G2: 5 | H2: 6 | I2: 7 | J2: 8 | K2: 9 | L2: 10 | M2: 11 | N2: 12 | O2: 13 | P2: 14 | Q2: 15 | R2: 16 | S2: 17 | T2: 18 | U2: 19 | V2: 20 | W2: 21 | X2: 22 | Y2: 23 | Z2: 24 | AA2: 25 | AB2: 26 | AC2: 27 | AD2: 28 | AE2: 29 | AF2: 30
B3: mes 1 | C3: 100 | D3: 50 | E3: 33 | F3: 20 | G3: 15 | H3: 10 | I3: 8 | J3: 7 | K3: 5 | L3: 4 | M3: 10 | N3: 10 | O3: 10 | P3: 10 | Q3: 10 | R3: 10 | S3: 10 | T3: 10 | U3: 10 | V3: 10 | W3: 10 | X3: 10 | Y3: 10 | Z3: 10 | AA3: 10 | AB3: 10 | AC3: 10 | AD3: 10 | AE3: 10 | AF3: 10
B4: mes 2 | C4: 0 | D4: 50 | E4: 34 | F4: 30 | G4: 20 | H4: 15 | I4: 15 | J4: 9 | K4: 8 | L4: 6 | M4: 4 | N4: 4 | O4: 4 | P4: 3 | Q4: 3 | R4: 3 | S4: 3 | T4: 3 | U4: 2 | V4: 2 | W4: 2 | X4: 2 | Y4: 2 | Z4: 2 | AA4: 1 | AB4: 1 | AC4: 1 | AD4: 1 | AE4: 1 | AF4: 1
B5: mes 3 | C5: 0 | D5: 0 | E5: 33 | F5: 30 | G5: 30 | H5: 25 | I5: 17 | J5: 15 | K5: 13 | L5: 9 | M5: 7 | N5: 7 | O5: 5 | P5: 5 | Q5: 3 | R5: 3 | S5: 3 | T5: 3 | U5: 3 | V5: 2 | W5: 2 | X5: 2 | Y5: 2 | Z5: 2 | AA5: 2 | AB5: 2 | AC5: 2 | AD5: 2 | AE5: 2 | AF5: 2
B6: mes 4 | C6: 0 | D6: 0 | E6: 0 | F6: 20 | G6: 20 | H6: 25 | I6: 20 | J6: 19 | K6: 16 | L6: 13 | M6: 9 | N6: 9 | O6: 5 | P6: 5 | Q6: 6 | R6: 4 | S6: 4 | T6: 4 | U6: 3 | V6: 3 | W6: 3 | X6: 3 | Y6: 2 | Z6: 2 | AA6: 2 | AB6: 2 | AC6: 2 | AD6: 2 | AE6: 2 | AF6: 2
B7: mes 5 | C7: 0 | D7: 0 | E7: 0 | F7: 0 | G7: 15 | H7: 15 | I7: 17 | J7: 19 | K7: 16 | L7: 18 | M7: 13 | N7: 12 | O7: 7 | P7: 7 | Q7: 7 | R7: 5 | S7: 5 | T7: 5 | U7: 4 | V7: 4 | W7: 3 | X7: 3 | Y7: 3 | Z7: 3 | AA7: 3 | AB7: 3 | AC7: 2 | AD7: 3 | AE7: 3 | AF7: 3
B8: mes 6 | C8: 0 | D8: 0 | E8: 0 | F8: 0 | G8: 0 | H8: 10 | I8: 15 | J8: 15 | K8: 16 | L8: 18 | M8: 14 | N8: 14 | O8: 9 | P8: 8 | Q8: 8 | R8: 7 | S8: 6 | T8: 6 | U8: 5 | V8: 5 | W8: 4 | X8: 4 | Y8: 4 | Z8: 4 | AA8: 3 | AB8: 2 | AC8: 2 | AD8: 2 | AE8: 2 | AF8: 2
B9: mes 7 | C9: 0 | D9: 0 | E9: 0 | F9: 0 | G9: 0 | H9: 0 | I9: 8 | J9: 9 | K9: 13 | L9: 13 | M9: 14 | N9: 14 | O9: 10 | P9: 9 | Q9: 8 | R9: 8 | S9: 8 | T9: 7 | U9: 5 | V9: 6 | W9: 5 | X9: 4 | Y9: 4 | Z9: 4 | AA9: 3 | AB9: 2 | AC9: 3 | AD9: 2 | AE9: 2 | AF9: 2
B10: mes 8 | C10: 0 | D10: 0 | E10: 0 | F10: 0 | G10: 0 | H10: 0 | I10: 0 | J10: 7 | K10: 8 | L10: 9 | M10: 12 | N10: 12 | O10: 11 | P10: 9 | Q10: 8 | R10: 9 | S10: 9 | T10: 8 | U10: 7 | V10: 7 | W10: 6 | X10: 5 | Y10: 5 | Z10: 5 | AA10: 4 | AB10: 3 | AC10: 3 | AD10: 3 | AE10: 3 | AF10: 3
B11: mes 9 | C11: 0 | D11: 0 | E11: 0 | F11: 0 | G11: 0 | H11: 0 | I11: 0 | J11: 0 | K11: 5 | L11: 6 | M11: 9 | N11: 8 | O11: 11 | P11: 9 | Q11: 9 | R11: 9 | S11: 9 | T11: 9 | U11: 8 | V11: 8 | W11: 7 | X11: 6 | Y11: 5 | Z11: 5 | AA11: 4 | AB11: 3 | AC11: 3 | AD11: 3 | AE11: 3 | AF11: 3
B12: mes 10 | C12: 0 | D12: 0 | E12: 0 | F12: 0 | G12: 0 | H12: 0 | I12: 0 | J12: 0 | K12: 0 | L12: 4 | M12: 5 | N12: 5 | O12: 10 | P12: 9 | Q12: 9 | R12: 8 | S12: 9 | T12: 9 | U12: 9 | V12: 9 | W12: 8 | X12: 7 | Y12: 6 | Z12: 5 | AA12: 5 | AB12: 4 | AC12: 4 | AD12: 5 | AE12: 5 | AF12: 5
B13: mes 11 | C13: 0 | D13: 0 | E13: 0 | F13: 0 | G13: 0 | H13: 0 | I13: 0 | J13: 0 | K13: 0 | L13: 0 | M13: 3 | N13: 3 | O13: 9 | P13: 9 | Q13: 8 | R13: 8 | S13: 7 | T13: 8 | U13: 8 | V13: 9 | W13: 9 | X13: 8 | Y13: 6 | Z13: 6 | AA13: 5 | AB13: 5 | AC13: 4 | AD13: 4 | AE13: 4 | AF13: 4
B14: mes 12 | C14: 0 | D14: 0 | E14: 0 | F14: 0 | G14: 0 | H14: 0 | I14: 0 | J14: 0 | K14: 0 | L14: 0 | M14: 0 | N14: 2 | O14: 7 | P14: 8 | Q14: 8 | R14: 7 | S14: 6 | T14: 7 | U14: 8 | V14: 8 | W14: 9 | X14: 8 | Y14: 7 | Z14: 6 | AA14: 6 | AB14: 5 | AC14: 5 | AD14: 6 | AE14: 6 | AF14: 6
B15: mes 13 | C15: 0 | D15: 0 | E15: 0 | F15: 0 | G15: 0 | H15: 0 | I15: 0 | J15: 0 | K15: 0 | L15: 0 | M15: 0 | N15: 0 | O15: 2 | P15: 6 | Q15: 7 | R15: 7 | S15: 6 | T15: 5 | U15: 6 | V15: 7 | W15: 7 | X15: 7 | Y15: 8 | Z15: 7 | AA15: 6 | AB15: 5 | AC15: 6 | AD15: 5 | AE15: 5 | AF15: 5
B16: mes 14 | C16: 0 | D16: 0 | E16: 0 | F16: 0 | G16: 0 | H16: 0 | I16: 0 | J16: 0 | K16: 0 | L16: 0 | M16: 0 | N16: 0 | O16: 0 | P16: 3 | Q16: 4 | R16: 6 | S16: 5 | T16: 4 | U16: 6 | V16: 5 | W16: 5 | X16: 6 | Y16: 8 | Z16: 8 | AA16: 7 | AB16: 6 | AC16: 6 | AD16: 6 | AE16: 6 | AF16: 6
B17: mes 15 | C17: 0 | D17: 0 | E17: 0 | F17: 0 | G17: 0 | H17: 0 | I17: 0 | J17: 0 | K17: 0 | L17: 0 | M17: 0 | N17: 0 | O17: 0 | P17: 0 | Q17: 2 | R17: 3 | S17: 5 | T17: 4 | U17: 4 | V17: 4 | W17: 5 | X17: 5 | Y17: 7 | Z17: 7 | AA17: 7 | AB17: 6 | AC17: 7 | AD17: 7 | AE17: 7 | AF17: 6
B18: mes 16 | C18: 0 | D18: 0 | E18: 0 | F18: 0 | G18: 0 | H18: 0 | I18: 0 | J18: 0 | K18: 0 | L18: 0 | M18: 0 | N18: 0 | O18: 0 | P18: 0 | Q18: 0 | R18: 3 | S18: 3 | T18: 3 | U18: 4 | V18: 3 | W18: 4 | X18: 5 | Y18: 5 | Z18: 6 | AA18: 7 | AB18: 6 | AC18: 6 | AD18: 7 | AE18: 6 | AF18: 6
B19: mes 17 | C19: 0 | D19: 0 | E19: 0 | F19: 0 | G19: 0 | H19: 0 | I19: 0 | J19: 0 | K19: 0 | L19: 0 | M19: 0 | N19: 0 | O19: 0 | P19: 0 | Q19: 0 | R19: 0 | S19: 2 | T19: 3 | U19: 3 | V19: 3 | W19: 3 | X19: 4 | Y19: 4 | Z19: 4 | AA19: 5 | AB19: 6 | AC19: 5 | AD19: 6 | AE19: 6 | AF19: 6
B20: mes 18 | C20: 0 | D20: 0 | E20: 0 | F20: 0 | G20: 0 | H20: 0 | I20: 0 | J20: 0 | K20: 0 | L20: 0 | M20: 0 | N20: 0 | O20: 0 | P20: 0 | Q20: 0 | R20: 0 | S20: 0 | T20: 2 | U20: 3 | V20: 2 | W20: 3 | X20: 3 | Y20: 3 | Z20: 3 | AA20: 4 | AB20: 5 | AC20: 4 | AD20: 5 | AE20: 5 | AF20: 5
B21: mes 19 | C21: 0 | D21: 0 | E21: 0 | F21: 0 | G21: 0 | H21: 0 | I21: 0 | J21: 0 | K21: 0 | L21: 0 | M21: 0 | N21: 0 | O21: 0 | P21: 0 | Q21: 0 | R21: 0 | S21: 0 | T21: 0 | U21: 2 | V21: 2 | W21: 2 | X21: 3 | Y21: 3 | Z21: 3 | AA21: 4 | AB21: 5 | AC21: 4 | AD21: 5 | AE21: 5 | AF21: 5
B22: mes 20 | C22: 0 | D22: 0 | E22: 0 | F22: 0 | G22: 0 | H22: 0 | I22: 0 | J22: 0 | K22: 0 | L22: 0 | M22: 0 | N22: 0 | O22: 0 | P22: 0 | Q22: 0 | R22: 0 | S22: 0 | T22: 0 | U22: 0 | V22: 1 | W22: 2 | X22: 2 | Y22: 2 | Z22: 2 | AA22: 3 | AB22: 4 | AC22: 4 | AD22: 4 | AE22: 4 | AF22: 4
B23: mes 21 | C23: 0 | D23: 0 | E23: 0 | F23: 0 | G23: 0 | H23: 0 | I23: 0 | J23: 0 | K23: 0 | L23: 0 | M23: 0 | N23: 0 | O23: 0 | P23: 0 | Q23: 0 | R23: 0 | S23: 0 | T23: 0 | U23: 0 | V23: 0 | W23: 1 | X23: 2 | Y23: 2 | Z23: 2 | AA23: 2 | AB23: 4 | AC23: 3 | AD23: 2 | AE23: 2 | AF23: 2
B24: mes 22 | C24: 0 | D24: 0 | E24: 0 | F24: 0 | G24: 0 | H24: 0 | I24: 0 | J24: 0 | K24: 0 | L24: 0 | M24: 0 | N24: 0 | O24: 0 | P24: 0 | Q24: 0 | R24: 0 | S24: 0 | T24: 0 | U24: 0 | V24: 0 | W24: 0 | X24: 1 | Y24: 1 | Z24: 2 | AA24: 2 | AB24: 3 | AC24: 3 | AD24: 2 | AE24: 2 | AF24: 2
B25: mes 23 | C25: 0 | D25: 0 | E25: 0 | F25: 0 | G25: 0 | H25: 0 | I25: 0 | J25: 0 | K25: 0 | L25: 0 | M25: 0 | N25: 0 | O25: 0 | P25: 0 | Q25: 0 | R25: 0 | S25: 0 | T25: 0 | U25: 0 | V25: 0 | W25: 0 | X25: 0 | Y25: 1 | Z25: 1 | AA25: 2 | AB25: 3 | AC25: 3 | AD25: 3 | AE25: 3 | AF25: 3
B26: mes 24 | C26: 0 | D26: 0 | E26: 0 | F26: 0 | G26: 0 | H26: 0 | I26: 0 | J26: 0 | K26: 0 | L26: 0 | M26: 0 | N26: 0 | O26: 0 | P26: 0 | Q26: 0 | R26: 0 | S26: 0 | T26: 0 | U26: 0 | V26: 0 | W26: 0 | X26: 0 | Y26: 0 | Z26: 1 | AA26: 2 | AB26: 2 | AC26: 3 | AD26: 1 | AE26: 1 | AF26: 1
B27: mes 25 | C27: 0 | D27: 0 | E27: 0 | F27: 0 | G27: 0 | H27: 0 | I27: 0 | J27: 0 | K27: 0 | L27: 0 | M27: 0 | N27: 0 | O27: 0 | P27: 0 | Q27: 0 | R27: 0 | S27: 0 | T27: 0 | U27: 0 | V27: 0 | W27: 0 | X27: 0 | Y27: 0 | Z27: 0 | AA27: 1 | AB27: 2 | AC27: 2 | AD27: 1 | AE27: 1 | AF27: 1
B28: mes 26 | C28: 0 | D28: 0 | E28: 0 | F28: 0 | G28: 0 | H28: 0 | I28: 0 | J28: 0 | K28: 0 | L28: 0 | M28: 0 | N28: 0 | O28: 0 | P28: 0 | Q28: 0 | R28: 0 | S28: 0 | T28: 0 | U28: 0 | V28: 0 | W28: 0 | X28: 0 | Y28: 0 | Z28: 0 | AA28: 0 | AB28: 1 | AC28: 2 | AD28: 1 | AE28: 1 | AF28: 1
B29: mes 27 | C29: 0 | D29: 0 | E29: 0 | F29: 0 | G29: 0 | H29: 0 | I29: 0 | J29: 0 | K29: 0 | L29: 0 | M29: 0 | N29: 0 | O29: 0 | P29: 0 | Q29: 0 | R29: 0 | S29: 0 | T29: 0 | U29: 0 | V29: 0 | W29: 0 | X29: 0 | Y29: 0 | Z29: 0 | AA29: 0 | AB29: 0 | AC29: 1 | AD29: 1 | AE29: 1 | AF29: 1
B30: mes 28 | C30: 0 | D30: 0 | E30: 0 | F30: 0 | G30: 0 | H30: 0 | I30: 0 | J30: 0 | K30: 0 | L30: 0 | M30: 0 | N30: 0 | O30: 0 | P30: 0 | Q30: 0 | R30: 0 | S30: 0 | T30: 0 | U30: 0 | V30: 0 | W30: 0 | X30: 0 | Y30: 0 | Z30: 0 | AA30: 0 | AB30: 0 | AC30: 0 | AD30: 1 | AE30: 1 | AF30: 1
B31: mes 29 | C31: 0 | D31: 0 | E31: 0 | F31: 0 | G31: 0 | H31: 0 | I31: 0 | J31: 0 | K31: 0 | L31: 0 | M31: 0 | N31: 0 | O31: 0 | P31: 0 | Q31: 0 | R31: 0 | S31: 0 | T31: 0 | U31: 0 | V31: 0 | W31: 0 | X31: 0 | Y31: 0 | Z31: 0 | AA31: 0 | AB31: 0 | AC31: 0 | AD31: 0 | AE31: 1 | AF31: 1
B32: mes 30 | C32: 0 | D32: 0 | E32: 0 | F32: 0 | G32: 0 | H32: 0 | I32: 0 | J32: 0 | K32: 0 | L32: 0 | M32: 0 | N32: 0 | O32: 0 | P32: 0 | Q32: 0 | R32: 0 | S32: 0 | T32: 0 | U32: 0 | V32: 0 | W32: 0 | X32: 0 | Y32: 0 | Z32: 0 | AA32: 0 | AB32: 0 | AC32: 0 | AD32: 0 | AE32: 0 | AF32: 1
B33: Total | C33: =SUBTOTAL(109,Tabla35[1]) -> 100 | D33: =SUBTOTAL(109,Tabla35[2]) -> 100 | E33: =SUBTOTAL(109,Tabla35[3]) -> 100 | F33: =SUBTOTAL(109,Tabla35[4]) -> 100 | G33: =SUBTOTAL(109,Tabla35[5]) -> 100 | H33: =SUBTOTAL(109,Tabla35[6]) -> 100 | I33: =SUBTOTAL(109,Tabla35[7]) -> 100 | J33: =SUBTOTAL(109,Tabla35[8]) -> 100 | K33: =SUBTOTAL(109,Tabla35[9]) -> 100 | L33: =SUBTOTAL(109,Tabla35[10]) -> 100 | M33: =SUBTOTAL(109,Tabla35[11]) -> 100 | N33: =SUBTOTAL(109,Tabla35[12]) -> 100 | O33: =SUBTOTAL(109,Tabla35[13]) -> 100 | P33: =SUBTOTAL(109,Tabla35[14]) -> 100 | Q33: =SUBTOTAL(109,Tabla35[15]) -> 100 | R33: =SUBTOTAL(109,Tabla35[16]) -> 100 | S33: =SUBTOTAL(109,Tabla35[17]) -> 100 | T33: =SUBTOTAL(109,Tabla35[18]) -> 100 | U33: =SUBTOTAL(109,Tabla35[19]) -> 100 | V33: =SUBTOTAL(109,Tabla35[20]) -> 100 | W33: =SUBTOTAL(109,Tabla35[21]) -> 100 | X33: =SUBTOTAL(109,Tabla35[22]) -> 100 | Y33: =SUBTOTAL(109,Tabla35[23]) -> 100 | Z33: =SUBTOTAL(109,Tabla35[24]) -> 100 | AA33: =SUBTOTAL(109,Tabla35[25]) -> 100 | AB33: =SUBTOTAL(109,Tabla35[26]) -> 100 | AC33: =SUBTOTAL(109,Tabla35[27]) -> 100 | AD33: =SUBTOTAL(109,Tabla35[28]) -> 100 | AE33: =SUBTOTAL(109,Tabla35[29]) -> 100 | AF33: =SUBTOTAL(109,Tabla35[30]) -> 100
